{"text_format":"3","workbook":"xlsx","n_sheets":1,"sheets":["BOQ"],"not_rendered":{"defined_names":2},"read":"whole","date_system":"1900"}

{"sheet":"BOQ","index":0,"n_rows":4242,"n_cols":7,"rows_kept":4242}
["ITEM NO","DESCRIPTION",null,null,"QUANTITY","RATE","AMOUNT"]
[]
[null,"SECTION 1"]
[]
[null,"BILL NO. 1"]
[]
[null,"PRELIMINARIES AND GENERAL(Applicable to the whole of the works)"]
[]
[null,"FIXED CHARGE ITEMS"]
[]
[{"v":1,"d":"1 "},"Contractual requirements.",null,"SUM",{"v":1,"d":"1 "}]
[]
[null,"Establishment of Facilities on the Site"]
[]
[null,"Facilities for Engineer"]
[]
[{"v":2,"d":"2 "},"Furnished offices.",null,"SUM",{"v":1,"d":"1 "}]
[]
[{"v":3,"d":"3 "},"Telephone.",null,"SUM",{"v":1,"d":"1 "}]
[]
[{"v":4,"d":"4 "},"Name boards.  (In No. 1).",null,"SUM",{"v":1,"d":"1 "}]
[]
[null,"Facilities for Contractor"]
[]
[{"v":5,"d":"5 "},"Offices and storage sheds.",null,"SUM",{"v":1,"d":"1 "}]
[]
[{"v":6,"d":"6 "},"Workshops.",null,"SUM",{"v":1,"d":"1 "}]
[]
[{"v":7,"d":"7 "},"Laboratories.",null,"SUM",{"v":1,"d":"1 "}]
[]
[{"v":8,"d":"8 "},"Living accommodation.",null,"SUM",{"v":1,"d":"1 "}]
[]
[{"v":9,"d":"9 "},"Ablution and latrine facilities.",null,"SUM",{"v":1,"d":"1 "}]
[]
[{"v":10,"d":"10 "},"Tools and equipment.",null,"SUM",{"v":1,"d":"1 "}]
[]
[{"v":11,"d":"11 "},"Water supplies, electric power, communications, dealing with water, and access.",null,"SUM",{"v":1,"d":"1 "}]
[]
[{"v":12,"d":"12 "},"Plant.",null,"SUM",{"v":1,"d":"1 "}]
[]
[{"v":13,"d":"13 "},"Other fixed charge obligations.",null,"SUM",{"v":1,"d":"1 "}]
[]
[{"v":14,"d":"14 "},"Removal of site establishment.",null,"SUM",{"v":1,"d":"1 "}]
[]
[null,"VALUE RELATED ITEMS"]
[]
[{"v":15,"d":"15 "},"Contractual requirements.",null,"SUM",{"v":1,"d":"1 "}]
[]
[null,"Establishment of Facilities on the Site"]
[]
[null,"Facilities for Engineer"]
[]
[{"v":16,"d":"16 "},"Furnished offices.",null,"SUM",{"v":1,"d":"1 "}]
[]
[{"v":17,"d":"17 "},"Telephone.",null,"SUM",{"v":1,"d":"1 "}]
[]
[null,"Facilities for Contractor"]
[]
[{"v":18,"d":"18 "},"Offices and storage sheds.",null,"SUM",{"v":1,"d":"1 "}]
[]
[{"v":19,"d":"19 "},"Workshops.",null,"SUM",{"v":1,"d":"1 "}]
[]
[{"v":20,"d":"20 "},"Laboratories.",null,"SUM",{"v":1,"d":"1 "}]
[]
[{"v":21,"d":"21 "},"Living accommodation.",null,"SUM",{"v":1,"d":"1 "}]
[]
[{"v":22,"d":"22 "},"Ablution and latrine facilities.",null,"SUM",{"v":1,"d":"1 "}]
[]
[{"v":23,"d":"23 "},"Tools and equipment.",null,"SUM",{"v":1,"d":"1 "}]
[]
[{"v":24,"d":"24 "},"Water supplies, electric power, communications, dealing with water, and access.",null,"SUM",{"v":1,"d":"1 "}]
[]
[{"v":25,"d":"25 "},"Plant.",null,"SUM",{"v":1,"d":"1 "}]
[]
[{"v":26,"d":"26 "},"Other value related obligations.",null,"SUM",{"v":1,"d":"1 "}]
[]
[{"v":27,"d":"27 "},"Removal of site establishment.",null,"SUM",{"v":1,"d":"1 "}]
[]
[null,"TIME RELATED ITEMS"]
[]
[{"v":28,"d":"28 "},"Contractual requirements.",null,"SUM",{"v":1,"d":"1 "}]
[]
[null,"Operation and Maintenance of Facilities on Site, for Duration of Construction, (unless otherwise stated)"]
[]
[null,"Facilities for Engineer"]
[]
[{"v":29,"d":"29 "},"Furnished offices.",null,"SUM",{"v":1,"d":"1 "}]
[]
[{"v":30,"d":"30 "},"Telephone.",null,"SUM",{"v":1,"d":"1 "}]
[]
[{"v":31,"d":"31 "},"Survey assistants and materials.",null,"SUM",{"v":1,"d":"1 "}]
[]
[null,"Facilities for Contractor"]
[]
[{"v":32,"d":"32 "},"Offices and storage sheds.",null,"SUM",{"v":1,"d":"1 "}]
[]
[{"v":33,"d":"33 "},"Workshops.",null,"SUM",{"v":1,"d":"1 "}]
[]
[{"v":34,"d":"34 "},"Laboratories.",null,"SUM",{"v":1,"d":"1 "}]
[]
[{"v":35,"d":"35 "},"Living accommodation.",null,"SUM",{"v":1,"d":"1 "}]
[]
[{"v":36,"d":"36 "},"Ablution and latrine facilities.",null,"SUM",{"v":1,"d":"1 "}]
[]
[{"v":37,"d":"37 "},"Tools and equipment.",null,"SUM",{"v":1,"d":"1 "}]
[]
[{"v":38,"d":"38 "},"Water supplies, electric power, communications, dealing with water, and access.",null,"SUM",{"v":1,"d":"1 "}]
[]
[{"v":39,"d":"39 "},"Plant.",null,"SUM",{"v":1,"d":"1 "}]
[]
[{"v":40,"d":"40 "},"Supervision for duration of construction.",null,"SUM",{"v":1,"d":"1 "}]
[]
[{"v":41,"d":"41 "},"Company and head office overhead costs for duration of construction.",null,"SUM",{"v":1,"d":"1 "}]
[]
[{"v":42,"d":"42 "},"Other time related obligations.",null,"SUM",{"v":1,"d":"1 "}]
[]
[null,"DAYWORK"]
[]
[{"v":43,"d":"43 "},"Artisan",null,"HR/DAY",{"v":1,"d":"1 "}]
[]
[{"v":44,"d":"44 "},"Labourer",null,"HR/DAY",{"v":1,"d":"1 "}]
[]
[{"v":45,"d":"45 "},"Operator/Machine operator",null,"HR/DAY",{"v":1,"d":"1 "}]
[]
[{"v":46,"d":"46 "},"Supervisor",null,"MONTH",{"v":1,"d":"1 "}]
[]
[{"v":47,"d":"47 "},"Contractor's manager",null,"MONTH",{"v":1,"d":"1 "}]
[]
[null,"TEMPORARY WORKS"]
[]
[{"v":48,"d":"48 "},"Main access road to works.",null,"SUM",{"v":1,"d":"1 "}]
[]
[{"v":49,"d":"49 "},"Dealing with or accommodation of traffic.",null,"SUM",{"v":1,"d":"1 "}]
[]
[null,"Existing services."]
[]
[{"v":50,"d":"50 "},"Supply or hire of specialist equipment for the detection of a particular service.",null,"SUM",{"v":1,"d":"1 "}]
[]
[{"v":51,"d":"51 "},"The use of equipment referred to in (a) above.",null,"SUM",{"v":1,"d":"1 "}]
[]
[null,"Cost of survey in terms of the Land Survey Act."]
[]
[{"v":52,"d":"52 "},"Trigonometrical survey and plot boundary pegs - locate and record.",null,"SUM",{"v":1,"d":"1 "}]
[]
[{"v":53,"d":"53 "},"Trigonometrical survey of plot boundary pegs - protect and re-establish.",null,"SUM",{"v":1,"d":"1 "}]
[]
[{"v":54,"d":"54 "},"Special water control in terms of Project Specification.",null,"SUM",{"v":1,"d":"1 "}]
[]
[{"v":55,"d":"55 "},"Compensation in terms of sub-clause 57(4)(b)(ii) for delays due to the circumstances described in Sub-clauses 57(1) and (2) of the General Conditions of Contract, as amended",null,"DAY",{"v":1,"d":"1 "}]
[]
[{"v":56,"d":"56 "},"Compliance with OHS and MHSA Act and Regulations (including the Construction Regulations, 2003).The tenderers attention is drawn to the fact that the Occupational Health and Safety Act (Act 85 of 1993) is in force. Copies of the Act are available from the Government Printing Works, 149 Bosman Street, Pretoria (Private Bag X85, Pretoria, 0001, Tel No. (012) 334-4500). Tenderers are expected to be fully aquainted with the requirements of the Act.A pro-forma \"Agreement in terms of the Occupational Health and Safety Act - Part C 1.4\" is included in these bid documents. Tenderers are advised to study this pro-forma in order to make themselves fully conversant with the requirements and responsibilities of the Act and the Municipality.Tenderers are to provide for the above-mentioned requirements and to allow for all cost implications regarding the above including risk assesment, safety plan and monitoring system for the duration of the contract.",null,"SUM",{"v":1,"d":"1 "}]
[]
[null,"CARRIED TO FINAL SUMMARY / …",{"$nulls":4},{"$f":"SUM(G11:G151)","v":{"v":0,"d":"0.00"}}]
[]
[null,"SECTION 2"]
[]
[null,"BILL NO.1"]
[]
[null,"ALTERATIONS (PROVISIONAL)"]
[]
[null,"WORK GROUP ALLOCATION"]
[]
[null,"Unless otherwise stated, all items in this Bill will be allocated to Work Group 102 - Alterations"]
[]
[null,"PREAMBLES"]
[]
[null,"The General Preambles for Trades (2017 edition), as published by the Association of South African Quantity Surveyors, shall be deemed to be incorporated in these bills of quantities and no claims arising from brevity of description of items, fully described in the said General Preambles, will be entertained"]
[]
[null,"The following \"Supplementary Preambles\" are incorporated in this bill to satisfy the requirements of the project and shall take precedence over the provisions of the said General Preambles"]
[]
[null,"SUPPLEMENTARY PREAMBLES"]
[]
[null,"View site:"]
[]
[null,"Before submitting his tender, the Contractor shall visit the site and satisfy himself as to the nature and extent of the work to be done and the value of the materials contained in the buildings or portions of the buildings to be demolished.  No claim for any variations of the contract sum in respect of the nature and extent of the work or of inferior or damaged materials will be entertained"]
[]
[null,"Old materials to become property of the Contractor:"]
[]
[null,"Old materials from alterations, except where described as to be re-used or handed over, become the property of the Contractor, who must allow credit for same in the last item of the \"Alterations\" trade"]
[]
[null,"Old materials to be carted away:"]
[]
[null,"Old materials from the alterations, except where described as to be re-used or handed over, as well as all rubbish, etc must be regularly carted from the site and not be allowed to accumulate on or around the site"]
[]
[null,"Old materials to be re-used:"]
[]
[null,"None of the old materials are to be used for new work, except where specifically described as being set aside for re-use"]
[]
[null,"Handing over of materials:"]
[]
[null,"Where certain materials or articles from demolitions or alterations are described as to be \"handed over to the Employer\", it shall be taken to mean \"handed over by the Contractor to the Principal Agent\" and such materials or articles shall be properly stored by the Contractor until handing over thereof and shall include all necessary transport The Contractor must obtain an official receipt from the Principal Agent listing the materials or articles and dates of handing overShould the Contractor fail to submit the receipt when requested to do so, it shall be deemed that the materials or articles are still in his possession and he will be held liable to the Employer for the full replacement value thereof, which amount will be deducted from any monies due to the Contractor"]
[]
[null,"Explosives:"]
[]
[null,"No explosives whatsoever may be used for demolition purposes, unless otherwise stated"]
[]
[null,"GENERAL"]
[]
[null,"The contractor shall carry out the whole of the work with as little mess and noise as possible and with a minimum of disturbance to adjoining premises and their tenants. He shall provide proper protection and provide and erect any temporarytarpaulins and temporary plumbing that may be necessary during the progress of the works, all to the satisfaction of the Architect, and remove when directed."]
[]
[null,"Any water supplies pipes and other piping that may be met withand found necessary to disconnect or cut, shall be effectually stopped of or grubbed up and removed, and any new connections that may be necessary shall be made with proper fittings, to the satisfaction of the Architect."]
[]
[null,"Doors, fanlights, fittings, frames, linings, etc shall be thoroughly overhauled before re-fixing including taking off, easing and rehanging, cramping up, re-wedging as required and making good cramps, dowels, etc and easing, oiling, adjusting and repairing ironmongery if necessary, replacing any glass damaged in removal or subsequently and stopping up all nail and screw holes with tinted wood to match timber."]
[]
[null,"Where doors, windows, etc are described as taken out this shall be understood to include for removal of all beads, architraves, ironmongery, etc and doors which are re-fixed are to be provided with new architraves       (elsewhere measured )."]
[]
[null,"Prices for taking out and removing doors and frames shall include for removing door stops, cabin locks, etc and making good to match existing."]
[]
[null,"With regard to building up openings in existing walls, cement screeds and pavings, granolithic, etc, shall be levelled and prepared for raising of brickwork."]
[]
[null,"Allow for making good all existing plastered walls where damaged by furniture, etc, and stopping up all screw and holes before painting."]
[]
[null,"Making good finishes shall be deemed to iclude making good of the brick and concrete surfaces onto which new finishes are applied, where necessary."]
[]
[null,"The contractor will be required to take all dimensions affecting existing building on the site and he will be held solely responsible for the accuracy of all such dimensions."]
[]
[null,"Hazardous materials:"]
[]
[null,"Demolitions of buildings, services, external works, site services, etc are to include for the safe removal and disposal of asbestos or asbestos products or other hazardous materials by approved Registered Specialists"]
[]
[null," - - - - - - - - - - - - - - - - - - - - - - - - -"]
[]
[null,"TEMPORARY BARRIERS, SCREENS, ETC"]
[]
[null,"Temporary barriers, screens, etc including removal:"]
[]
[{"v":1,"d":"1 "},"Dust screen 3000mm high formed of suitable timber framing with 250 micron polyethylene sheeting stapled on including corners, ends, etc. to be used on all the phases of the construction project and in accordance to the Health and Safety specifications and regulations",null,"m",{"v":646,"d":"646 "},null,{"$f":"ROUND(E227*F227,2)","v":{"v":0,"d":"0.00"}}]
[]
[null,"REMOVAL OF EXISTING WORK"]
[]
[null,"Demolishing and removing:"]
[]
[{"v":2,"d":"2 "},"Double- storey building, approximately 43750mm long x 12300mm wide x 8000mm high overall comprising one brick walls and corrugated roof sheeting",null,"SUM",{"v":1,"d":"1 "}]
[]
[{"v":3,"d":"3 "},"Corrugated shelter, approximately 7500mm long x 3295mm wide x 3500mm high",null,"SUM",{"v":1,"d":"1 "}]
[]
[null,"Taking out and removing doors, windows, etc including thresholds, sills, etc from brickwork (altering openings and making good finishes elsewhere):"]
[]
[{"v":4,"d":"4 "},"Timber single door and steel frame not exceeding 2,5m\"²",null,"No",{"v":3,"d":"3 "},null,{"$f":"ROUND(E239*F239,2)","v":{"v":0,"d":"0.00"}}]
[]
[{"v":5,"d":"5 "},"Glazed clerestory window, size 1948 x 6300mm High",null,"No",{"v":2,"d":"2 "},null,{"$f":"ROUND(E241*F241,2)","v":{"v":0,"d":"0.00"}}]
[]
[{"v":6,"d":"6 "},"Glazed clerestory window, size 2066 x 6300mm High",null,"No",{"v":1,"d":"1 "},null,{"$f":"ROUND(E243*F243,2)","v":{"v":0,"d":"0.00"}}]
[]
[{"v":7,"d":"7 "},"Roller shutter door approximately 1800 x 2100mm high and prepare for a new roller shutter door",null,"No",{"v":1,"d":"1 "},null,{"$f":"ROUND(E245*F245,2)","v":{"v":0,"d":"0.00"}}]
[]
[null,"Taking down and removing large unit roof coverings, accessories, etc:"]
[]
[{"v":8,"d":"8 "},"Profiled sheet metal roof covering including timber purlins",null,"m²",{"v":37,"d":"37 "},null,{"$f":"ROUND(E249*F249,2)","v":{"v":0,"d":"0.00"}}]
[]
[null,"Taking down and removing ceilings, partitions, etc:"]
[]
[{"v":9,"d":"9 "},"Suspended ceilings, including cornices, suspension grid, hangers, etc.",null,"m²",{"v":45,"d":"45 "},null,{"$f":"ROUND(E253*F253,2)","v":{"v":0,"d":"0.00"}}]
[]
[null,"ALTERING OPENINGS"]
[]
[null,"Altering openings including building in new prestressed concrete lintels and bonding new brickwork to existing, all as required:"]
[]
[{"v":10,"d":"10 "},"Altering opening in one brick wall where 1948 x 6300mm high steel window removed to receive new aluminium window",null,"No",{"v":2,"d":"2 "},null,{"$f":"ROUND(E259*F259,2)","v":{"v":0,"d":"0.00"}}]
[]
[{"v":11,"d":"11 "},"Altering opening in one brick wall where 2066 x 6300mm high steel window removed to receive new aluminium window",null,"No",{"v":2,"d":"2 "},null,{"$f":"ROUND(E261*F261,2)","v":{"v":0,"d":"0.00"}}]
[]
[null,"MAKING GOOD OF FINISHES, ETC"]
[]
[null,"Making good untinted granolithic:"]
[]
[{"v":12,"d":"12 "},"Floors in patches",null,"m²",{"v":50,"d":"50 "},null,{"$f":"ROUND(E267*F267,2)","v":{"v":0,"d":"0.00"}}]
[]
[null,"Making good internal/external cement plaster:"]
[]
[{"v":13,"d":"13 "},"Walls in patches",null,"m²",{"v":512,"d":"512 "},null,{"$f":"ROUND(E271*F271,2)","v":{"v":0,"d":"0.00"}}]
[]
[null,"Making good concrete:"]
[]
[{"v":14,"d":"14 "},"Floors in patches",null,"m²",{"v":6,"d":"6 "},null,{"$f":"ROUND(E275*F275,2)","v":{"v":0,"d":"0.00"}}]
[]
[null,"GENERAL REPAIRWORK"]
[]
[null,"Repairwork to existing brick  and cladded walls:"]
[]
[{"v":15,"d":"15 "},"Waterjetting surfaces of existing retaining walls with high pressure low-volume water jetting lance to remove all dirt, brushing down and washing to remove surface contamination, mould, fungus, damp and treating with two coats of anti-fungal wash and leaving perfectly clean on completion",null,"m²",{"v":30,"d":"30 "},null,{"$f":"ROUND(E281*F281,2)","v":{"v":0,"d":"0.00"}}]
[]
[null,"Carried to section summary / …",{"$nulls":4},{"$f":"SUM(G227:G282)","v":{"v":0,"d":"0.00"}}]
[]
[null,"SECTION 2"]
[]
[null,"BILL NO. 2"]
[]
[null,"EARTHWORKS (PROVISIONAL)"]
[]
[null,"WORK GROUP ALLOCATION"]
[]
[null,"Unless otherwise stated, all items in this Bill will be allocated to Work Group 104 - Earthworks"]
[]
[null,"PREAMBLES"]
[]
[null,"The General Preambles for Trades (2017 edition) as published by the Association of South African Quantity Surveyors shall be deemed to be included in these bills of quantities and no claims arising from brevity of description of items fully described in the said General Preambles will be entertained"]
[]
[null,"The following \"Supplementary Preambles\" are incorporated in this bill to satisfy the requirements of the project and shall take precedence over the provisions of the said General Preambles"]
[]
[null,"SUPPLEMENTARY PREAMBLES"]
[]
[null,"Nature of ground"]
[]
[null,"The nature of the ground is assumed to be loose sandy material, therefore \"earth\", but possibly interspersed with \"hard rock\" or \"soft rock\"."]
[]
[null,"The nature of the ground is assumed to be gravel, therefore \"earth\", but possibly interspersed with \"soft rock\"."]
[]
[null,"The nature of the ground is assumed to be silty clay with loose river boulders varying in size up to approximately 450mm diameter, therefore \"earth\", but possibly interspersed with \"hard rock\"."]
[]
[null,"Trial holes indicate that the nature of the ground is silty clay to a depth of approximately 500mm with fine to medium loose sandy material below, therefore \"earth\".  The trial holes also indicate that the water table is at a maximum depth of approximately 1000mm."]
[]
[null,"A soils investigation has been carried out on site by the engineer and the report is annexed to these bills of quantities. Descriptions of excavations shall be deemed to include all ground conditions classifiable as \"earth\" described in the above report and where conditions of a more difficult character are indicated these are separately measured"]
[]
[null,"Subterranean water:"]
[]
[null,"No subterranean water is expected"]
[]
[null,"Should the Contractor however, encounter any subterranean water on the site, he shall immediately notify the Principal Agent thereof and submit recommendations for keeping the works free from subterranean water together with all costs involved therewith"]
[]
[null,"Excavation for working space in rock:"]
[]
[null,"Notwithstanding clause 10 measurement rule 27 of the Standard System of Measuring Building Work, excavation for working space in material of a more different character (e.g. soft or hard rock) will be measured in cubic metres to the extent executed and given as \"extra over\" bulk excavation or trench and hole excavation as the case may be"]
[]
[null,"Carting away of excavated material"]
[]
[null,"Descriptions of carting away of excavated material shall be deemed to include loading excavated material onto trucks directly from the excavations or, alternatively, from stock piles situated on the building site"]
[]
[null,"Filling"]
[]
[null,"Notwithstanding the reference to prescribed multiple handling in clause 1 page 6 of the Standard System of Measuring Building Work, prices for filling and backfilling shall include for all selection and any multiple handling of material"]
[]
[null,"Testing:"]
[]
[null,"Prices for backfilling to trenches and holes only are to include for all necessary density tests in accordance with SANS 1200D"]
[]
[null,"EXCAVATIONS, FILLING, ETC"]
[]
[null,"EXCAVATIONS, ETC"]
[]
[null,"Excavation in earth not exceeding 2m deep:"]
[]
[{"v":1,"d":"1 "},"Reduced levels under floors",null,"m³",{"v":63,"d":"63 "},null,{"$f":"ROUND(E343*F343,2)","v":{"v":0,"d":"0.00"}}]
[]
[{"v":2,"d":"2 "},"Trenches",null,"m³",{"v":62,"d":"62 "},null,{"$f":"ROUND(E345*F345,2)","v":{"v":0,"d":"0.00"}}]
[]
[{"v":3,"d":"3 "},"Holes",null,"m³",{"v":28,"d":"28 "},null,{"$f":"ROUND(E347*F347,2)","v":{"v":0,"d":"0.00"}}]
[]
[null,"Extra over trench and hole excavations in earth for excavation in:"]
[]
[{"v":4,"d":"4 "},"Soft rock",null,"m³",{"v":9,"d":"9 "},null,{"$f":"ROUND(E351*F351,2)","v":{"v":0,"d":"0.00"}}]
[]
[{"v":5,"d":"5 "},"Hard rock",null,"m³",{"v":6,"d":"6 "},null,{"$f":"ROUND(E353*F353,2)","v":{"v":0,"d":"0.00"}}]
[]
[null,"Extra over all excavations for carting away:"]
[]
[{"v":6,"d":"6 "},"Surplus material from excavations and/or stock piles on site to a dumping site to be located by the contractor",null,"m³",{"v":90,"d":"90 "},null,{"$f":"ROUND(E357*F357,2)","v":{"v":0,"d":"0.00"}}]
[]
[null,"Risk of collapse of excavations:"]
[]
[{"v":7,"d":"7 "},"Sides of trench and hole excavations not exceeding 1,5m deep",null,"m²",{"v":230,"d":"230 "},null,{"$f":"ROUND(E361*F361,2)","v":{"v":0,"d":"0.00"}}]
[]
[null,"Keeping excavations free of water:"]
[]
[{"v":8,"d":"8 "},"Keeping excavations free of all water other than subterranean water",null,"SUM",{"v":1,"d":"1 "}]
[]
[null,"FILLING ETC"]
[]
[null,"Earth filling obtained from the excavations and/or prescribed stock piles on site, compacted to 93% Mod AASHTO density:"]
[]
[{"v":9,"d":"9 "},"Backfilling to trenches, holes, etc.",null,"m³",{"v":20,"d":"20 "},null,{"$f":"ROUND(E371*F371,2)","v":{"v":0,"d":"0.00"}}]
[]
[null,"G5 filling material supplied by the contractor, compacted to 93% Mod AASHTO density:"]
[]
[{"v":10,"d":"10 "},"Under floors, steps, pavings, etc.",null,"m³",{"v":79,"d":"79 "},null,{"$f":"ROUND(E375*F375,2)","v":{"v":0,"d":"0.00"}}]
[]
[{"v":11,"d":"11 "},"Backfilling to trenches, holes, etc.",null,"m³",{"v":61,"d":"61 "},null,{"$f":"ROUND(E377*F377,2)","v":{"v":0,"d":"0.00"}}]
[]
[null,"G7 filling material supplied by the contractor, compacted to 95% Mod AASHTO density:"]
[]
[{"v":12,"d":"12 "},"Backfilling to trenches, holes, etc.",null,"m³",{"v":12,"d":"12 "},null,{"$f":"ROUND(E381*F381,2)","v":{"v":0,"d":"0.00"}}]
[]
[{"v":13,"d":"13 "},"Under floors, steps, pavings, etc.",null,"m³",{"v":61,"d":"61 "},null,{"$f":"ROUND(E383*F383,2)","v":{"v":0,"d":"0.00"}}]
[]
[null,"Compaction of surfaces:"]
[]
[{"v":14,"d":"14 "},"Compaction of ground surface under floors etc including scarifying for a depth of 150mm, breaking down oversize material, adding suitable material where necessary and compacting to 91% Mod AASHTO density",null,"m²",{"v":473,"d":"473 "},null,{"$f":"ROUND(E387*F387,2)","v":{"v":0,"d":"0.00"}}]
[]
[null,"Prescribed density tests on filling:"]
[]
[{"v":15,"d":"15 "},"\"Modified AASHTO Density\" test",null,"No",{"v":2,"d":"2 "},null,{"$f":"ROUND(E391*F391,2)","v":{"v":0,"d":"0.00"}}]
[]
[null,"SOIL POISONING"]
[]
[null,"Soil insecticide in accordance with SANS 5859:"]
[]
[{"v":16,"d":"16 "},"Soil insecticide (protection against termites) applied as specified under floors, etc. including forming and poisoning shallow furrows against foundation walls, etc. filling in furrows and ramming",null,"m²",{"v":409,"d":"409 "},null,{"$f":"ROUND(E397*F397,2)","v":{"v":0,"d":"0.00"}}]
[]
[{"v":17,"d":"17 "},"To bottoms and sides of trenches, etc.",null,"m²",{"v":210,"d":"210 "},null,{"$f":"ROUND(E399*F399,2)","v":{"v":0,"d":"0.00"}}]
[]
[null,"Carried to section summary / …",{"$nulls":4},{"$f":"SUM(G343:G400)","v":{"v":0,"d":"0.00"}}]
[]
[null,"SECTION 2"]
[]
[null,"BILL NO. 3"]
[]
[null,"CONCRETE, FORMWORK AND REINFORCEMENT"]
[]
[null,"WORK GROUP ALLOCATION"]
[]
[null,"The items in this Bill will be allocated to Work Groups as indicated in brackets at the end of headings or descriptions"]
[]
[null,"PREAMBLES"]
[]
[null,"The General Preambles for Trades (2017 edition) as published by the Association of South African Quantity Surveyors shall be deemed to be incorporated in these bills of quantities and no claims arising from brevity of description of items fully described in the said General Preambles will be entertained"]
[]
[null,"The following \"Supplementary Preambles\" are incorporated in this bill to satisfy the requirements of the project and shall take precedence over the provisions of the said General Preambles"]
[]
[null,"SUPPLEMENTARY PREAMBLES"]
[]
[null,"Cost of tests:"]
[]
[null,"Breeze concrete:"]
[]
[null,"Breeze concrete shall consist of twelve parts clean dry furnace ash, free from coal or other foreign matter, to one part cement (1:12); the ash graded up to particles which will pass a 16,5mm ring from a minimum which fails to pass a 4,75mm mesh.  The finer materials from the screening are to be first mixed with the cement into a mortar and the ash added afterwards and thoroughly incorporated"]
[]
[null,"Lightweight concrete:"]
[]
[null,"Lightweight concrete shall have a density of 600kg/m3 for the top 50mm and 400kg/m3 for the remaining thickness.  The minimum thickness at outlets, channels, etc shall be 50mm"]
[]
[null,"Waterproof concrete:"]
[]
[null,"\"Waterproof concrete\" shall have the same properties as normal concrete, but the following shall be modified to make the the concrete more water-tight: 1. a cement/water ratio of minimum 1.9 and maximum 2.1 2. minimum OPC content of 300kg/m3 3. Polypropolene micro fibres added to concrete at rate of 182 million per m3"]
[]
[null,"Formwork:"]
[]
[null,"Descriptions of formwork shall be deemed to include use and waste only (except where described as \"left in\" or \"permanent\"), for fitting together in the required forms, wedging, plumbing and fixing to true angles and surfaces as necessary to ensure easy release during stripping and for reconditioning as necessary before re-use"]
[]
[null,"The vertical strutting shall be carried down to such construction as is sufficiently strong to afford the required support without damage and shall remain in position until the newly constructed work is able to support itself"]
[]
[null,"Formwork to soffits of solid slabs, etc shall be deemed to be to slabs not exceeding 250mm thick unless otherwise described"]
[]
[null,"Formwork to soffits of slabs, beams, etc shall be deemed to be propped up exceeding 1,5m and not exceeding 3,5m high unless otherwise described"]
[]
[null,"UNREINFORCED CONCRETE CAST AGAINST EXCAVATED SURFACES (WORK GROUP 110)"]
[]
[null,"10MPa/15mm concrete:"]
[]
[{"v":1,"d":"1 "},"Filling in hollow brick walls",null,"m³",{"v":60,"d":"60 "},null,{"$f":"ROUND(E449*F449,2)","v":{"v":0,"d":"0.00"}}]
[]
[null,"15MPa/19mm concrete:"]
[]
[{"v":2,"d":"2 "},"Surface blinding under footings and bases",null,"m³",{"v":12,"d":"12 "},null,{"$f":"ROUND(E453*F453,2)","v":{"v":0,"d":"0.00"}}]
[]
[null,"REINFORCED CONCRETE CAST AGAINST EXCAVATED SURFACES (WORK GROUP 110)"]
[]
[null,"30MPa/19mm concrete:"]
[]
[null,"Surface beds on waterproofing",null,"m³",{"v":59,"d":"59 "},null,{"$f":"ROUND(E459*F459,2)","v":{"v":0,"d":"0.00"}}]
[]
[{"v":3,"d":"3 "},"Stub columns",null,"m³",{"v":1,"d":"1 "},null,{"$f":"ROUND(E461*F461,2)","v":{"v":0,"d":"0.00"}}]
[]
[null,"REINFORCED CONCRETE CAST ON/IN FORMWORK (WORK GROUP 110)"]
[]
[null,"30MPa/19mm concrete:"]
[]
[{"v":4,"d":"4 "},"Slabs including beams and inverted beams",null,"m³",{"v":23,"d":"23 "},null,{"$f":"ROUND(E467*F467,2)","v":{"v":0,"d":"0.00"}}]
[]
[null,"Strip footings",null,"m³",{"v":21,"d":"21 "},null,{"$f":"ROUND(E469*F469,2)","v":{"v":0,"d":"0.00"}}]
[]
[{"v":5,"d":"5 "},"Bases",null,"m³",{"v":28,"d":"28 "},null,{"$f":"ROUND(E471*F471,2)","v":{"v":0,"d":"0.00"}}]
[]
[{"v":6,"d":"6 "},"Isolated beams",null,"m³",{"v":7,"d":"7 "},null,{"$f":"ROUND(E473*F473,2)","v":{"v":0,"d":"0.00"}}]
[]
[{"v":7,"d":"7 "},"Bottoms and sides of isolated gutter beams",null,"m³",{"v":7,"d":"7 "},null,{"$f":"ROUND(E475*F475,2)","v":{"v":0,"d":"0.00"}}]
[]
[{"v":8,"d":"8 "},"Plinths",null,"m³",{"v":5,"d":"5 "},null,{"$f":"ROUND(E477*F477,2)","v":{"v":0,"d":"0.00"}}]
[]
[null,"TEST CUBES (WORK GROUP 110)"]
[]
[{"v":9,"d":"9 "},"Making and testing sets of three 150 x 150 x 150mm concrete strength test cubes (Provisional)",null,"Sets",{"v":11,"d":"11 "},null,{"$f":"ROUND(E481*F481,2)","v":{"v":0,"d":"0.00"}}]
[]
[null,"CONCRETE SUNDRIES (WORK GROUP 110)"]
[]
[null,"Finishing top surfaces of concrete smooth with a steel trowel:"]
[]
[{"v":10,"d":"10 "},"Surface beds, slabs, etc.",null,"m²",{"v":586,"d":"586 "},null,{"$f":"ROUND(E487*F487,2)","v":{"v":0,"d":"0.00"}}]
[]
[null,"35 MPa non-shrink grout:"]
[]
[{"v":11,"d":"11 "},"Bedding approximately 20mm thick under 320 x 250mm base plate, including chamfered edges all round",null,"No",{"v":8,"d":"8 "},null,{"$f":"ROUND(E491*F491,2)","v":{"v":0,"d":"0.00"}}]
[]
[{"v":12,"d":"12 "},"Bedding approximately 20mm thick under 215 x 215mm base plate, including chamfered edges all round",null,"No",{"v":2,"d":"2 "},null,{"$f":"ROUND(E493*F493,2)","v":{"v":0,"d":"0.00"}}]
[]
[{"v":13,"d":"13 "},"Bedding approximately 20mm thick under 265 x 250mm base plate, including chamfered edges all round",null,"No",{"v":3,"d":"3 "},null,{"$f":"ROUND(E495*F495,2)","v":{"v":0,"d":"0.00"}}]
[]
[null,"ROUGH FORMWORK (DEGREE OF ACCURACY III) (WORK GROUP 111)"]
[]
[null,"Rough formwork to sides:"]
[]
[{"v":14,"d":"14 "},"Stub columns",null,"m²",{"v":3,"d":"3 "},null,{"$f":"ROUND(E501*F501,2)","v":{"v":0,"d":"0.00"}}]
[]
[null,"SMOOTH FORMWORK (DEGREE OF ACCURACY II) (WORK GROUP 111)"]
[]
[null,"Smooth formwork to sides:"]
[]
[{"v":15,"d":"15 "},"Beams",null,"m²",{"v":52,"d":"52 "},null,{"$f":"ROUND(E507*F507,2)","v":{"v":0,"d":"0.00"}}]
[]
[{"v":16,"d":"16 "},"Edges, risers, ends and reveals not exceeding 300mm high or wide",null,"m",{"v":24,"d":"24 "},null,{"$f":"ROUND(E509*F509,2)","v":{"v":0,"d":"0.00"}}]
[]
[null,"Smooth formwork to soffits:"]
[]
[{"v":17,"d":"17 "},"Slabs",null,"m²",{"v":153,"d":"153 "},null,{"$f":"ROUND(E513*F513,2)","v":{"v":0,"d":"0.00"}}]
[]
[null,"Boxing in special formwork to form:"]
[]
[{"v":18,"d":"18 "},"20 x 20mm Chamfers along top or bottom edges",null,"m",{"v":24,"d":"24 "},null,{"$f":"ROUND(E517*F517,2)","v":{"v":0,"d":"0.00"}}]
[]
[null,"MOVEMENT JOINTS, ETC (WORK GROUP 110)"]
[]
[null,"Expansion joints with 10mm softboard between vertical concrete and brick surfaces:"]
[]
[{"v":19,"d":"19 "},"Not exceeding 300mm high to edges of surface beds",null,"m",{"v":7,"d":"7 "},null,{"$f":"ROUND(E523*F523,2)","v":{"v":0,"d":"0.00"}}]
[]
[null,"Saw-cut joints:"]
[]
[{"v":20,"d":"20 "},"6 x 10mm Saw-cut joints in top of concrete",null,"m",{"v":150,"d":"150 "},null,{"$f":"ROUND(E527*F527,2)","v":{"v":0,"d":"0.00"}}]
[]
[null,"Two layers of five-ply malthoid in slip joints between horizontal concrete and brick surfaces, including cement mortar bed:"]
[]
[{"v":21,"d":"21 "},"Joints not exceeding 300mm wide",null,"m",{"v":150,"d":"150 "},null,{"$f":"ROUND(E531*F531,2)","v":{"v":0,"d":"0.00"}}]
[]
[null,"REINFORCEMENT (PROVISIONAL) (WORK GROUP 114)"]
[]
[null,"Mild steel reinforcement to structural concrete work:"]
[]
[{"v":22,"d":"22 "},"Mild steel bar reinforcement (8 to 40mm diameter bars)",null,"t",9.73,null,{"$f":"ROUND(E537*F537,2)","v":{"v":0,"d":"0.00"}}]
[]
[null,"High tensile steel reinforcement to structural concrete work:"]
[]
[{"v":23,"d":"23 "},"High tensile steel bar reinforcement (8 to 40mm diameter bars)",null,"t",22.77,null,{"$f":"ROUND(E541*F541,2)","v":{"v":0,"d":"0.00"}}]
[]
[null,"Fabric reinforcement:"]
[]
[{"v":24,"d":"24 "},"Type 395 fabric reinforcement in concrete surface beds, slabs, etc.",null,"m²",{"v":433,"d":"433 "},null,{"$f":"ROUND(E545*F545,2)","v":{"v":0,"d":"0.00"}}]
[]
[null,"Carried to section summary / …",{"$nulls":4},{"$f":"SUM(G402:G546)","v":{"v":0,"d":"0.00"}}]
[]
[null,"SECTION 2"]
[]
[null,"BILL NO. 4"]
[]
[null,"MASONRY"]
[]
[null,"WORK GROUP ALLOCATION"]
[]
[null,"Unless otherwise stated, all items in this Bill will be allocated to Work Group 116 - Brick and Blockwork"]
[]
[null,"PREAMBLES"]
[]
[null,"The General Preambles for Trades (2017 edition) as published by the Association of South African Quantity Surveyors shall be deemed to be incorporated in these bills of quantities and no claims arising from brevity of description of items fully described in the said General Preambles will be entertained"]
[]
[null,"The following \"Supplementary Preambles\" are incorporated in this bill to satisfy the requirements of the project and shall take precedence over the provisions of the said General Preambles"]
[]
[null,"SUPPLEMENTARY PREAMBLES"]
[]
[null,"BRICKWORK"]
[]
[null,"General:"]
[]
[null,"Non-load bearing brickwork is to be built to full height less  20mm gap next to the ceiling and is to be left for 14 days before grouting up in 1:3 cement mortar."]
[]
[null,"Sizes in descriptions:"]
[]
[null,"Where sizes in descriptions are given in brick units, \"one brick\" shall represent the length and \"half brick\" the width of a brick"]
[]
[null,"Hollow walls:"]
[]
[null,"Descriptions of hollow walls shall be deemed to include leaving every fifth perpend of the bottom course of the external skin open as a weep hole"]
[]
[null,"Bagged and sealed walls:"]
[]
[null,"Walls in two skins described as \"bagged and sealed\" shall be deemed to include having the outer face of the inner skin bagged with 1:6 cement and sand mixture and sealed with two coats bitumen emulsion waterproofing coating"]
[]
[null,"Face bricks :"]
[]
[null,"Bricks shall be ordered timeously to obtain uniformity in size and colour  All face brickwork shall be regularly cleaned down as the work proceeds and shall be protected as necessary by an approved method"]
[]
[null,"Pointing:"]
[]
[null,"Descriptions of recessed pointing to fair face brickwork and face brickwork shall be deemed to include smooth floated square recessed, hollow recessed, weathered pointing, etc"]
[]
[null,"BLOCKWORK"]
[]
[null,"Concrete masonry units:"]
[]
[null,"Blocks are to be either solid or hollow modular dense concrete masonry units having a compressive strength of 7MPa"]
[]
[null,"Wall ties for blockwork:"]
[]
[null,"Wall ties shall be polypropylene ties complying with BS 76377.  Ties for hollow walls shall be of sufficient length to allow not less than 75mm of each end to be built into the blockwork.  Ties are to be spaced at intervals of not more than 1m in the horizontal direction and not more than 400mm staggered in the vertical direction except at openings, vertical joints or ends of walls where they are to be placed vertically above each other"]
[]
[null,"Blockwork:"]
[]
[null,"Blockwork shall comply with SANS 10145 \"Concrete Masonry Construction\""]
[]
[null,"Surfaces to be plastered shall have joints raked out to a depth of at least 10mm to provide a key.  Cavities of hollow walls shall be kept free of mortar droppings or other undesirable matter. Every second perpend of the bottom course of the external skin of hollow walls shall be left open as a weep hole"]
[]
[null,"Standard complementary blocks:"]
[]
[null,"Descriptions of blockwork shall be deemed to include standard complementary blocks such as corner, three-quarter, half and quarter blocks required in the construction of corners, reveals, jambs, ends, etc to solid and hollow walls and for bonding as necessary"]
[]
[null,"DECORATIVE BLOCKS"]
[]
[null,"Blocks shall be of approved manufacture, sound, well burnt or cured and uniform and true in size, shape and colour"]
[]
[null,"SUPERSTRUCTURE"]
[]
[null,"Brickwork of NFP bricks in class II mortar"]
[]
[{"v":1,"d":"1 "},"Half brick walls",null,"m²",{"v":119,"d":"119 "},null,{"$f":"ROUND(E621*F621,2)","v":{"v":0,"d":"0.00"}}]
[]
[null,"Brickwork of NFX bricks (14 MPa nominal compressive strength) in class II mortar in loadbearing walls etc:"]
[]
[{"v":2,"d":"2 "},"One brick walls",null,"m²",{"v":612,"d":"612 "},null,{"$f":"ROUND(E625*F625,2)","v":{"v":0,"d":"0.00"}}]
[]
[{"v":3,"d":"3 "},"One brick walls in beamfilling",null,"m²",{"v":261,"d":"261 "},null,{"$f":"ROUND(E627*F627,2)","v":{"v":0,"d":"0.00"}}]
[]
[{"v":4,"d":"4 "},"345mm Solid walls of two half brick skins including wire ties and with cavity filled solid with 15Mpa /15 mm concrete as the work proceeds",null,"m²",{"v":515,"d":"515 "},null,{"$f":"ROUND(E629*F629,2)","v":{"v":0,"d":"0.00"}}]
[]
[{"v":5,"d":"5 "},"352mm Solid walls of two half brick skins including wire ties and with cavity filled solid with 15Mpa /15 mm concrete as the work proceeds",null,"m²",{"v":54,"d":"54 "},null,{"$f":"ROUND(E631*F631,2)","v":{"v":0,"d":"0.00"}}]
[]
[null,"2,5mm Brickwork reinforcement:"]
[]
[{"v":6,"d":"6 "},"75mm Wide reinforcement built in horizontally",null,"m",{"v":351,"d":"351 "},null,{"$f":"ROUND(E635*F635,2)","v":{"v":0,"d":"0.00"}}]
[]
[{"v":7,"d":"7 "},"150mm Wide reinforcement built in horizontally",null,"m",{"v":3877,"d":"3,877 "},null,{"$f":"ROUND(E637*F637,2)","v":{"v":0,"d":"0.00"}}]
[]
[null,"Prestressed fabricated concrete lintels, including necessary temporary supports:"]
[]
[{"v":8,"d":"8 "},"75 x 110mm Lintels in lengths not exceeding 3m long",null,"m",{"v":19,"d":"19 "},null,{"$f":"ROUND(E641*F641,2)","v":{"v":0,"d":"0.00"}}]
[]
[null,"Turning pieces to lintels, etc:"]
[]
[{"v":9,"d":"9 "},"220mm Wide turning pieces",null,"m",{"v":36,"d":"36 "},null,{"$f":"ROUND(E645*F645,2)","v":{"v":0,"d":"0.00"}}]
[]
[null,"FACE BRICKWORK"]
[]
[null,"External/Internal face bricks (Allow a Prime Cost Amount of R8500/1000 bricks delivered to site) pointed with recessed horizontal and vertical joints:"]
[]
[{"v":10,"d":"10 "},"Extra over brickwork for face brickwork",null,"m²",{"v":352,"d":"352 "},null,{"$f":"ROUND(E651*F651,2)","v":{"v":0,"d":"0.00"}}]
[]
[null,"Brick-on-edge header course copings, sills, etc of face bricks at a purchase price of R6500,00/1000 bricks delivered to site pointed with polished recessed joints on all exposed faces (Provisional)"]
[]
[{"v":11,"d":"11 "},"150mm Wide sills set sloping and slightly projecting",null,"m",{"v":218,"d":"218 "},null,{"$f":"ROUND(E655*F655,2)","v":{"v":0,"d":"0.00"}}]
[]
[null,"Carried to section summary / …",{"$nulls":4},{"$f":"SUM(G548:G656)","v":{"v":0,"d":"0.00"}}]
[]
[null,"SECTION 2"]
[]
[null,"BILL NO. 5"]
[]
[null,"WATERPROOFING"]
[]
[null,"WORK GROUP ALLOCATION"]
[]
[null,"Unless otherwise stated, all items in this Bill will be allocated to Work Group 120 - Waterproofing"]
[]
[null,"PREAMBLES"]
[]
[null,"The General Preambles for Trades (2017 edition) as published by the Association of South African Quantity Surveyors shall be deemed to be incorporated in these bills of quantities and no claims arising from brevity of description of items fully described in the said General Preambles will be entertained"]
[]
[null,"The following \"Supplementary Preambles\" are incorporated in this bill to satisfy the requirements of the project and shall take precedence over the provisions of the said General Preambles"]
[]
[null,"SUPPLEMENTARY PREAMBLES"]
[]
[null,"Waterproofing:"]
[]
[null,"Waterproofing of roofs, basements, etc shall be laid under a ten year guarantee.  Waterproofing to roofs shall be laid to even falls to outlets, etc with necessary ridges, hips and valleys. Descriptions of sheet or membrane waterproofing shall be deemed to include additional labour to turn-ups and turn-downs"]
[]
[null,"DAMPPROOFING OF WALLS AND FLOORS"]
[]
[null,"One layer 375 micron embossed polyethylene dampproof course (SANS 952-1985 type B):"]
[]
[{"v":1,"d":"1 "},"In walls",null,"m²",{"v":109,"d":"109 "},null,{"$f":"ROUND(E685*F685,2)","v":{"v":0,"d":"0.00"}}]
[]
[{"v":2,"d":"2 "},"In walls vertically at reveals",null,"m²",{"v":210,"d":"210 "},null,{"$f":"ROUND(E687*F687,2)","v":{"v":0,"d":"0.00"}}]
[]
[null,"One layer 250 micron green polyethylene waterproof sheeting (SANS 952-1985 type C) sealed at laps with PVC self-adhesive tape:"]
[]
[{"v":3,"d":"3 "},"Under surface beds",null,"m²",{"v":409,"d":"409 "},null,{"$f":"ROUND(E691*F691,2)","v":{"v":0,"d":"0.00"}}]
[]
[null,"JOINT SEALANTS ETC"]
[]
[null,"Two- part grey polysulphide sealing compound including backing cord, bond breaker, primer, etc"]
[]
[{"v":4,"d":"4 "},"6 x 10mm In saw cut joints in floors",null,"m",{"v":179,"d":"179 "},null,{"$f":"ROUND(E697*F697,2)","v":{"v":0,"d":"0.00"}}]
[]
[null,"White silicone sealing compound"]
[]
[{"v":5,"d":"5 "},"6 x 10mm in joints",null,"m",{"v":179,"d":"179 "},null,{"$f":"ROUND(E701*F701,2)","v":{"v":0,"d":"0.00"}}]
[]
[null,"Carried to section summary / …",{"$nulls":4},{"$f":"SUM(G658:G701)","v":{"v":0,"d":"0.00"}}]
[]
[null,"SECTION 2"]
[]
[null,"BILL NO. 6"]
[]
[null,"ROOF COVERINGS"]
[]
[null,"WORK GROUP ALLOCATION"]
[]
[null,"The items in this Bill will be allocated to Work Groups as indicated in brackets at the ends of headings or descriptions"]
[]
[null,"PREAMBLES"]
[]
[null,"The General Preambles for Trades (2017 edition) as published by the Association of South African Quantity Surveyors shall be deemed to be incorporated in these bills of quantities and no claims arising from brevity of description of items fully described in the said General Preambles will be entertained"]
[]
[null,"The following \"Supplementary Preambles\" are incorporated in this bill to satisfy the requirements of the project and shall take precedence over the provisions of the said General Preambles"]
[]
[null,"SUPPLEMENTARY PREAMBLES"]
[]
[null,"Profiled metal roof sheeting and accessories shall be supplied with a 10 year guarantee and be installed by an approved installer"]
[]
[null,"All fixing holes shall be drilled and not punched"]
[]
[null,"Roof covering accessories shall be manufactured from the same material as used for roof covering"]
[]
[null,"PROFILED METAL SHEETING AND ACCESSORIES (WORK GROUP 124)"]
[]
[null,"0,58mm Galvanised \"Chromadek\"  pre-painted roof sheeting in single-length sheets, fixed to cold formed lipped channel at 1000mm c/c on sisalation/PVC underlay:"]
[]
[{"v":1,"d":"1 "},"Roof coverings with pitch not exceeding 25 degrees",null,"m²",{"v":608,"d":"608 "},null,{"$f":"ROUND(E733*F733,2)","v":{"v":0,"d":"0.00"}}]
[]
[null,"Accessories:"]
[]
[{"v":2,"d":"2 "},"0.8mm Aluminium barge flashings 605mm girth",null,"m",{"v":139,"d":"139 "},null,{"$f":"ROUND(E737*F737,2)","v":{"v":0,"d":"0.00"}}]
[]
[null,"PROFILED POLYCARBONATE SHEETING AND ACCESSORIES (WORK GROUP 122)"]
[]
[null,"0.47mm IBR profile roof sheeting fixed to intermediate coated steel purlins at 1200mm c/c with 65mm fixtite metal fastners. Side laps to be stitched at 500mm c/c between purlins with 22mm metal stitching fastener in accordance with manufaturer's recommedations:"]
[]
[{"v":3,"d":"3 "},"Side cladding",null,"m²",{"v":77,"d":"77 "},null,{"$f":"ROUND(E743*F743,2)","v":{"v":0,"d":"0.00"}}]
[]
[null,"ROOF AND WALL INSULATION (WORK GROUP 122)"]
[]
[null,"Heavy industrial grade aluminium foil based insulation:"]
[]
[{"v":4,"d":"4 "},"Two sided bubble insulation membrane",null,"m²",{"v":551,"d":"551 "},null,{"$f":"ROUND(E749*F749,2)","v":{"v":0,"d":"0.00"}}]
[]
[null,"Carried to section summary / …",{"$nulls":4},{"$f":"SUM(G707:G750)","v":{"v":0,"d":"0.00"}}]
[]
[null,"SECTION 2"]
[]
[null,"BILL NO. 7"]
[]
[null,"CARPENTRY AND JOINERY"]
[]
[null,"WORK GROUP ALLOCATION"]
[]
[null,"Unless otherwise stated, all items in this Bill will be allocated to Work Group 126 - Carpentry & Joinery"]
[]
[null,"PREAMBLES"]
[]
[null,"The General Preambles for Trades (2017 edition) as published by the Association of South African Quantity Surveyors shall be deemed to be incorporated in these bills of quantities and no claims arising from brevity of description of items fully described in the said General Preambles will be entertained"]
[]
[null,"The following \"Supplementary Preambles\" are incorporated in this bill to satisfy the requirements of the project and shall take precedence over the provisions of the said General Preambles"]
[]
[null,"SUPPLEMENTARY PREAMBLES"]
[]
[null,"Fixing:"]
[]
[null,"Items described as \"nailed\" shall be deemed to be fixed with hardened steel nails or pins, or to be shot-pinned, to brickwork or concrete"]
[]
[null,"Items described as \"plugged\" shall be deemed to include screwing to fibre, plastic or metal plugs at not exceeding 500mm centres, and where described as \"bolted\", the bolts have been given separately elsewhere"]
[]
[null,"Joinery:"]
[]
[null,"Descriptions of frames shall be deemed to include frames, transomes, rails, etc"]
[]
[null,"Descriptions of hardwood joinery shall be deemed to include sinking and pelleting heads and nuts of bolts"]
[]
[null,"Particle board"]
[]
[null,"All particle board shall comply with SANS 50312 having the required marking as per SANS 50312/EN 312"]
[]
[null,"Decorative thermosetting plastic laminate covering:"]
[]
[null,"Laminate covering shall be glued under pressure and edge strips of same shall be butt jointed at junctions with adjacent similar finish"]
[]
[null,"Sizes:"]
[]
[null,"Sizes are nominal and the Contractor shall make allowance in his prices for minor variances in stated finished sizes of timber doors, door members, door frames, architraves, etc"]
[]
[null,"Prices"]
[]
[null,"Prices for all joinery work are to include for general framing, housing and notching, arris rounded angles, glueing, blocking, planting on, screwing, adhesives, dowels, pellets, cross tongues, screws and nails and setting up complete and also for all square cutting and waste. Tops shall be secured with metal or hardwood buttons."]
[]
[null,"FLOORS, ETC"]
[]
[null,"SKIRTINGS"]
[]
[null,"Wrought meranti:"]
[]
[{"v":1,"d":"1 "},"19 x 76mm Skirtings including 19mm quadrant bead, nailed",null,"m",{"v":208,"d":"208 "},null,{"$f":"ROUND(E805*F805,2)","v":{"v":0,"d":"0.00"}}]
[]
[null,"DOORS, ETC"]
[]
[null,"Semi-solid flush doors with gaboon veneer, hung to steel frames:"]
[]
[{"v":2,"d":"2 "},"44mm Door 820 x 2025mm high (TP-03)",null,"No",{"v":6,"d":"6 "},null,{"$f":"ROUND(E811*F811,2)","v":{"v":0,"d":"0.00"}}]
[]
[{"v":3,"d":"3 "},"44mm Door 1020 x 2025mm high (TP-05)",null,"No",{"v":1,"d":"1 "},null,{"$f":"ROUND(E813*F813,2)","v":{"v":0,"d":"0.00"}}]
[]
[null,"Solid flush doors with horizontal curved-in grooves and gaboon veneer, hung to aluminium frames:"]
[]
[{"v":4,"d":"4 "},"40mm Door 1020 x 2025mm high (TP-04)",null,"No",{"v":2,"d":"2 "},null,{"$f":"ROUND(E817*F817,2)","v":{"v":0,"d":"0.00"}}]
[]
[null,"Solid hardwood doors with slatted panels on both sides and concealed edges to suit opening, including three (3) hinges per leaf (measured elsewhere) hung to aluminium frames:"]
[]
[{"v":5,"d":"5 "},"44mm Folding door 2400 x 2060mm high with concealed edges (TP-12)",null,"No",{"v":1,"d":"1 "},null,{"$f":"ROUND(E821*F821,2)","v":{"v":0,"d":"0.00"}}]
[]
[{"v":6,"d":"6 "},"44mm Door 820 x 2060mm high with concealed edges (TP-14)",null,"No",{"v":1,"d":"1 "},null,{"$f":"ROUND(E823*F823,2)","v":{"v":0,"d":"0.00"}}]
[]
[null,"SUPPLEMENTARY PREAMBLES"]
[]
[null,"Fire doors:"]
[]
[null,"Fire doors are to be in accordance with SANS 1253"]
[]
[null,"DUCT COVERS"]
[]
[null,"Exterior grade hardwood  P.A R., coated and treated:"]
[]
[{"v":7,"d":"7 "},"50 x 300mm Timber slats coated and treated",null,"No",{"v":26,"d":"26 "},null,{"$f":"ROUND(E835*F835,2)","v":{"v":0,"d":"0.00"}}]
[]
[null,"NOTICEBOARDS, KEYBOARDS, ETC"]
[]
[null,"Pinning boards:"]
[]
[{"v":8,"d":"8 "},"Pinning board 900 x 1200mm high overall formed of 9mm thick pinning material fixed to brickwork with suitable contact adhesive and framed with aluminium frame, plugged",null,"No",{"v":4,"d":"4 "},null,{"$f":"ROUND(E841*F841,2)","v":{"v":0,"d":"0.00"}}]
[]
[null,"Carried to section summary / …",{"$nulls":4},{"$f":"SUM(G752:G841)","v":{"v":0,"d":"0.00"}}]
[]
[null,"SECTION 2"]
[]
[null,"BILL NO. 8"]
[]
[null,"CEILINGS, PARTITIONS AND ACCESS FLOORING"]
[]
[null,"WORK GROUP ALLOCATION"]
[]
[null,"Unless otherwise stated, all items in this Bill will be allocated to Work Group 129 - Ceilings"]
[]
[null,"PREAMBLES"]
[]
[null,"The General Preambles for Trades (2017 edition) as published by the Association of South African Quantity Surveyors shall be deemed to be incorporated in these bills of quantities and no claims arising from brevity of description of items fully described in the said General Preambles will be entertained"]
[]
[null,"The following \"Supplementary Preambles\" are incorporated in this bill to satisfy the requirements of the project and shall take precedence over the provisions of the said General Preambles"]
[]
[null,"SUPPLEMENTARY PREAMBLES"]
[]
[null,"Fixing:"]
[]
[null,"Items described as \"nailed\" shall be deemed to be fixed with hardened steel nails or pins, or to be shot-pinned, to brickwork or concrete"]
[]
[null,"Items described as \"plugged\" shall be deemed to include screwing to fibre, plastic or metal plugs at not exceeding 500mm centres, and where described as \"bolted\", the bolts have been given separately elsewhere"]
[]
[null,"Ceilings:"]
[]
[null,"Unless otherwise described, ceilings shall be deemed to be horizontal"]
[]
[null,"Bulkheads:"]
[]
[null,"Bulkheads are defined as those portions of ceilings which are stepped down from the general ceiling level in a particular room or area and which generally occur along the perimeter. Their purpose is either to conceal services or to create architectural features"]
[]
[null,"Bulkheads have only been described as such where they conform to the above definition and where the horizontal, vertical or sloping dimensions do not exceed 1200mm. Where these dimensions are more than 1200mm such portions of ceilings have been included in the appropriate general items of ceilings"]
[]
[null,"Unless otherwise described, bulkheads shall be deemed to be horizontal along the length"]
[]
[null,"Openings:"]
[]
[null,"Prices for openings for light fittings, ventilation grilles, air conditioning diffusers, etc are to include for any necessary additional support, trimming around, etc"]
[]
[null,"Steel components:"]
[]
[null,"All steel components for ceilings, partitions, etc are to be galvanised in accordance with SANS 121"]
[]
[null,"INSULATION"]
[]
[null,"Non-combustible fibreglass insulation of a density of not less than 10kg/m3 bonded with an inert thermo-setting resin:"]
[]
[{"v":1,"d":"1 "},"120mm Insulation in blanket form, closely fitted and laid on top of brandering between roof timbers",null,"m²",{"v":603,"d":"603 "},null,{"$f":"ROUND(E893*F893,2)","v":{"v":0,"d":"0.00"}}]
[]
[null,"Flexible acoustic insulation:"]
[]
[{"v":2,"d":"2 "},"50mm Thick laid on top of timber and/or steel structure",null,"m²",{"v":311,"d":"311 "},null,{"$f":"ROUND(E897*F897,2)","v":{"v":0,"d":"0.00"}}]
[]
[null,"NAILED UP CEILINGS"]
[]
[null,"12.5mm Thick Fibre-cement plain ceiling boards with H-profile galvanised steel jointing strips:"]
[]
[{"v":3,"d":"3 "},"Ceilings including 38 x 38mm sawn softwood brandering at 400mm centres and cross brandering at 400mm centres",null,"m²",{"v":76,"d":"76 "},null,{"$f":"ROUND(E903*F903,2)","v":{"v":0,"d":"0.00"}}]
[]
[{"v":4,"d":"4 "},"Sloping  ceilings  including  38 x 38mm sawn softwood brandering at 400mm centres",null,"m²",{"v":26,"d":"26 "},null,{"$f":"ROUND(E905*F905,2)","v":{"v":0,"d":"0.00"}}]
[]
[null,"9.5mm Thick rhinoboard with taped and skimmed flush joints:"]
[]
[{"v":5,"d":"5 "},"Ceilings including 38 x 38mm sawn softwood brandering at 400mm centres and cross brandering at 400mm centres",null,"m²",{"v":44,"d":"44 "},null,{"$f":"ROUND(E909*F909,2)","v":{"v":0,"d":"0.00"}}]
[]
[{"v":6,"d":"6 "},"Soffits and sides of horizontal bulkheads, size 1200 x 75mm deep, suspended exceeding 2m but not exceeding 4m below concrete soffits",null,"m",{"v":47,"d":"47 "},null,{"$f":"ROUND(E911*F911,2)","v":{"v":0,"d":"0.00"}}]
[]
[{"v":7,"d":"7 "},"Extra over ceiling for 600 x 600mm trap door of 38 x 38mm wrought softwood rebated framing with one cross brander, covered with ceiling board and fitted flush in opening, including necessary trimmers around",null,"No",{"v":5,"d":"5 "},null,{"$f":"ROUND(E913*F913,2)","v":{"v":0,"d":"0.00"}}]
[]
[null,"Gypsum plasterboard cornices:"]
[]
[{"v":8,"d":"8 "},"75mm Coved cornices",null,"m",{"v":345,"d":"345 "},null,{"$f":"ROUND(E917*F917,2)","v":{"v":0,"d":"0.00"}}]
[]
[null,"SUSPENDED CEILINGS"]
[]
[null,"SUPPLEMENTARY PREAMBLES"]
[]
[null,"Proprietary suspended ceilings:"]
[]
[null,"Hangers, suspension grids, \"lay-in\" panels, etc are to be in accordance with the manufacturers' recommendations"]
[]
[null,"Electrical light fittings, diffusers, panels, etc are generally \"lay-in\" units of the same dimensions as the suspension grid described and an allowance must be made in the rates accordingly for their support inclusive of any flexibility in setting out that may be required (ceiling panels have not been deducted and pricing is to take cognisance thereof)"]
[]
[null,"Flush plastered gypsum plasterboard suspended ceilings:"]
[]
[null,"Ceilings shall comprise 12,5mm gypsum plasterboard boards screwed to and including screw-up suspension grid consisting of main tees at 1200mm centres and galvanised steel capped cross tees at 400mm centres and with tape fixed over joints and the whole finished with gypsum plaster trowelled to a smooth polished surface"]
[]
[null,"The grid shall be suspended by means of galvanised steel L-section hangers at suitable centres, securely shot-pinned or screwed to concrete, steel or wood"]
[]
[null,"Flush plastered gypsum plasterboard suspended bulkheads:"]
[]
[null,"Bulkheads shall comprise galvanised steel studding of 63,5mm top and bottom tracks with vertical studs at maximum 400mm centres, pop-riveted to the top and bottom tracks with similar additional vertical studs as necessary at abutments, ends, etc and covered as described with plasterboard screwed to studding with drywall screws at maximum 300mm centres. Boards shall be butt jointed and finished with tape and jointing compound and the whole finished with gypsum plaster trowelled to a smooth polished surface to the thickness recommended by the manufacturer"]
[]
[null,"Descriptions shall be deemed to include any additional studs at ends and intersections, corner beads, cornices at junctions with ceilings, jointing compound, tape, etc"]
[]
[null,"600 x 1200 x 15mm pre-painted acoustic panels on exposed suspension grid system including hangers, necessary hold-down clips and wedges, etc:"]
[]
[{"v":9,"d":"9 "},"Ceilings suspended not exceeding 1m below timber purlins at 950mm centres (trusses at 1000m centres)",null,"m²",{"v":577,"d":"577 "},null,{"$f":"ROUND(E943*F943,2)","v":{"v":0,"d":"0.00"}}]
[]
[null,"Cornices, perimeter trims, etc to suspended ceilings:"]
[]
[{"v":10,"d":"10 "},"30 x 30mm Pre-painted aluminium shadow line perimeter trims, plugged",null,"m",{"v":345,"d":"345 "},null,{"$f":"ROUND(E947*F947,2)","v":{"v":0,"d":"0.00"}}]
[]
[null,"PARTITIONS, ETC"]
[]
[null,"RW 45dB - 60 minutes fire rating steel stud drywall partitions, consisting of stud and track system with 102 x 35mm \"Drywall Ultrasteel\" studs at 600mm centres friction fitted into head track and floor track and clad on both sides with 15mm thick \"FireStop\" board fixed at 220mm centres using 25mm \"RhinoBoard Sharp Point\" screws, external angles to have Drywall cornerbeads attached and all joints to be covered with \"RhinoTape\" and finished with two layers of \"RhinoGlide\" applied and lightly sanded down, leaving wall surface prepared for painting (elsewhere measured):"]
[]
[{"v":11,"d":"11 "},"Partitions 3000mm high with bottom and top tracks plugged",null,"m",{"v":27,"d":"27 "},null,{"$f":"ROUND(E953*F953,2)","v":{"v":0,"d":"0.00"}}]
[]
[{"v":12,"d":"12 "},"Extra over partition 3000mm high for vertical abutment",null,"No",{"v":5,"d":"5 "},null,{"$f":"ROUND(E955*F955,2)","v":{"v":0,"d":"0.00"}}]
[]
[{"v":13,"d":"13 "},"Extra over partition 3000mm high for corner",null,"No",{"v":2,"d":"2 "},null,{"$f":"ROUND(E957*F957,2)","v":{"v":0,"d":"0.00"}}]
[]
[{"v":14,"d":"14 "},"Extra over partition 3000mm high for T-intersection",null,"No",{"v":3,"d":"3 "},null,{"$f":"ROUND(E959*F959,2)","v":{"v":0,"d":"0.00"}}]
[]
[{"v":15,"d":"15 "},"Extra over partition 3000mm high for fair end",null,"No",{"v":2,"d":"2 "},null,{"$f":"ROUND(E961*F961,2)","v":{"v":0,"d":"0.00"}}]
[]
[null,"Carried to section summary / …",{"$nulls":4},{"$f":"SUM(G844:G961)","v":{"v":0,"d":"0.00"}}]
[]
[null,"SECTION 2"]
[]
[null,"BILL NO. 9"]
[]
[null,"FLOOR COVERINGS, WALL LININGS, ETC"]
[]
[null,"WORK GROUP ALLOCATION"]
[]
[null,"Unless otherwise stated, all items in this Bill will be allocated to Work Group 130 - Resilient floor and wall coverings"]
[]
[null,"PREAMBLES"]
[]
[null,"The General Preambles for Trades (2017 edition) as published by the Association of South African Quantity Surveyors shall be deemed to be incorporated in these bills of quantities and no claims arising from brevity of description of items fully described in the said General Preambles will be entertained"]
[]
[null,"The following \"Supplementary Preambles\" are incorporated in this bill to satisfy the requirements of the project and shall take precedence over the provisions of the said General Preambles"]
[]
[null,"SUPPLEMENTARY PREAMBLES"]
[]
[null,"Fixing:"]
[]
[null,"Floor coverings, wall linings, etc shall, where applicable, be fixed with adhesive as recommended by the manufacturers of the flooring, linings, etc"]
[]
[null,"Woodblock flooring:"]
[]
[null,"Woodblock flooring shall be fixed with bitumen or a similar approved adhesive"]
[]
[null,"Sanding:"]
[]
[null,"Sanding shall be done by using dustless sanders"]
[]
[null,"Where woodblock flooring is to be laid in areas which were previously covered by woodblocks, there may still be traces of existing bitumen and/or adhesive on the floor. The substrate must therefor be suitably prepared for the proper relaying of woodblock flooring and prices must include therefor, all to the approval of the Principal Agent"]
[]
[null,"FLOOR COVERINGS"]
[]
[null,"Timber flooring (Allow a Prime Cost Amount of R 750/m2 delivered to site) laid on existing timber joists on subfloors:"]
[]
[{"v":1,"d":"1 "},"On floors",null,"m²",{"v":50,"d":"50 "},null,{"$f":"ROUND(E1001*F1001,2)","v":{"v":0,"d":"0.00"}}]
[]
[null,"2.6mm \"Smoked Chill Oak\" flexible vinyl sheeting:"]
[]
[{"v":2,"d":"2 "},"On floors",null,"m²",{"v":60,"d":"60 "},null,{"$f":"ROUND(E1005*F1005,2)","v":{"v":0,"d":"0.00"}}]
[]
[null,"450 x 450 x 2mm Antistatic semi flexible vinyl tiles:"]
[]
[{"v":3,"d":"3 "},"On floors",null,"m²",{"v":50,"d":"50 "},null,{"$f":"ROUND(E1009*F1009,2)","v":{"v":0,"d":"0.00"}}]
[]
[null,"SKIRTINGS, NOSINGS, ETC"]
[]
[null,"Skirtings, nosings, etc:"]
[]
[{"v":4,"d":"4 "},"70mm Clip-top capping skirtings to vinyl sheeting",null,"m",{"v":31,"d":"31 "},null,{"$f":"ROUND(E1015*F1015,2)","v":{"v":0,"d":"0.00"}}]
[]
[null,"POLISH, SEALERS, ETC"]
[]
[{"v":5,"d":"5 "},"Two coats wax polish on vinyl flooring",null,"m²",{"v":110,"d":"110 "},null,{"$f":"ROUND(E1019*F1019,2)","v":{"v":0,"d":"0.00"}}]
[]
[null,"Carried to section summary / …",{"$nulls":4},{"$f":"SUM(G964:G1019)","v":{"v":0,"d":"0.00"}}]
[]
[null,"SECTION 2"]
[]
[null,"BILL NO. 10"]
[]
[null,"IRONMONGERY"]
[]
[null,"WORK GROUP ALLOCATION"]
[]
[null,"Unless otherwise stated, all items in this Bill will be allocated to Work Group 132 - Ironmongery"]
[]
[null,"PREAMBLES"]
[]
[null,"The General Preambles for Trades (2017 edition) as published by the Association of South African Quantity Surveyors shall be deemed to be incorporated in these bills of quantities and no claims arising from brevity of description of items fully described in the said General Preambles will be entertained"]
[]
[null,"The following \"Supplementary Preambles\" are incorporated in this bill to satisfy the requirements of the project and shall take precedence over the provisions of the said General Preambles"]
[]
[null,"SUPPLEMENTARY PREAMBLES"]
[]
[null,"Proprietary items:"]
[]
[null,"Where applicable, the manufacturers' names or product catalogue titles are given in sub-headings preceding the itemsNote that the manufacturers names specified in this trade are for the purposes of competitive pricing. Prices are to be based on the specific products/articles specified.On request, returnable samples are to be provided to the Project Manager for consideration"]
[]
[null,"Locks:"]
[]
[null,"Notwithstanding Clause 2, Item 3 of the \"Ironmongery\" trade of the \"Standard System of Measuring Building Work, Seventh Edition\", descriptions of locks shall be deemed to include two keys per lock"]
[]
[null,"Finishes to ironmongery:"]
[]
[null,"Where applicable, finishes to ironmongery are indicated by suffixes in accordance with the following list: BS\tSatin bronze lacqueredCH\tChromium plated SC\tSatin chromium plated SE\tSilver enamelled GE\tGrey enamelledAN\tAnodised natural AS\tAnodised silver AB\tAnodised bronze AG\tAnodised gold ABL\tAnodised black PB\tPolished brass PL\tPolished and lacquered PT\tEpoxy coated SD\tSandedBBS\tBrushed stainless steel"]
[]
[null,"HINGES, BOLTS, ETC"]
[]
[{"v":1,"d":"1 "},"Surface mounted aluminium indicator bolt set",null,"No",{"v":8,"d":"8 "},null,{"$f":"ROUND(E1055*F1055,2)","v":{"v":0,"d":"0.00"}}]
[]
[{"v":2,"d":"2 "},"100mm Stainless steel ball bearing butt hinge with stainless steel screws",null,"No",{"v":15,"d":"15 "},null,{"$f":"ROUND(E1057*F1057,2)","v":{"v":0,"d":"0.00"}}]
[]
[null,"LOCKS"]
[]
[null,"\"EN-SUITE\" LOCKS"]
[]
[null,"The following locks are to be suitable for master and grand master key operation"]
[]
[{"v":3,"d":"3 "},"Three-lever upright mortice lockset",null,"No",{"v":2,"d":"2 "},null,{"$f":"ROUND(E1065*F1065,2)","v":{"v":0,"d":"0.00"}}]
[]
[{"v":4,"d":"4 "},"Grand master key",null,"No",{"v":1,"d":"1 "},null,{"$f":"ROUND(E1067*F1067,2)","v":{"v":0,"d":"0.00"}}]
[]
[{"v":5,"d":"5 "},"Brass padlock",null,"No",{"v":2,"d":"2 "},null,{"$f":"ROUND(E1069*F1069,2)","v":{"v":0,"d":"0.00"}}]
[]
[null,"HANDLES"]
[]
[null,"Approved handles:"]
[]
[{"v":6,"d":"6 "},"Anodised aluminium dove pull handle with 45 x 192mm back plates fixed back-to-back with male/female screws",null,"Pairs",{"v":9,"d":"9 "},null,{"$f":"ROUND(E1075*F1075,2)","v":{"v":0,"d":"0.00"}}]
[]
[null,"104 x 30mm Perspex room number plates with white  25mm high \"Helvetica\" engraved letters and numbers on clear background, screw-fixed to timber doors with two chrome-plated self-tapping screws:"]
[]
[null,"PUSH PLATES AND KICK PLATES"]
[]
[null,"1,2mm Thick satin finished stainless steel plates countersunk screwed along edges at not exceeding 200mm centres:"]
[]
[{"v":7,"d":"7 "}," 300 x 150mm High push plate",null,"No",{"v":1,"d":"1 "},null,{"$f":"ROUND(E1083*F1083,2)","v":{"v":0,"d":"0.00"}}]
[]
[{"v":8,"d":"8 "},"1020 x 300mm High kick plate",null,"No",{"v":2,"d":"2 "},null,{"$f":"ROUND(E1085*F1085,2)","v":{"v":0,"d":"0.00"}}]
[]
[null,"DOOR CLOSERS"]
[]
[null,"Approved door furniture:"]
[]
[{"v":9,"d":"9 "},"Door closer",null,"No",{"v":3,"d":"3 "},null,{"$f":"ROUND(E1091*F1091,2)","v":{"v":0,"d":"0.00"}}]
[]
[null,"SUNDRIES"]
[]
[null,"Approved sundries:"]
[]
[{"v":10,"d":"10 "},"Door stop, plugged",null,"No",{"v":3,"d":"3 "},null,{"$f":"ROUND(E1097*F1097,2)","v":{"v":0,"d":"0.00"}}]
[]
[null,"BATHROOM FITTINGS"]
[]
[null,"Approved fittings:"]
[]
[{"v":11,"d":"11 "},"Soap dispenser, plugged",null,"No",{"v":1,"d":"1 "},null,{"$f":"ROUND(E1103*F1103,2)","v":{"v":0,"d":"0.00"}}]
[]
[{"v":12,"d":"12 "},"Wall-mounted automated hands free hand dryer",null,"No",{"v":6,"d":"6 "},null,{"$f":"ROUND(E1105*F1105,2)","v":{"v":0,"d":"0.00"}}]
[]
[{"v":13,"d":"13 "},"Stainless steel soap dish, plugged",null,"No",{"v":7,"d":"7 "},null,{"$f":"ROUND(E1107*F1107,2)","v":{"v":0,"d":"0.00"}}]
[]
[{"v":14,"d":"14 "},"Stainless steel lockable toilet roll holder, plugged",null,"No",{"v":8,"d":"8 "},null,{"$f":"ROUND(E1109*F1109,2)","v":{"v":0,"d":"0.00"}}]
[]
[{"v":15,"d":"15 "},"Paper towel dispenser and waste bin combination, plugged",null,"No",{"v":6,"d":"6 "},null,{"$f":"ROUND(E1111*F1111,2)","v":{"v":0,"d":"0.00"}}]
[]
[{"v":16,"d":"16 "},"Stainless steel sanitary towel disposal bin, plugged",null,"No",{"v":6,"d":"6 "},null,{"$f":"ROUND(E1113*F1113,2)","v":{"v":0,"d":"0.00"}}]
[]
[null,"Approved fittings:"]
[]
[{"v":17,"d":"17 "},"Stainless steel back grab rail 750mm long, plugged",null,"No",{"v":2,"d":"2 "},null,{"$f":"ROUND(E1117*F1117,2)","v":{"v":0,"d":"0.00"}}]
[]
[{"v":18,"d":"18 "},"Stainless steel side grab rail 874mm girth, plugged",null,"No",{"v":2,"d":"2 "},null,{"$f":"ROUND(E1119*F1119,2)","v":{"v":0,"d":"0.00"}}]
[]
[{"v":19,"d":"19 "},"Fold down shower seat, plugged",null,"No",{"v":1,"d":"1 "},null,{"$f":"ROUND(E1121*F1121,2)","v":{"v":0,"d":"0.00"}}]
[]
[null,"FITTINGS, ETC"]
[]
[null,"Grade 304 stainless steel:"]
[]
[{"v":20,"d":"20 "},"500 x 180 x 492mm Deep overal stainless steel wall-mounted \"First Aid\" cabinet with sloping top, internal shelf and drop-down door",null,"No",{"v":2,"d":"2 "},null,{"$f":"ROUND(E1127*F1127,2)","v":{"v":0,"d":"0.00"}}]
[]
[null,"Carried to section summary / …",{"$nulls":4},{"$f":"SUM(G1022:G1127)","v":{"v":0,"d":"0.00"}}]
[]
[null,"SECTION 2"]
[]
[null,"BILL NO. 11"]
[]
[null,"STRUCTURAL STEELWORK"]
[]
[null,"WORK GROUP ALLOCATION"]
[]
[null,"Unless otherwise stated, all items in this Bill will be allocated to Work Group 134 - Structural Steelwork in Buildings"]
[]
[null,"PREAMBLES"]
[]
[null,"The General Preambles for Trades (2017 edition) as published by the Association of South African Quantity Surveyors shall be deemed to be incorporated in these bills of quantities and no claims arising from brevity of description of items fully described in the said General Preambles will be entertained"]
[]
[null,"The following \"Supplementary Preambles\" are incorporated in this bill to satisfy the requirements of the project and shall take precedence over the provisions of the said General Preambles"]
[]
[null,"SUPPLEMENTARY PREAMBLES"]
[]
[null,"Specification:"]
[]
[null,"All structural steel must comply with SANS 1200H (Degree of Accuracy II)"]
[]
[null,"All hot rolled structural steel sections must comply with SANS 1431 grade 300W, unless otherwise specified on the drawings"]
[]
[null,"Unless otherwise designated, all bolts and nuts will be grade 4.6 to SANS 135 and BS 916. Descriptions of bolts shall be deemed to include nuts and washers. Descriptions of L-shaped and U-shaped anchor bolts shall be deemed to include bending, threading, nuts and washers and embedding in concrete. Descriptions of expansion anchors and bolts and chemical anchors and bolts shall be deemed to include nuts, washers and mortices in brickwork or concrete"]
[]
[null,"All connections must be welded all round with a 6mm fillet weld, unless otherwise specified on the drawings"]
[]
[null,"Drawings and shop details:"]
[]
[null,"The Contractor shall be responsible for preparing shop drawings and details which must be submitted to the Principal Agent for approval prior to commencement of fabrication.  Before commencing any fabrication, the steel fabricator must check the accessibility of the site and design the sizes of individual parts accordingly"]
[]
[null,"Hot-dipped galvanizing:"]
[]
[null,"After fabrication and prior to delivery to site, all steelwork described as hot-dipped galvanized, is to be descaled and thoroughly cleaned by pickling, after which it is to be hot dip galvanized in accordance with the requirements of SANS 121/1501461"]
[]
[null,"Descriptions:"]
[]
[null,"Descriptions of bolts shall be deemed to include nuts and washers"]
[]
[null,"Descriptions of L-shaped and U-shaped anchor bolts shall be deemed to include bending, threading, nuts and washers and embedding in concrete"]
[]
[null,"Descriptions of expansion anchors and bolts and chemical anchors and bolts shall be deemed to include nuts, washers and mortices in brickwork or concrete"]
[]
[null,"STEEL COLUMNS AND BEAMS"]
[]
[null,"Welded columns in single lengths with flat base, cap, bearer and connection plates, bolted to concrete:"]
[]
[{"v":1,"d":"1 "},"203  x 203mm x 46kg/m I-section universal columns",null,"t",0.87,null,{"$f":"ROUND(E1179*F1179,2)","v":{"v":0,"d":"0.00"}}]
[]
[{"v":2,"d":"2 "},"254 x 146mm x 31kg/m I-section universal columns",null,"t",1.46,null,{"$f":"ROUND(E1181*F1181,2)","v":{"v":0,"d":"0.00"}}]
[]
[{"v":3,"d":"3 "},"305 x 165mm x 46kg/m I-section universal columns",null,"t",3.31,null,{"$f":"ROUND(E1183*F1183,2)","v":{"v":0,"d":"0.00"}}]
[]
[null,"Welded beams in single lengths with flat bearer and connection plates, bolted to steel:"]
[]
[{"v":4,"d":"4 "},"IPE - AA 140 x 73  I-section rafters",null,"t",0.17,null,{"$f":"ROUND(E1187*F1187,2)","v":{"v":0,"d":"0.00"}}]
[]
[{"v":5,"d":"5 "},"203  x 133mm x 30kg/m I-section universal beams",null,"t",1.49,null,{"$f":"ROUND(E1189*F1189,2)","v":{"v":0,"d":"0.00"}}]
[]
[{"v":6,"d":"6 "},"101.6 x 3mm x 8kg/m I-section universal beams",null,"t",0.24,null,{"$f":"ROUND(E1191*F1191,2)","v":{"v":0,"d":"0.00"}}]
[]
[{"v":7,"d":"7 "},"254 x 146mm x 31kg/m I-section universal beams",null,"t",{"v":1.1,"d":"1.10"},null,{"$f":"ROUND(E1193*F1193,2)","v":{"v":0,"d":"0.00"}}]
[]
[{"v":8,"d":"8 "},"305 x 165mm x 40kg/m I-section universal beams",null,"t",{"v":2.4,"d":"2.40"},null,{"$f":"ROUND(E1195*F1195,2)","v":{"v":0,"d":"0.00"}}]
[]
[null,"STEEL PURLINS, GIRTS, BRACING, ETC."]
[]
[null,"Purlins and girts, bolted to steel:"]
[]
[{"v":9,"d":"9 "},"125 x 65 x 20 x 2,5mm Thick cold-formed lipped channel purlins",null,"t",0.97,null,{"$f":"ROUND(E1201*F1201,2)","v":{"v":0,"d":"0.00"}}]
[]
[{"v":10,"d":"10 "},"125 x 75 x 20 x 2mm Thick cold-formed lipped channel purlins",null,"t",0.13,null,{"$f":"ROUND(E1203*F1203,2)","v":{"v":0,"d":"0.00"}}]
[]
[{"v":11,"d":"11 "},"150 x 50 x 20 x 2,5mm Thick cold-formed lipped channel purlins",null,"t",6.79,null,{"$f":"ROUND(E1205*F1205,2)","v":{"v":0,"d":"0.00"}}]
[]
[{"v":12,"d":"12 "},"250 x 75 x 20 x 3mm Thick cold-formed lipped channel purlins",null,"t",{"v":3,"d":"3.00"},null,{"$f":"ROUND(E1207*F1207,2)","v":{"v":0,"d":"0.00"}}]
[]
[null,"Welded bracing, anti-sag rails, etc with flat connection plates, bolted to steel:"]
[]
[{"v":13,"d":"13 "},"50 x 50 x 3mm Thick sag angle",null,"t",0.29,null,{"$f":"ROUND(E1211*F1211,2)","v":{"v":0,"d":"0.00"}}]
[]
[{"v":14,"d":"14 "},"60 x 60 x 6mm Thick angle false rafters",null,"t",0.34,null,{"$f":"ROUND(E1213*F1213,2)","v":{"v":0,"d":"0.00"}}]
[]
[{"v":15,"d":"15 "},"80 x 80 x 3.5mm Thick square hollow section",null,"t",0.18,null,{"$f":"ROUND(E1215*F1215,2)","v":{"v":0,"d":"0.00"}}]
[]
[{"v":16,"d":"16 "},"120 x 120 x 8mm Thick angle rafters",null,"t",1.05,null,{"$f":"ROUND(E1217*F1217,2)","v":{"v":0,"d":"0.00"}}]
[]
[null,"BASE PLATES, ETC."]
[]
[{"v":17,"d":"17 "},"20mm Thick base plates holed four for 20 diameter (bolts measured elsewhere in No. 18 base plates)",null,"t",0.23,null,{"$f":"ROUND(E1221*F1221,2)","v":{"v":0,"d":"0.00"}}]
[]
[null,"BOLTS, FASTENERS, ETC"]
[]
[{"v":18,"d":"18 "},"20mm Diameter chemical anchor",null,"No",{"v":604,"d":"604 "},null,{"$f":"ROUND(E1225*F1225,2)","v":{"v":0,"d":"0.00"}}]
[]
[null,"PAINTING"]
[]
[null,"Prepare and apply one galvanised iron primer to a DFT of 25-40 microns, one coat universal undercoat to a DFT of 25-35 microns and two coats of gloss enamel to a DFT of 25-35 microns per coat, on:"]
[]
[{"v":19,"d":"19 "},"Structural steel columns, beams, etc",null,"m²",{"v":349,"d":"349 "},null,{"$f":"ROUND(E1231*F1231,2)","v":{"v":0,"d":"0.00"}}]
[]
[{"v":20,"d":"20 "},"Steel purlins, girts, etc",null,"m²",{"v":409,"d":"409 "},null,{"$f":"ROUND(E1233*F1233,2)","v":{"v":0,"d":"0.00"}}]
[]
[null,"Paint testing:"]
[]
[{"v":21,"d":"21 "},"Provide the sum of Seventy Five Thousand for quality control inspection by an authorised independent inspection authority",null,"Item",{"v":1,"d":"1 "},null,{"$f":"ROUND(E1237*F1237,2)","v":{"v":0,"d":"0.00"}}]
[]
[{"v":22,"d":"22 "},"Profit (..........%)",null,"%IT"]
[]
[{"v":23,"d":"23 "},"General attendance (..........%)",null,"%IT"]
[]
[null,"Carried to section summary / …",{"$nulls":4},{"$f":"SUM(G1130:G1242)","v":{"v":0,"d":"0.00"}}]
[]
[null,"SECTION 2"]
[]
[null,"BILL NO. 12"]
[]
[null,"METALWORK"]
[]
[null,"WORK GROUP ALLOCATION"]
[]
[null,"Unless otherwise stated, all items in this Bill will be allocated to Work Group 136 - Metalwork"]
[]
[null,"PREAMBLES"]
[]
[null,"The General Preambles for Trades (2017 edition) as published by the Association of South African Quantity Surveyors shall be deemed to be incorporated in these bills of quantities and no claims arising from brevity of description of items fully described in the said General Preambles will be entertained"]
[]
[null,"The following \"Supplementary Preambles\" are incorporated in this bill to satisfy the requirements of the project and shall take precedence over the provisions of the said General Preambles"]
[]
[null,"SUPPLEMENTARY PREAMBLES"]
[]
[null,"Descriptions of bolts, anchors, etc:"]
[]
[null,"Descriptions of bolts shall be deemed to include nuts and washers"]
[]
[null,"Descriptions of expansion anchors and bolts and chemical anchors and bolts shall be deemed to include nuts, washers and mortices in brickwork or concrete"]
[]
[null,"Items described as \"holed for bolt(s)\" shall be deemed to exclude the bolts, unless otherwise described"]
[]
[null,"Items described as \"plugged\" shall be deemed to include screwing to fibre, plastic or metal plugs at not exceeding 600mm centres"]
[]
[null,"Fixing:"]
[]
[null,"Unless otherwise described, descriptions of items shall be deemed to include for fixing to brickwork or concrete  Where items are described as \"bolted\", the bolts are measured elsewhere as stated in clause N.7 of the Model Preambles"]
[]
[null,"References:"]
[]
[null,"References in descriptions of windows, doors, gates, refer to the respective types of windows, doors, etc. detailed in the Architect's window schedules bound into the back of these bills of quantities  Tenderers are to price the following items in conjunction with the above Architect's drawings, etc. and no claim arising from brevity of descriptions in these bills of quantities, of items shown on the Architect's drawings, etc. shall be entertained"]
[]
[null,"STEEL BALUSTRADES"]
[]
[null,"Welded and bolted patent balustrades to balconies and stairs:"]
[]
[{"v":1,"d":"1 "},"Horizontal balustrades 1000mm high, formed of continuous pipe top and bottom rails and stanchions bolted to concrete (bolts elsewhere)",null,"m",{"v":30,"d":"30 "},null,{"$f":"ROUND(E1285*F1285,2)","v":{"v":0,"d":"0.00"}}]
[]
[{"v":2,"d":"2 "},"Extra over for 45 degree bend",null,"No",{"v":2,"d":"2 "},null,{"$f":"ROUND(E1287*F1287,2)","v":{"v":0,"d":"0.00"}}]
[]
[{"v":3,"d":"3 "},"16mm Expansion bolt",null,"No",{"v":36,"d":"36 "},null,{"$f":"ROUND(E1289*F1289,2)","v":{"v":0,"d":"0.00"}}]
[]
[{"v":4,"d":"4 "},"16mm Chemical anchor with loose bolt",null,"No",{"v":36,"d":"36 "},null,{"$f":"ROUND(E1291*F1291,2)","v":{"v":0,"d":"0.00"}}]
[]
[null,"GALVANISED STEEL GATES, SCREENS, ETC"]
[]
[{"v":5,"d":"5 "},"Custom-made screen, 1652 x 2100mm high, spot welded to columns",null,"No",{"v":2,"d":"2 "},null,{"$f":"ROUND(E1295*F1295,2)","v":{"v":0,"d":"0.00"}}]
[]
[{"v":6,"d":"6 "},"Custom-made screen, 2796 x 5800mm high, spot welded to columns",null,"No",{"v":1,"d":"1 "},null,{"$f":"ROUND(E1297*F1297,2)","v":{"v":0,"d":"0.00"}}]
[]
[{"v":7,"d":"7 "},"Custom-made screen, 4906 x 8976mm high, spot welded to columns",null,"No",{"v":1,"d":"1 "},null,{"$f":"ROUND(E1299*F1299,2)","v":{"v":0,"d":"0.00"}}]
[]
[{"v":8,"d":"8 "},"Custom -made screen, 8261 x 2100mm high , spot welded to columns",null,"No",{"v":1,"d":"1 "},null,{"$f":"ROUND(E1301*F1301,2)","v":{"v":0,"d":"0.00"}}]
[]
[null,"Laser cut galvanised mild steel screens, fixed to structural steel columns:"]
[]
[null,"PRESSED STEEL DOOR FRAMES"]
[]
[null,"1,6mm Rebated frames suitable for one brick walls:"]
[]
[{"v":9,"d":"9 "},"Frame for door 1500 x 2100mm high (TP-02)",null,"No",{"v":2,"d":"2 "},null,{"$f":"ROUND(E1309*F1309,2)","v":{"v":0,"d":"0.00"}}]
[]
[{"v":10,"d":"10 "},"Frame for door 1100 x 2100mm high (TP-05)",null,"No",{"v":1,"d":"1 "},null,{"$f":"ROUND(E1311*F1311,2)","v":{"v":0,"d":"0.00"}}]
[]
[null,"PRESSED STEEL TRANSFORMER ROOM DOORS AND FRAMES"]
[]
[null,"Steel doors with ventilation louvres:"]
[]
[{"v":11,"d":"11 "},"Purpose made mild steel transformer double door with steel louvres, 1500 x 2100mm High (TP-02)",null,"No",{"v":2,"d":"2 "},null,{"$f":"ROUND(E1317*F1317,2)","v":{"v":0,"d":"0.00"}}]
[]
[null,"ALUMINIUM WINDOWS, DOORS, ETC"]
[]
[null,"Aluminium windows, doors, etc:"]
[]
[null,"The successful tenderer shall be responsible for the complete design work including determining required section sizes and fixing details, all subject to the Project Manager's approval"]
[]
[null,"Doors, windows, etc shall be designed and constructed to withstand wind pressures of 1,1kn/m2 (unfactored) and 1,5kn/m2 (factored)"]
[]
[null,"All calculations shall be submitted to the Project Manager for approval"]
[]
[null,"Doors and windows shall comply with AAAMSA design criteria"]
[]
[null,"Glazing shall comply with SAGGA regulations.  Glass thicknesses shall comply with SAGGA regulations irrespective of thicknesses shown on the schedules/drawings"]
[]
[null,"Doors and windows shall be supplied with protective tape and plastic which shall be removed only once surrounding trades have been completed"]
[]
[null,"The following certificates shall be provided prior to commencement of site work:  1\tA copy of the relevant AAAMSA Performance Test Certificate from the manufacturer/contractor supplying the architectural aluminium product"]
[]
[null,"2\tA Certificate of Conformance confirming that anodising or powder coating has been processed in accordance with SANS 999 and SANS 1796 respectively"]
[]
[null,"3\tA copy of the relevant Performance Compliance Report from the system suppliers"]
[]
[null,"4\tA copy of the relevant Safiera Energy Rating Certification"]
[]
[null,"5\tA powder guarantee of not less than 15 years issued by the powder manufacturer. The specific conditions contained in this guarantee shall form part of the powder coating process"]
[]
[null,"6\tA Certificate of Conformance confirming that glazing has been installed in accordance with SANS 10400-N, ensuring that safety glazing materials have been installed in the mandatory areas and that each individual pane of safety glazing materials has been permanently marked"]
[]
[null,"7\tA warranty from the manufacturer of the laminated safety glass and/or hermetically sealed glazing units guaranteeing the products against delamination and colour degradation for a period of not less than five years"]
[]
[null,"All windows and door joints must be sealed to the inside with \"Dow Corning\" silicone during manufacturing"]
[]
[null,"All dimensions shall be verified on site before commencing the work and a full set of shop drawings showing all relevant details shall be submitted to the Architect for his approval, prior to the manufacture of the units"]
[]
[null,"Sizes"]
[]
[null,"Where sizes are given these are nominal sizes"]
[]
[null,"Ironmongery"]
[]
[null,"The tenderer must allow in his pricing for supply and fixing of ALL ironmongery  Heavy duty high quality fittings must be allowed for and samples will be required for approval by the Project Manager"]
[]
[null,"ALUMINIUM CASEMENT WINDOWS"]
[]
[null,"Powder coated black aluminium windows with and including 12 x 12mm solid square aluminium burglar bars fixed to window over opening sashes, 6mm clear float safety glass, glazing beads, black nylon ironmongery, woolpile weather seals, packing pieces, friction stays, coverstrips and sealing all round on both sides with polysulphide or similar approved sealant:"]
[]
[{"v":12,"d":"12 "},"Window type TP01, 2800 x 400mm high (W01)",null,"No",{"v":2,"d":"2 "},null,{"$f":"ROUND(E1365*F1365,2)","v":{"v":0,"d":"0.00"}}]
[]
[{"v":13,"d":"13 "},"Window type TP02, 4446 x 400mm high (W02)",null,"No",{"v":2,"d":"2 "},null,{"$f":"ROUND(E1367*F1367,2)","v":{"v":0,"d":"0.00"}}]
[]
[{"v":14,"d":"14 "},"Window type TP03, 1850 x 400mm high (W03)",null,"No",{"v":2,"d":"2 "},null,{"$f":"ROUND(E1369*F1369,2)","v":{"v":0,"d":"0.00"}}]
[]
[{"v":15,"d":"15 "},"Window type TP04, 3000 x 400mm high (W04)",null,"No",{"v":1,"d":"1 "},null,{"$f":"ROUND(E1371*F1371,2)","v":{"v":0,"d":"0.00"}}]
[]
[{"v":16,"d":"16 "},"Window type TP05, 400 x 2808mm high (W05)",null,"No",{"v":1,"d":"1 "},null,{"$f":"ROUND(E1373*F1373,2)","v":{"v":0,"d":"0.00"}}]
[]
[{"v":17,"d":"17 "},"Window type TP06, 5990 x 400mm high, including a side window, 399 x 1558mm High (W06)",null,"No",{"v":1,"d":"1 "},null,{"$f":"ROUND(E1375*F1375,2)","v":{"v":0,"d":"0.00"}}]
[]
[{"v":18,"d":"18 "},"Window type TP07, 5330 x 400mm high (W07)",null,"No",{"v":1,"d":"1 "},null,{"$f":"ROUND(E1377*F1377,2)","v":{"v":0,"d":"0.00"}}]
[]
[{"v":19,"d":"19 "},"Window type TP08, 400 x 900mm high (W08)",null,"No",{"v":2,"d":"2 "},null,{"$f":"ROUND(E1379*F1379,2)","v":{"v":0,"d":"0.00"}}]
[]
[{"v":20,"d":"20 "},"Window type TP09, 400 x 2725mm high (W09)",null,"No",{"v":3,"d":"3 "},null,{"$f":"ROUND(E1381*F1381,2)","v":{"v":0,"d":"0.00"}}]
[]
[{"v":21,"d":"21 "},"Window type TP10, 6000 x 900mm high (W10)",null,"No",{"v":1,"d":"1 "},null,{"$f":"ROUND(E1383*F1383,2)","v":{"v":0,"d":"0.00"}}]
[]
[{"v":22,"d":"22 "},"Window type TP11, 996 x 1200mm high (W11)",null,"No",{"v":2,"d":"2 "},null,{"$f":"ROUND(E1385*F1385,2)","v":{"v":0,"d":"0.00"}}]
[]
[{"v":23,"d":"23 "},"Window type TP12, 1893 x 1200mm high (W12)",null,"No",{"v":1,"d":"1 "},null,{"$f":"ROUND(E1387*F1387,2)","v":{"v":0,"d":"0.00"}}]
[]
[{"v":24,"d":"24 "},"Window type TP13, 1893 x 720mm high (W13)",null,"No",{"v":1,"d":"1 "},null,{"$f":"ROUND(E1389*F1389,2)","v":{"v":0,"d":"0.00"}}]
[]
[{"v":25,"d":"25 "},"Window type TP14, 5600 x 2400mm high (W14)",null,"No",{"v":1,"d":"1 "},null,{"$f":"ROUND(E1391*F1391,2)","v":{"v":0,"d":"0.00"}}]
[]
[{"v":26,"d":"26 "},"Window type TP15, 2845 x 2900mm high (W15)",null,"No",{"v":1,"d":"1 "},null,{"$f":"ROUND(E1393*F1393,2)","v":{"v":0,"d":"0.00"}}]
[]
[{"v":27,"d":"27 "},"Window type TP16, 2845 x 3087mm high (W16)",null,"No",{"v":1,"d":"1 "},null,{"$f":"ROUND(E1395*F1395,2)","v":{"v":0,"d":"0.00"}}]
[]
[{"v":28,"d":"28 "},"Window type TP17, 5870 x 3087mm high (W17)",null,"No",{"v":1,"d":"1 "},null,{"$f":"ROUND(E1397*F1397,2)","v":{"v":0,"d":"0.00"}}]
[]
[{"v":29,"d":"29 "},"Window type TP18, 3273 x 400mm high (W18)",null,"No",{"v":1,"d":"1 "},null,{"$f":"ROUND(E1399*F1399,2)","v":{"v":0,"d":"0.00"}}]
[]
[{"v":30,"d":"30 "},"Window type TP19, 3280 x 400mm high (W19)",null,"No",{"v":1,"d":"1 "},null,{"$f":"ROUND(E1401*F1401,2)","v":{"v":0,"d":"0.00"}}]
[]
[{"v":31,"d":"31 "},"Window type TP20, 2540 x 2331mm high (W20)",null,"No",{"v":1,"d":"1 "},null,{"$f":"ROUND(E1403*F1403,2)","v":{"v":0,"d":"0.00"}}]
[]
[{"v":32,"d":"32 "},"Window type TP20, 6465 x 400mm high (W21)",null,"No",{"v":1,"d":"1 "},null,{"$f":"ROUND(E1405*F1405,2)","v":{"v":0,"d":"0.00"}}]
[]
[{"v":33,"d":"33 "},"Trapezium-shaped window TP22, 10546mm x 1200mm high (extreme height) (W22) (Drawing No. 1002-001-0405)",null,"No",{"v":1,"d":"1 "},null,{"$f":"ROUND(E1407*F1407,2)","v":{"v":0,"d":"0.00"}}]
[]
[{"v":34,"d":"34 "},"Trapezium-shaped window TP23, 10546mm x 1200mm high (extreme height) (W23) (Drawing No. 1002-001-0405)",null,"No",{"v":1,"d":"1 "},null,{"$f":"ROUND(E1409*F1409,2)","v":{"v":0,"d":"0.00"}}]
[]
[{"v":35,"d":"35 "},"Window type TP24, 10645 x 1320mm high (W24)",null,"No",{"v":1,"d":"1 "},null,{"$f":"ROUND(E1411*F1411,2)","v":{"v":0,"d":"0.00"}}]
[]
[{"v":36,"d":"36 "},"Window type TP25, 58400 x 1522mm high (W25)",null,"No",{"v":1,"d":"1 "},null,{"$f":"ROUND(E1413*F1413,2)","v":{"v":0,"d":"0.00"}}]
[]
[{"v":37,"d":"37 "},"Triangular-shaped window TP26, 5325mm x 1500mm high (extreme height) (W26) (Drawing No. 1002-001-0405)",null,"No",{"v":1,"d":"1 "},null,{"$f":"ROUND(E1415*F1415,2)","v":{"v":0,"d":"0.00"}}]
[]
[{"v":38,"d":"38 "},"Window type TP27-A, 6975 x 4000mm high (W27-A)",null,"No",{"v":1,"d":"1 "},null,{"$f":"ROUND(E1417*F1417,2)","v":{"v":0,"d":"0.00"}}]
[]
[{"v":39,"d":"39 "},"Window type TP27-B, 6050 x 4000mm high (W27-B)",null,"No",{"v":1,"d":"1 "},null,{"$f":"ROUND(E1419*F1419,2)","v":{"v":0,"d":"0.00"}}]
[]
[{"v":40,"d":"40 "},"Window type TP28, 2365 x 400mm high (W28)",null,"No",{"v":2,"d":"2 "},null,{"$f":"ROUND(E1421*F1421,2)","v":{"v":0,"d":"0.00"}}]
[]
[{"v":41,"d":"41 "},"Window type TP29, 3000 x 2400mm high (W29)",null,"No",{"v":1,"d":"1 "},null,{"$f":"ROUND(E1423*F1423,2)","v":{"v":0,"d":"0.00"}}]
[]
[{"v":42,"d":"42 "},"Window type TP30, 2100 x 1000mm high (W30)",null,"No",{"v":1,"d":"1 "},null,{"$f":"ROUND(E1425*F1425,2)","v":{"v":0,"d":"0.00"}}]
[]
[null,"ALUMINIUM DOORS, FRAMES, ETC"]
[]
[null,"Powder coated black aluminium door units complete with coupling mullions, 6mm clear safety glass, pvc gaskets, woolpile draught seals, packing pieces, coverstrips, ironmongery and sealing all round on both sides with polysulphide or similar approved sealant:"]
[]
[{"v":43,"d":"43 "},"Double door unit, size 1500mm x 2100mm high overall with door in two equal leaves (TP01)",null,"No",{"v":1,"d":"1 "},null,{"$f":"ROUND(E1431*F1431,2)","v":{"v":0,"d":"0.00"}}]
[]
[{"v":44,"d":"44 "},"Door frame, size 900 x 2100mm high with lockset and handles (TP-03)",null,"No",{"v":6,"d":"6 "},null,{"$f":"ROUND(E1433*F1433,2)","v":{"v":0,"d":"0.00"}}]
[]
[{"v":45,"d":"45 "},"Door frame, size 1100 x 2100mm high with lockset and handles (TP-04)",null,"No",{"v":2,"d":"2 "},null,{"$f":"ROUND(E1435*F1435,2)","v":{"v":0,"d":"0.00"}}]
[]
[{"v":46,"d":"46 "},"Door frame, size 2400 x 2100mm high with lockset and handles (TP-12)",null,"No",{"v":1,"d":"1 "},null,{"$f":"ROUND(E1437*F1437,2)","v":{"v":0,"d":"0.00"}}]
[]
[{"v":47,"d":"47 "},"Door frame, size 900 x 2100mm high with lockset and handles (TP-14)",null,"No",{"v":1,"d":"1 "},null,{"$f":"ROUND(E1439*F1439,2)","v":{"v":0,"d":"0.00"}}]
[]
[{"v":48,"d":"48 "},"Door size, 1500 x 2400mm high with lockset and handles (SF-01)",null,"No",{"v":1,"d":"1 "},null,{"$f":"ROUND(E1441*F1441,2)","v":{"v":0,"d":"0.00"}}]
[]
[{"v":49,"d":"49 "},"Door size, 1780 x 2100mm high with lockset and handles (SF-02)",null,"No",{"v":1,"d":"1 "},null,{"$f":"ROUND(E1443*F1443,2)","v":{"v":0,"d":"0.00"}}]
[]
[{"v":50,"d":"50 "},"Door size, 1500 x 2100mm high with lockset and handles (SF-03)",null,"No",{"v":1,"d":"1 "},null,{"$f":"ROUND(E1445*F1445,2)","v":{"v":0,"d":"0.00"}}]
[]
[{"v":51,"d":"51 "},"Door size, 3700 x 2100mm high with lockset and handles (SF-04)",null,"No",{"v":1,"d":"1 "},null,{"$f":"ROUND(E1447*F1447,2)","v":{"v":0,"d":"0.00"}}]
[]
[{"v":52,"d":"52 "},"Door size, 1500 x 2800mm high with lockset and handles (TP-08)",null,"No",{"v":1,"d":"1 "},null,{"$f":"ROUND(E1449*F1449,2)","v":{"v":0,"d":"0.00"}}]
[]
[{"v":53,"d":"53 "},"Door frame, size 1500 x 2400mm high with lockset and handles (TP-09)",null,"No",{"v":2,"d":"2 "},null,{"$f":"ROUND(E1451*F1451,2)","v":{"v":0,"d":"0.00"}}]
[]
[null,"ALUMINIUM SLIDING FOLDING DOORS"]
[]
[null,"Powder coated sliding folding doors complete with subframes, ironmongery, glass, cover strips and sealing all round on both sides with poly sulphide or similar approved  sealant:"]
[]
[{"v":54,"d":"54 "},"Purpose made sliding folding door, 9815 x 2330mm high (TP-06)",null,"No",{"v":1,"d":"1 "},null,{"$f":"ROUND(E1457*F1457,2)","v":{"v":0,"d":"0.00"}}]
[]
[{"v":55,"d":"55 "},"Purpose made sliding folding door, 5870 x 2900mm high (TP-07)",null,"No",{"v":2,"d":"2 "},null,{"$f":"ROUND(E1459*F1459,2)","v":{"v":0,"d":"0.00"}}]
[]
[null,"STEEL ROLLER SHUTTERS, ETC"]
[]
[null,"Natural anodised zincalume roller shutters:"]
[]
[{"v":56,"d":"56 "},"Manual push-up slatted roller shutter for 3500 x 2100mm high opening (TP-10)",null,"No",{"v":1,"d":"1 "},null,{"$f":"ROUND(E1465*F1465,2)","v":{"v":0,"d":"0.00"}}]
[]
[{"v":57,"d":"57 "},"Manual push-up slatted roller shutter for 3500 x 2400mm high opening (TP-11)",null,"No",{"v":2,"d":"2 "},null,{"$f":"ROUND(E1467*F1467,2)","v":{"v":0,"d":"0.00"}}]
[]
[null,"SHOWER CUBICLE PANELS AND DOORS"]
[]
[null,"Anodised aluminium shower cubicle panels and doors with frames, sliding gear, pivot hinges, cleats, stops, etc and 6,38mm toughened clear safety glass, plugged to tiled walls and sealed on both sides with silicone sealant:"]
[]
[{"v":58,"d":"58 "},"Swing door 1000 x 2100mm high with 165mm undercut",null,"No",{"v":6,"d":"6 "},null,{"$f":"ROUND(E1473*F1473,2)","v":{"v":0,"d":"0.00"}}]
[]
[null,"Carried to section summary / …",{"$nulls":4},{"$f":"SUM(G1244:G1474)","v":{"v":0,"d":"0.00"}}]
[]
[null,"SECTION 2"]
[]
[null,"BILL NO. 13"]
[]
[null,"PLASTERING"]
[]
[null,"WORK GROUP ALLOCATION"]
[]
[null,"Unless otherwise stated, all items in this Bill will be allocated to Work Group 142 - In situ finishes"]
[]
[null,"PREAMBLES"]
[]
[null,"The General Preambles for Trades (2017 edition) as published by the Association of South African Quantity Surveyors shall be deemed to be incorporated in these bills of quantities and no claims arising from brevity of description of items fully described in the said General Preambles will be entertained"]
[]
[null,"The following \"Supplementary Preambles\" are incorporated in this bill to satisfy the requirements of the project and shall take precedence over the provisions of the said General Preambles"]
[]
[null,"SUPPLEMENTARY PREAMBLES"]
[]
[null,"Moisture tests:"]
[]
[null,"Before any finishes, coverings, etc are applied to screeds, plastering, etc or any other in-situ finish, moisture tests are to be carried out to the  complete satisfaction of the Project Manager to ensure that these surfaces have the correct moisture content for the finish to be applied"]
[]
[null,"Labours, etc"]
[]
[null,"Labours such as fair, rounded and chamfered edges, trowel cuts, throats, V-joints, angles, etc shall be deemed to be included in the descriptions"]
[]
[null,"Sample Panels"]
[]
[null,"A sample panel size 1m x1m, of each of the various plaster type wall and floor finishes in this contract, shall be prepared for the approval of the Project Manager and the cost of the sample panel(s) shall be deemed to be included in the overall costs of the relevant wall and floor finishes"]
[]
[null,"GRANOLITHIC"]
[]
[null,"Method:"]
[]
[null,"The method to be used shall be either the monolithic method or the bonded method"]
[]
[null,"Preparation:"]
[]
[null,"For granolithic applied monolithically, the concrete floor shall be swept clean after bleeding of the concrete has ceased and the slab has begun to stiffen; any remaining bleed water shall be removed and the granolithic applied immediately thereafter. For granolithic to be bonded to the floor slab after it has hardened, the slab surface shall be hacked (preferably by mechanical means) until all laitance, dirt, oil, etc is dislodged and swept clean of all loose matter. The slab shall then be wetted and kept damp for at least six hours before applying the granolithic"]
[]
[null,"Mix:"]
[]
[null,"Unless otherwise described, granolithic shall attain a compressive strength of at least 41MPa. The coarse aggregate shall comply with SANS 1083 and shall generally be capable of passing a 10mm mesh sieve. Where the thickness of the granolithic exceeds 25mm, the size of the coarse aggregate shall be increased to the maximum size compatible with the thickness of the granolithic"]
[]
[null,"Panels:"]
[]
[null,"Granolithic shall be laid in panels not exceeding 14m\"² for monolithic finishes, not exceeding 9,5m\"² for bonded finishes and not exceeding 6m\"² for all external granolithic. Wherever possible, panels shall be square but at no time should the length of the panel exceed 1,5 times its width"]
[]
[null,"Where possible joints between panels shall be positioned over joints in the floor slab and shall be at least 3mm wide through the full thickness of the finish, separated by strips of wood or fibreboard and finished with V-joints"]
[]
[null,"Laying:"]
[]
[null,"Monolithic granolithic shall be applied to the partially set slab and thoroughly compacted and lightly wood floated to the required levels"]
[]
[null,"Bonded granolithic shall be applied to the slab after applying a 1:1 sand-and-cement slurry brushed over the surface and allowed to partially set before applying the granolithic. The granolithic shall be throughly compacted and lightly wood floated to the required levels"]
[]
[null,"After wood floating, the monolithic and bonded granolithic shall remain undisturbed until bleeding has ceased and the surface has stiffened. Any remaining bleed water and laitance shall then be removed and the surface steel trowelled or power floated"]
[]
[null,"Curing, seasoning and protection:"]
[]
[null,"Granolithic shall be covered with clean hessian with waterproof building foil over and kept wet for at least seven days after laying"]
[]
[null,"Colour:"]
[]
[null,"Coloured granolithic shall be tinted with an approved colouring pigment mixed into a true and even colour"]
[]
[null,"TINTED WHITE CEMENT SCREEDS"]
[]
[null,"Tinted screed shall be composed of one bag White Portland Cement and two wheelbarrows \"Malmesbury\" sand. Surfaces shall be finished with a steel trowel to leave a smooth finish and coated with two coats \"Earthcote S.I. Floorcote\" two-pack polyurethane floor sealer applied as per the manufacturer's recommendations"]
[]
[null,"NOTE: Tinted screeds are to be strengthened with \"Primal Eccos\" acrylic polymer (15% of the water volume is to be substituted with the acrylic polymer during the mixing process)  Coarse sand is to be used for these screeds  All tinting, finishing, strengthening, etc are to be mixed, applied, etc strictly in accoprdance with the manufacturer's instructions"]
[]
[null,"CEMENT PLASTER"]
[]
[null,"Unless otherwise described, cement plaster shall be taken to mean Class 1 cement plaster i.e. 1:4 cement:sand plaster (common cement)"]
[]
[null,"SCREEDS"]
[]
[null,"3:1 Cement plaster screeds wood floated for tiles, on concrete:"]
[]
[{"v":1,"d":"1 "},"40mm Thick on floors and landings",null,"m²",{"v":169,"d":"169 "},null,{"$f":"ROUND(E1557*F1557,2)","v":{"v":0,"d":"0.00"}}]
[]
[null,"3:1 Cement plaster screeds wood floated for \"vinyl\" or other flexible type flooring, including applying an approved self-levelling coating applied by an approved specialist, on concrete:"]
[]
[{"v":2,"d":"2 "},"40mm Thick on floors and landings",null,"m²",{"v":110,"d":"110 "},null,{"$f":"ROUND(E1561*F1561,2)","v":{"v":0,"d":"0.00"}}]
[]
[null,"SPECIAL FLOOR COATING"]
[]
[null,"5mm Thick non-slip \"Polyurethane\" or similar approved self-levelling epoxy floor coating applied by an approved specialist, on:"]
[]
[{"v":3,"d":"3 "},"On floors",null,"m²",{"v":218,"d":"218 "},null,{"$f":"ROUND(E1567*F1567,2)","v":{"v":0,"d":"0.00"}}]
[]
[null,"INTERNAL PLASTER"]
[]
[null,"Cement plaster wood floated for tiles, on brickwork:"]
[]
[{"v":4,"d":"4 "},"On walls",null,"m²",{"v":839,"d":"839 "},null,{"$f":"ROUND(E1573*F1573,2)","v":{"v":0,"d":"0.00"}}]
[]
[{"v":5,"d":"5 "},"On narrow widths",null,"m²",{"v":10,"d":"10 "},null,{"$f":"ROUND(E1575*F1575,2)","v":{"v":0,"d":"0.00"}}]
[]
[null,"EXTERNAL PLASTER"]
[]
[null,"Cement plaster steel floated, on brickwork:"]
[]
[{"v":6,"d":"6 "},"On walls",null,"m²",{"v":523,"d":"523 "},null,{"$f":"ROUND(E1581*F1581,2)","v":{"v":0,"d":"0.00"}}]
[]
[{"v":7,"d":"7 "},"On walls in sunk/raised panels",null,"m²",{"v":97,"d":"97 "},null,{"$f":"ROUND(E1583*F1583,2)","v":{"v":0,"d":"0.00"}}]
[]
[{"v":8,"d":"8 "},"On narrow widths",null,"m²",{"v":52,"d":"52 "},null,{"$f":"ROUND(E1585*F1585,2)","v":{"v":0,"d":"0.00"}}]
[]
[null,"CORNER PROTECTORS, DIVIDING STRIPS, ETC"]
[]
[null,"Brass:"]
[]
[{"v":9,"d":"9 "},"3 x 30mm Flat section dividing strip",null,"m",{"v":30,"d":"30 "},null,{"$f":"ROUND(E1591*F1591,2)","v":{"v":0,"d":"0.00"}}]
[]
[null,"Carried to section summary / …",{"$nulls":4},{"$f":"SUM(G1476:G1592)","v":{"v":0,"d":"0.00"}}]
[]
[null,"SECTION 2"]
[]
[null,"BILL NO. 14"]
[]
[null,"TILING"]
[]
[null,"WORK GROUP ALLOCATION"]
[]
[null,"Unless otherwise stated, all items in this Bill will be allocated to Work Group 144 - Tiling"]
[]
[null,"PREAMBLES"]
[]
[null,"The General Preambles for Trades (2017 edition) as published by the Association of South African Quantity Surveyors shall be deemed to be incorporated in these bills of quantities and no claims arising from brevity of description of items fully described in the said General Preambles will be entertained"]
[]
[null,"The following \"Supplementary Preambles\" are incorporated in this bill to satisfy the requirements of the project and shall take precedence over the provisions of the said General Preambles"]
[]
[null,"SUPPLEMENTARY PREAMBLES"]
[]
[null,"Fixing:"]
[]
[null,"Unless described as \"fixed with adhesive to plaster (plaster elsewhere)\", descriptions of tiling on brick or concrete walls, columns, etc shall be deemed to include 1:4 cement plaster backing and descriptions of tiling on concrete floors, etc shall be deemed to include 1:3 cement plaster bedding"]
[]
[null,"Tiling described as \"fixed with adhesive on power floated concrete\" shall be deemed to include for approved tiling key-coat"]
[]
[null,"Ceramic, porcelain, marble and granite tiles are to be fixed and grouted with suitable adhesives and grouts from the \"Tal Goldstar\" or similar approved range of products as recommended by the manufacturer of the tiles"]
[]
[null,"Preparatory work to existing painted plastered surfaces:"]
[]
[null,"Preparation of all existing painted plastered surfaces is to include for removing all loose and flaking material by wire brushing, thoroughly washing down and allowing to dry completely and applying one coat masonry bonding agent"]
[]
[null,"WALL TILING"]
[]
[null,"75 x 300mm Glass tiles (Allow a Prime Cost Amount of R 200/m2 delivered to site) fixed with adhesive to plaster (plaster elsewhere) and flush pointing with and including waterproof grout:"]
[]
[{"v":1,"d":"1 "},"On walls",null,"m²",{"v":335,"d":"335 "},null,{"$f":"ROUND(E1629*F1629,2)","v":{"v":0,"d":"0.00"}}]
[]
[{"v":2,"d":"2 "},"On narrow widths",null,"m²",{"v":84,"d":"84 "},null,{"$f":"ROUND(E1631*F1631,2)","v":{"v":0,"d":"0.00"}}]
[]
[null,"Mosaic tiles (Allow a Prime Cost Amount of R 250/m delivered to site) fixed with adhesive to plaster (plaster elsewhere) and flush pointing with and including waterproof grout:"]
[]
[{"v":3,"d":"3 "},"Listello strip dado trim",null,"m",{"v":160,"d":"160 "},null,{"$f":"ROUND(E1635*F1635,2)","v":{"v":0,"d":"0.00"}}]
[]
[null,"FLOOR TILING"]
[]
[null,"8.6 x 590 x 1190mm Porcelain floor tiles (Allow a Prime Cost Amount of R 450/m2 delivered to site) fixed with adhesive to 40mm screed (screed elsewhere) and flush pointing with and including waterproof grout:"]
[]
[{"v":4,"d":"4 "},"On floors",null,"m²",{"v":169,"d":"169 "},null,{"$f":"ROUND(E1641*F1641,2)","v":{"v":0,"d":"0.00"}}]
[]
[{"v":5,"d":"5 "},"Skirting 100mm high (of fair cut tiles)",null,"m",{"v":137,"d":"137 "},null,{"$f":"ROUND(E1643*F1643,2)","v":{"v":0,"d":"0.00"}}]
[]
[null,"48 x 48mm Non-slip mosaic floor tiles (Allow a Prime Cost Amount of R 380/m2 delivered to site) fixed with adhesive to screed (screed elsewhere) and flush pointing with and including waterproof grout:"]
[]
[{"v":6,"d":"6 "},"On shower floors to falls and currents",null,"m²",{"v":21,"d":"21 "},null,{"$f":"ROUND(E1647*F1647,2)","v":{"v":0,"d":"0.00"}}]
[]
[null,"SUNDRIES"]
[]
[null,"Stainless steel dividing strips:"]
[]
[{"v":7,"d":"7 "},"50 x 15mm Flat section dividing strips between tiles and vinyl sheeting",null,"m",{"v":30,"d":"30 "},null,{"$f":"ROUND(E1653*F1653,2)","v":{"v":0,"d":"0.00"}}]
[]
[{"v":8,"d":"8 "},"28 x 10 x 2,5mm L-section dividing strips between tiles",null,"m",{"v":100,"d":"100 "},null,{"$f":"ROUND(E1655*F1655,2)","v":{"v":0,"d":"0.00"}}]
[]
[null,"Stainless steel corner protectors, stair nosings, expansion joint strips, etc:"]
[]
[{"v":9,"d":"9 "},"22,5mm Stainless steel expansion joint strip with and including neoprene compression strip type MCN100",null,"m",{"v":100,"d":"100 "},null,{"$f":"ROUND(E1659*F1659,2)","v":{"v":0,"d":"0.00"}}]
[]
[null,"Carried to section summary / …",{"$nulls":4},{"$f":"SUM(G1594:G1660)","v":{"v":0,"d":"0.00"}}]
[]
[null,"SECTION 2"]
[]
[null,"BILL NO. 15"]
[]
[null,"PLUMBING AND DRAINAGE (PROVISIONAL)"]
[]
[null,"WORK GROUP ALLOCATION"]
[]
[null,"The items in this Bill will be allocated to Work Groups as indicated in brackets at the end of headings or descriptions"]
[]
[null,"PREAMBLES"]
[]
[null,"The General Preambles for Trades (2017 edition) as published by the Association of South African Quantity Surveyors shall be deemed to be incorporated in these bills of quantities and no claims arising from brevity of description of items fully described in the said General Preambles will be entertained"]
[]
[null,"The following \"Supplementary Preambles\" are incorporated in this bill to satisfy the requirements of the project and shall take precedence over the provisions of the said General Preambles"]
[]
[null,"SUPPLEMENTARY PREAMBLES"]
[]
[null,"Wire gratings:"]
[]
[null,"Descriptions of gutter outlets, etc shall be deemed to include wire balloon gratings"]
[]
[null,"Stormwater channels:"]
[]
[null,"Descriptions of channels shall be deemed to include necessary excavation, surface preparation, compaction, etc and disposal of surplus material on site"]
[]
[null,"French drains:"]
[]
[null,"Descriptions of french drains shall be deemed to include excavation, stone filling graded from 300mm diameter at bottom to 75mm diameter at top, approved geofabric filter blanket over stone, 300mm earthfilling over and disposal of surplus material on site"]
[]
[null,"Septic tanks:"]
[]
[null,"Descriptions of proprietary type septic tanks shall be deemed to include excavation, bedding and jointing, concrete base slabs, jointing to drains and backfilling, compaction, etc all in accordance with the manufacturer's instructions and disposal of surplus material on site"]
[]
[null,"Stainless steel basins, sinks, wash troughs, urinals, etc:"]
[]
[null,"Stainless steel for economy basins, domestic sinks and worktops shall be Type 430 (17/0)  Stainless steel for urinals, basins, quality sinks, wash troughs, institutional equipment, etc shall be Type 304 (18/8)  Stainless steel for laboratory sinks, photographic equipment, etc shall be Type 316 (18/8)  Units shall have standard aprons on all exposed edges and tiling keys against walls where applicable"]
[]
[null,"Sealing of edges:"]
[]
[null,"Outer edges of sinks, basins, baths, urinals, etc are to be sealed against adjacent surfaces with approved mildew resistant silicone sealant and prices must include therefor"]
[]
[null,"uPVC pipes and fittings:"]
[]
[null,"Sewer and drainage pipes and fittings shall be jointed and sealed with butyl rubber rings  Soil, waste and vent pipes and fittings shall be solvent weld jointed or sealed with butyl rubber rings"]
[]
[null,"uPVC pressure pipes and fittings:"]
[]
[null,"Pipes of 50mm diameter and smaller shall be plain ended with solvent welded uPVC loose sockets and fittings  Pipes of 63mm diameter and greater shall have sockets and spigots with push-in type integral rubber ring joints.  Bends shall be uPVC and all other fittings shall be cast iron, all with similar push-in type joints"]
[]
[null,"High density polyethylene (HDPe) pipes and fittings:"]
[]
[null,"Pipes shall be type IV and of the class specified with \"Plasson\" or \"Alprene\" compression fittings"]
[]
[null,"Polypropylene pipes:"]
[]
[null,"Polypropylene pipes 54mm diameter and smaller shall be seamless copper coloured Class 16 pipes jointed with \"Fast-fuse\" heat welded thermoplastic or where so described \"Polylock\" compression fittings  Pipes shall be firmly fixed to walls, etc with coloured nylon snap-in pipe clips with provision for accommodating thermal movement and jointed and fixed strictly in accordance with the manufacturer's instructions"]
[]
[null,"Copper pipes:"]
[]
[null,"Pipes shall be hard drawn and half-hard \"Maksal\" pipes of the class described.  Class 0 (thin walled hard drawn) pipes shall not be bent.  Class 1 (thin walled half-hard), Class 2 (half-hard) and Class 3 (heavy walled half-hard) pipes shall only be bent with benders with inner and outer formers.  Fittings to copper waste, vent and anti-syphon pipes, capillary solder fittings and compression fittings shall be \"Cobra Watertech\" type.  Capillary solder fittings shall comply with ISO 2016. Only compression fittings shall be used in walls or in ground"]
[]
[null,"Copper pipes are to be installed in accordance with the latest revision of the Code of Practice for Copper Plumbing soldering techniques.  Flux, solder, etc to be strictly in accordance with the manufacturer's requirements with special attention to copper flux composition"]
[]
[null,"Reducing fittings:"]
[]
[null,"Where fittings have reducing ends or branches they are described as \"reducing\". In the case of pipes with diameters not exceeding 60mm, only the largest end or branch size is given. Should the Contractor wish to use other fittings and bushes or reducers he may do so on the understanding that no claim in this regard will be entertained. In the case of pipes with diameters exceeding 60mm, all sizes are given and no claims for extra bushes, reducers, etc will be entertained"]
[]
[null,"Fixing of pipes:"]
[]
[null,"Unless specifically otherwise stated, descriptions of pipes shall be deemed to include fixing to walls, etc casting in, building in or suspending not exceeding 1m below suspension level"]
[]
[null,"Paper wrapping to pipes:"]
[]
[null,"Pipes chased into brickwork must be wrapped with two layers of stout brown paper tied with wire.  Rates are to include for wrapping around joints and fittings"]
[]
[null,"Disinfection of water pipework:"]
[]
[null,"Water pipework is to be disinfected at completion in accordance with SANS 1200L (provision for disinfection elsewhere)"]
[]
[null,"Petrolatum anti-corrosion tape"]
[]
[null,"Pipes to be taped shall be coated with the appropriate primer and the tape shall be applied in the appropriate widths and with suitable overlaps  Couplings and fittings to pipes shall be taped in strict accordance with the manufacturer's instructions including mastic, tape, \"Layflat\" sheeting, securing of same, etc"]
[]
[null,"Prices for wrapping of pipes shall include for all work as described to couplings in the length"]
[]
[null,"Laying, backfilling, bedding, etc of pipes:"]
[]
[null,"Pipes shall be laid and bedded in accordance with manufacturers' instructions and trenches shall be carefully backfilled"]
[]
[null,"Where no manufacturers' instructions exist, pipes shall be laid in accordance with Clauses 5.1 and 5.2 of each of the following: SANS 1200L\t: Medium-pressure pipelines SANS 1200LD\t: Sewers SANS 1200LE\t: Stormwater drainage Pipe trenches, etc shall be backfilled in accordance with Clauses 3, 5.5, 5.6, 5.7 and 7 of SANS 1200DB : Earthworks (Pipe trenches)Pipes shall be bedded in accordance with Clauses 3.1 to 3.4.1, 5.1 to 5.3 and 7 of SANS 1200LB : Bedding (Pipes)Unless otherwise described, bedding of rigid pipes shall be Class B bedding"]
[]
[null,"General:"]
[]
[null,"Descriptions of cast iron roof outlets shall be deemed to include joints to pipes and casting into concrete (adaptors for joints to PVC pipes, etc are given separately)  Descriptions of overflow pipes where measured in number, shall be deemed to include joints to cisterns and splay cut ends"]
[]
[null,"Descriptions of pipes laid in and including trenches and of inspection chambers, catchpits, etc shall be deemed to include excavation, bedding, backfilling, compaction to a minimum of 98% Mod AASHTO density and disposal of surplus material on site"]
[]
[null,"Descriptions of service pipes and flexible connecting pipes shall be deemed to include connections to taps, cisterns, etc and to steel pipes (adaptors for connections to copper pipes, etc are given separately)"]
[]
[null,"Descriptions of WC pans, slop hoppers, etc shall be deemed to include for joints to soil pipes (pan connectors are separately measured) and shall have straight or side outlets and \"P\" or \"S\" traps as necessary"]
[]
[null,"Description of waste unions shall be deemed to include rubber or vulcanite plugs and chains fixed to fittings."]
[]
[null,"As-built drawings:"]
[]
[null,"Where required, the Contractor shall prepare an updated set of as-built drawings.  At completion of the contract the Contractor shall hand these drawings to the Project Manager for reproducing onto the originals for handing over to the Employer (provision for allowance of as-built drawings elsewhere)"]
[]
[null,"Proprietary items:"]
[]
[null,"Where applicable, the manufacturers' names or product catalogue titles are given in sub-headings preceding the itemsNote that the manufacturers names specified in this trade are for the purposes of competitive pricing. Prices are to be based on the specific products/articles specified.On request, returnable samples are to be provided to the Project Manager for consideration"]
[]
[null,"RAINWATER DISPOSAL (WORK GROUP 148)"]
[]
[null,"0,6mm Galvanised sheet steel gutters and rainwater pipes with powder coated finish on outside to match roof sheeting colour:"]
[]
[{"v":1,"d":"1 "},"150 x150mm Box gutters",null,"m",{"v":31,"d":"31 "},null,{"$f":"ROUND(E1779*F1779,2)","v":{"v":0,"d":"0.00"}}]
[]
[{"v":2,"d":"2 "},"100 x 75mm Rainwater pipes",null,"m",{"v":12,"d":"12 "},null,{"$f":"ROUND(E1781*F1781,2)","v":{"v":0,"d":"0.00"}}]
[]
[{"v":3,"d":"3 "},"Extra over gutter for stopped end",null,"No",{"v":2,"d":"2 "},null,{"$f":"ROUND(E1783*F1783,2)","v":{"v":0,"d":"0.00"}}]
[]
[{"v":4,"d":"4 "},"Extra over gutter for angle",null,"No",{"v":2,"d":"2 "},null,{"$f":"ROUND(E1785*F1785,2)","v":{"v":0,"d":"0.00"}}]
[]
[{"v":5,"d":"5 "},"Extra over gutter for outlet for 100 x 75mm pipe",null,"No",{"v":2,"d":"2 "},null,{"$f":"ROUND(E1787*F1787,2)","v":{"v":0,"d":"0.00"}}]
[]
[{"v":6,"d":"6 "},"Extra over rainwater pipe for bend",null,"No",{"v":4,"d":"4 "},null,{"$f":"ROUND(E1789*F1789,2)","v":{"v":0,"d":"0.00"}}]
[]
[{"v":7,"d":"7 "},"Extra over rainwater pipe for shoe",null,"No",{"v":2,"d":"2 "},null,{"$f":"ROUND(E1791*F1791,2)","v":{"v":0,"d":"0.00"}}]
[]
[{"v":8,"d":"8 "},"Extra over rainwater pipe for eaves or plinth offset",null,"No",{"v":2,"d":"2 "},null,{"$f":"ROUND(E1793*F1793,2)","v":{"v":0,"d":"0.00"}}]
[]
[null,"SANITARY FITTINGS (WORK GROUP 148)"]
[]
[null,"Approved stainless steel:"]
[]
[{"v":9,"d":"9 "},"1800 x 535mm sink with two 343 x 410mm centre bowls, on cupboard (cupboard elsewhere)",null,"No",{"v":1,"d":"1 "},null,{"$f":"ROUND(E1799*F1799,2)","v":{"v":0,"d":"0.00"}}]
[]
[null,"Sanitary fittings:"]
[]
[{"v":10,"d":"10 "},"595 x 455mm Vanity basin mounted in vanity slab (vanity slab elsewhere)",null,"No",{"v":10,"d":"10 "},null,{"$f":"ROUND(E1803*F1803,2)","v":{"v":0,"d":"0.00"}}]
[]
[{"v":11,"d":"11 "},"580 x 410mm Underslung wash hand basin mounted in vanity slab (vanity slab elsewhere)",null,"No",{"v":1,"d":"1 "},null,{"$f":"ROUND(E1805*F1805,2)","v":{"v":0,"d":"0.00"}}]
[]
[{"v":12,"d":"12 "},"Close-coupled WC suite comprising pan with double flap heavy duty thermoset seat and matching 9 litre cistern",null,"No",{"v":6,"d":"6 "},null,{"$f":"ROUND(E1807*F1807,2)","v":{"v":0,"d":"0.00"}}]
[]
[{"v":13,"d":"13 "},"Paraplegic WC suite with lid, fitments, purpose made CP side flush lever and purpose made double flap white epoxy painted wooden seat",null,"No",{"v":2,"d":"2 "},null,{"$f":"ROUND(E1809*F1809,2)","v":{"v":0,"d":"0.00"}}]
[]
[{"v":14,"d":"14 "},"Wall urinal with spreader and waste union (flush valve elsewhere)",null,"No",{"v":6,"d":"6 "},null,{"$f":"ROUND(E1811*F1811,2)","v":{"v":0,"d":"0.00"}}]
[]
[{"v":15,"d":"15 "},"900 x 900 x 150mm shower tray with waste outlet, bedded in position",null,"No",{"v":7,"d":"7 "},null,{"$f":"ROUND(E1813*F1813,2)","v":{"v":0,"d":"0.00"}}]
[]
[null,"WASTE UNIONS, ETC"]
[]
[{"v":16,"d":"16 "},"40mm CP basin waste union and anti-theft plug",null,"No",{"v":11,"d":"11 "},null,{"$f":"ROUND(E1817*F1817,2)","v":{"v":0,"d":"0.00"}}]
[]
[{"v":17,"d":"17 "},"38mm Sink waste union with plug, stay and chain",null,"No",{"v":1,"d":"1 "},null,{"$f":"ROUND(E1819*F1819,2)","v":{"v":0,"d":"0.00"}}]
[]
[null,"TRAPS, ETC"]
[]
[null,"uPVC:"]
[]
[{"v":18,"d":"18 "},"40mm \"P\" or \"S\" trap",null,"No",{"v":11,"d":"11 "},null,{"$f":"ROUND(E1825*F1825,2)","v":{"v":0,"d":"0.00"}}]
[]
[{"v":19,"d":"19 "},"CP hinged urinal domical grating",null,"No",{"v":12,"d":"12 "},null,{"$f":"ROUND(E1827*F1827,2)","v":{"v":0,"d":"0.00"}}]
[]
[{"v":20,"d":"20 "},"40mm Shower trap with chromium plated grating",null,"No",{"v":7,"d":"7 "},null,{"$f":"ROUND(E1829*F1829,2)","v":{"v":0,"d":"0.00"}}]
[]
[{"v":21,"d":"21 "},"50mm Bottle trap",null,"No",{"v":6,"d":"6 "},null,{"$f":"ROUND(E1831*F1831,2)","v":{"v":0,"d":"0.00"}}]
[]
[null,"TAPS, VALVES, ETC"]
[]
[{"v":22,"d":"22 "},"15mm Basin mixer with waste union and angle flow regulating valves",null,"No",{"v":10,"d":"10 "},null,{"$f":"ROUND(E1835*F1835,2)","v":{"v":0,"d":"0.00"}}]
[]
[{"v":23,"d":"23 "},"Chrome single lever, extra long handle basin mixer with waste union and angle flow regulating valves",null,"No",{"v":1,"d":"1 "},null,{"$f":"ROUND(E1837*F1837,2)","v":{"v":0,"d":"0.00"}}]
[]
[{"v":24,"d":"24 "},"15mm Star sink mixer",null,"No",{"v":1,"d":"1 "},null,{"$f":"ROUND(E1839*F1839,2)","v":{"v":0,"d":"0.00"}}]
[]
[{"v":25,"d":"25 "},"15mm Shower mixer",null,"No",{"v":7,"d":"7 "},null,{"$f":"ROUND(E1841*F1841,2)","v":{"v":0,"d":"0.00"}}]
[]
[{"v":26,"d":"26 "},"15mm Shower head",null,"No",{"v":7,"d":"7 "},null,{"$f":"ROUND(E1843*F1843,2)","v":{"v":0,"d":"0.00"}}]
[]
[{"v":27,"d":"27 "},"15mm Overhead shower arm",null,"No",{"v":7,"d":"7 "},null,{"$f":"ROUND(E1845*F1845,2)","v":{"v":0,"d":"0.00"}}]
[]
[{"v":28,"d":"28 "},"Urinal flush valve",null,"No",{"v":6,"d":"6 "},null,{"$f":"ROUND(E1847*F1847,2)","v":{"v":0,"d":"0.00"}}]
[]
[null,"ELECTRIC GEYSERS (WORK GROUP 148)"]
[]
[{"v":29,"d":"29 "},"150 Litre electric geyser",null,"No",{"v":1,"d":"1 "},null,{"$f":"ROUND(E1851*F1851,2)","v":{"v":0,"d":"0.00"}}]
[]
[null,"ELECTRIC WATER HEATERS"]
[]
[null,"Powdercoated Instant Water Boiler, etc:"]
[]
[{"v":30,"d":"30 "},"10 Litre stainless steel Hydroboil, 340 x 205 x 630mm high with a two-way tap",null,"No",{"v":1,"d":"1 "},null,{"$f":"ROUND(E1857*F1857,2)","v":{"v":0,"d":"0.00"}}]
[]
[null,"WATER TANKS, ETC."]
[]
[{"v":31,"d":"31 "},"10, 000 Litre water storage tank",null,"No",{"v":4,"d":"4 "},null,{"$f":"ROUND(E1861*F1861,2)","v":{"v":0,"d":"0.00"}}]
[]
[null,"AS-BUILT DRAWINGS"]
[]
[{"v":32,"d":"32 "},"Provision of as-built drawings",null,"No",{"v":1,"d":"1 "},null,{"$f":"ROUND(E1865*F1865,2)","v":{"v":0,"d":"0.00"}}]
[]
[null,"Carried to section summary / …",{"$nulls":4},{"$f":"SUM(G1662:G1866)","v":{"v":0,"d":"0.00"}}]
[]
[null,"SECTION 2"]
[]
[null,"BILL NO. 16"]
[]
[null,"GLAZING"]
[]
[null,"WORK GROUP ALLOCATION"]
[]
[null,"Unless otherwise stated, all items in this Bill will be allocated to Work Group 150 - Glazing"]
[]
[null,"PREAMBLES"]
[]
[null,"The General Preambles for Trades (2017 edition) as published by the Association of South African Quantity Surveyors shall be deemed to be incorporated in these bills of quantities and no claims arising from brevity of description of items fully described in the said General Preambles will be entertained"]
[]
[null,"The following \"Supplementary Preambles\" are incorporated in this bill to satisfy the requirements of the project and shall take precedence over the provisions of the said General Preambles"]
[]
[null,"SUPPLEMENTARY PREAMBLES"]
[]
[null,"Float glass:"]
[]
[null,"The term \"float glass\" is used for monolithic annealed glass"]
[]
[null,"Laminated glass:"]
[]
[null,"Laminated glass to have polyvinyl butyral (PVB) interlayer(s)"]
[]
[null,"TOPS, SHELVES, DOORS, MIRRORS, ETC"]
[]
[null,"4mm Silvered float glass copper backed mirrors with 10mm bevelled and polished edges fixed with double sided adhesive tape:"]
[]
[{"v":1,"d":"1 "},"Mirror 600 x 1200mm high",null,"No",{"v":2,"d":"2 "},null,{"$f":"ROUND(E1899*F1899,2)","v":{"v":0,"d":"0.00"}}]
[]
[{"v":2,"d":"2 "},"Mirror 1200 x 1200mm high",null,"No",{"v":1,"d":"1 "},null,{"$f":"ROUND(E1901*F1901,2)","v":{"v":0,"d":"0.00"}}]
[]
[{"v":3,"d":"3 "},"Mirror 1800 x 1200mm high",null,"No",{"v":3,"d":"3 "},null,{"$f":"ROUND(E1903*F1903,2)","v":{"v":0,"d":"0.00"}}]
[]
[null,"Carried to section summary / …",{"$nulls":4},{"$f":"SUM(G1868:G1904)","v":{"v":0,"d":"0.00"}}]
[]
[null,"SECTION 2"]
[]
[null,"BILL NO. 17"]
[]
[null,"PAINTWORK"]
[]
[null,"WORK GROUP ALLOCATION"]
[]
[null,"Unless otherwise stated, all items in this Bill will be allocated to Work Group 152 - Painting"]
[]
[null,"PREAMBLES"]
[]
[null,"The General Preambles for Trades (2017 edition) as published by the Association of South African Quantity Surveyors shall be deemed to be incorporated in these bills of quantities and no claims arising from brevity of description of items fully described in the said General Preambles will be entertained"]
[]
[null,"The following \"Supplementary Preambles\" are incorporated in this bill to satisfy the requirements of the project and shall take precedence over the provisions of the said General Preambles"]
[]
[null,"SUPPLEMENTARY PREAMBLES"]
[]
[null,"PREPARATORY WORK TO EXISTING WORK"]
[]
[null,"Previously painted plastered surfaces:"]
[]
[null,"Surfaces shall be thoroughly washed down and allowed to dry completely before any paint is applied. Blistered or peeling paint shall be completely removed and minor cracks shall be opened, filled with a suitable filler and finished smooth"]
[]
[null,"Previously painted metal surfaces:"]
[]
[null,"Surfaces shall be thoroughly rubbed and cleaned down.  Blistered or peeling paint shall be completely removed down to bare metal"]
[]
[null,"Previously painted wood surfaces:"]
[]
[null,"Surfaces shall be thoroughly cleaned down.  Blistered or peeling paint shall be completely removed and cracks and crevices shall be primed, filled with suitable filler and finished smooth"]
[]
[null,"PAINT SPECIFICATIONS"]
[]
[null,"All painting shall be done in accordance with specifications, unless otherwise described"]
[]
[null,"COLOURS"]
[]
[null,"When staining timber, the resultant colour or shade must be to the complete satisfaction of the Project Manager before any overcoating or preservative is applied  Paintwork is classified in the following different colour groups: \"White\", \"Pastel\", \"Deep\" and \"Transparent\" in accordance with the \"Natural Colour System\" (NCS) adopted by the SA National Standards Unless otherwise described, all paintwork shall be deemed to be classified in the \"White\" colour group"]
[]
[null,"PAINTWORK, ETC TO NEW WORK"]
[]
[null,"ON INTERNAL FLOATED PLASTER SURFACES"]
[]
[null,"One coat alkali resistant plaster primer and two coats PVA acrylic emulsion paint on"]
[]
[{"v":1,"d":"1 "},"Walls",null,"m²",{"v":218,"d":"218 "},null,{"$f":"ROUND(E1953*F1953,2)","v":{"v":0,"d":"0.00"}}]
[]
[null,"ON EXTERNAL FLOATED PLASTER SURFACES"]
[]
[null,"One coat alkali resistant primer and two coats premium quality polyurethane enamel paint, on:"]
[]
[{"v":2,"d":"2 "},"Walls",null,"m²",{"v":2058,"d":"2,058 "},null,{"$f":"ROUND(E1959*F1959,2)","v":{"v":0,"d":"0.00"}}]
[]
[{"v":3,"d":"3 "},"On narrow widths",null,"m²",{"v":196,"d":"196 "},null,{"$f":"ROUND(E1961*F1961,2)","v":{"v":0,"d":"0.00"}}]
[]
[null,"ON INTERNAL GYPSUM PLASTER SURFACES"]
[]
[null,"One coat primer and two coats interior quality acrylic PVA paint"]
[]
[{"v":4,"d":"4 "},"Ceilings and beams",null,"m²",{"v":716,"d":"716 "},null,{"$f":"ROUND(E1967*F1967,2)","v":{"v":0,"d":"0.00"}}]
[]
[null,"METAL SURFACES WITH"]
[]
[null,"One coat alkyd based zinc phosphate primer and two coats premium quality polyurethane enamel paint, on steel:"]
[]
[{"v":5,"d":"5 "},"Door frames",null,"m²",{"v":9,"d":"9 "},null,{"$f":"ROUND(E1973*F1973,2)","v":{"v":0,"d":"0.00"}}]
[]
[null,"ON WOOD SURFACES"]
[]
[null,"One coat primer, one coat alkyd based universal undercoat and two coats superior quality universal enamel paint, on:"]
[]
[{"v":6,"d":"6 "},"Doors",null,"m²",{"v":4,"d":"4 "},null,{"$f":"ROUND(E1979*F1979,2)","v":{"v":0,"d":"0.00"}}]
[]
[{"v":7,"d":"7 "},"Skirtings, rails not exceeding 300mm girth",null,"m",{"v":208,"d":"208 "},null,{"$f":"ROUND(E1981*F1981,2)","v":{"v":0,"d":"0.00"}}]
[]
[null,"Carried to section summary / …",{"$nulls":4},{"$f":"SUM(G1906:G1982)","v":{"v":0,"d":"0.00"}}]
[]
[null,"SECTION SUMMARY "]
[]
[{"v":1,"d":"1 "},"Alterations (Provisional)",{"$nulls":4},{"$f":"G283","v":{"v":0,"d":"0.00"}}]
[]
[{"v":2,"d":"2 "},"Earthworks (Provisional)",{"$nulls":4},{"$f":"G401","v":{"v":0,"d":"0.00"}}]
[]
[{"v":3,"d":"3 "},"Concrete, Formwork and Reinforcement",{"$nulls":4},{"$f":"G547","v":{"v":0,"d":"0.00"}}]
[]
[{"v":4,"d":"4 "},"Masonry",{"$nulls":4},{"$f":"G657","v":{"v":0,"d":"0.00"}}]
[]
[{"v":5,"d":"5 "},"Waterproofing",{"$nulls":4},{"$f":"G703","v":{"v":0,"d":"0.00"}}]
[]
[{"v":6,"d":"6 "},"Roof Coverings",{"$nulls":4},{"$f":"G751","v":{"v":0,"d":"0.00"}}]
[]
[{"v":7,"d":"7 "},"Carpentry and Joinery",{"$nulls":4},{"$f":"G843","v":{"v":0,"d":"0.00"}}]
[]
[{"v":8,"d":"8 "},"Ceilings, Partitions and Access Flooring",{"$nulls":4},{"$f":"G963","v":{"v":0,"d":"0.00"}}]
[]
[{"v":9,"d":"9 "},"Floor Coverings",{"$nulls":4},{"$f":"G1021","v":{"v":0,"d":"0.00"}}]
[]
[{"v":10,"d":"10 "},"Ironmongery",{"$nulls":4},{"$f":"G1129","v":{"v":0,"d":"0.00"}}]
[]
[{"v":11,"d":"11 "},"Structural Steelwork",{"$nulls":4},{"$f":"G1243","v":{"v":0,"d":"0.00"}}]
[]
[{"v":12,"d":"12 "},"Metalwork",{"$nulls":4},{"$f":"G1475","v":{"v":0,"d":"0.00"}}]
[]
[{"v":13,"d":"13 "},"Plastering",{"$nulls":4},{"$f":"G1593","v":{"v":0,"d":"0.00"}}]
[]
[{"v":14,"d":"14 "},"Tiling",{"$nulls":4},{"$f":"G1661","v":{"v":0,"d":"0.00"}}]
[]
[{"v":15,"d":"15 "},"Plumbing and Drainage (Provisional)",{"$nulls":4},{"$f":"G1867","v":{"v":0,"d":"0.00"}}]
[]
[{"v":16,"d":"16 "},"Glazing",{"$nulls":4},{"$f":"G1905","v":{"v":0,"d":"0.00"}}]
[]
[{"v":17,"d":"17 "},"Paintwork",{"$nulls":4},{"$f":"G1983","v":{"v":0,"d":"0.00"}}]
[]
[null,"CARRIED TO FINAL SUMMARY / …",{"$nulls":4},{"$f":"SUM(G1987:G2020)","v":{"v":0,"d":"0.00"}}]
[]
[null,"SECTION 3"]
[]
[null,"BILL NO.1"]
[]
[null,"SLIPWAY DECK (PROVISIONAL)"]
[]
[null,"EARTHWORKS"]
[]
[null,"WORK GROUP ALLOCATION"]
[]
[null,"Unless otherwise stated, all items in this Bill will be allocated to Work Group 104 - Earthworks"]
[]
[null,"PREAMBLES"]
[]
[null,"The General Preambles for Trades (2017 edition) as published by the Association of South African Quantity Surveyors shall be deemed to be included in these bills of quantities and no claims arising from brevity of description of items fully described in the said General Preambles will be entertained"]
[]
[null,"The following \"Supplementary Preambles\" are incorporated in this bill to satisfy the requirements of the project and shall take precedence over the provisions of the said General Preambles"]
[]
[null,"SUPPLEMENTARY PREAMBLES"]
[]
[null,"Nature of ground:"]
[]
[null,"The nature of the ground is assumed to be loose sandy material, therefore \"earth\", but possibly interspersed with \"soft rock\" or \"hard rock\""]
[]
[null,"The nature of the ground is assumed to be gravel, therefore \"earth\", but possibly interspersed with \"soft rock\" or \"hard rock\""]
[]
[null,"The nature of the ground is assumed to be silty clay with loose river boulders varying in size up to approximately 450mm diameter, all of which will be deemed as \"earth\", but possibly interspersed with \"hard rock\""]
[]
[null,"Trial holes indicate that the nature of the ground is silty clay to a depth of approximately 500mm with fine to medium loose sandy material below, therefore \"earth\""]
[]
[null,"A soils investigation has been carried out on the site by the Engineer and the report is annexed to these bills of quantities.  The soils report indicates that the ground varies between silty sand, reworked soil of mixed origin and residual shale, all of which will be deemed as \"earth\". All very hard unweathered shale, ironstone, etc the removal of which necessitates the use of explosives or heavy duty hydraulic percussion hammers (peckers), will be classified as \"hard rock\""]
[]
[null,"Should the Contractor encounter any \"soft\" or \"hard\" rock in the excavations, he shall immediately notify the Engineer who shall be the sole arbiter as to what constitutes \"soft\" or \"hard\" rock for final account purposes"]
[]
[null,"Excavation for working space in rock:"]
[]
[null,"Notwithstanding clause 10 measurement rule 27 of the Standard System of Measuring Building Work, excavation for working space in material of a more different character (e.g. soft or hard rock) will be measured in cubic metres to the extent executed and given as \"extra over\" bulk excavation or trench and hole excavation as the case may be"]
[]
[null,"Carting away of excavated material:"]
[]
[null,"Descriptions of carting away of excavated material shall be deemed to include loading excavated material onto trucks directly from the excavations or, alternatively, from stock piles situated on the building site"]
[]
[null,"Filling:"]
[]
[null,"Notwithstanding the reference to prescribed multiple handling in clause 1 of the Standard System of Measuring Building Work, prices for filling and backfilling shall include for all selection and any necessary multiple handling of material"]
[]
[null,"Testing:"]
[]
[null,"Prices for backfilling to trenches and holes only are to include for all necessary density tests in accordance with SANS 1200D"]
[]
[null,"Formwork:"]
[]
[null,"Formwork to sides of bases, pile caps, ground beams, etc will only be measured where it is prescribed by the Engineer for design reasons  Formwork necessitated by irregularity or collapse of excavated faces will not be measured and the cost thereof shall be deemed to be included in the allowance for taking the risk of collapse of the sides of the excavations, provision for which is made in \"Earthworks\""]
[]
[null,"SITE CLEARANCE, ETC"]
[]
[null,"Site clearance:"]
[]
[{"v":1,"d":"1 "},"Digging up and removing rubbish, debris, vegetation, hedges, shrubs, bush, etc and trees not exceeding 200mm girth",null,"m²",{"v":451,"d":"451 "},null,{"$f":"ROUND(E2081*F2081,2)","v":{"v":0,"d":"0.00"}}]
[]
[null,"FILLING, ETC"]
[]
[null,"Earth filling supplied by the Contractor, compacted to 95% Mod AASHTO density:"]
[]
[{"v":2,"d":"2 "},"200mm Cement stabilised material over site to form platforms, compacted to Engineer's specification",null,"m³",{"v":90,"d":"90 "},null,{"$f":"ROUND(E2087*F2087,2)","v":{"v":0,"d":"0.00"}}]
[]
[null,"Compaction of surfaces:"]
[]
[{"v":3,"d":"3 "},"Compaction of ground surface under floors etc. including scarifying for a depth of 150mm, breaking down oversize material, adding suitable material where necessary and compacting to 95% Mod AASHTO density",null,"m²",{"v":451,"d":"451 "},null,{"$f":"ROUND(E2091*F2091,2)","v":{"v":0,"d":"0.00"}}]
[]
[null,"Prescribed density tests on filling:"]
[]
[{"v":4,"d":"4 "},"\"Modified AASHTO Density\" test",null,"No",{"v":9,"d":"9 "},null,{"$f":"ROUND(E2095*F2095,2)","v":{"v":0,"d":"0.00"}}]
[]
[null,"REVETMENT"]
[]
[null,"Revetment"]
[]
[{"v":5,"d":"5 "},"50 - 300KG Rock",null,"m³",{"v":1258,"d":"1,258 "},null,{"$f":"ROUND(E2101*F2101,2)","v":{"v":0,"d":"0.00"}}]
[]
[{"v":6,"d":"6 "},"750 - 1250KG Rock",null,"m²",{"v":6714,"d":"6,714 "},null,{"$f":"ROUND(E2103*F2103,2)","v":{"v":0,"d":"0.00"}}]
[]
[{"v":7,"d":"7 "},"150mm quarry run",null,"m³",{"v":98,"d":"98 "},null,{"$f":"ROUND(E2105*F2105,2)","v":{"v":0,"d":"0.00"}}]
[]
[null,"WORK GROUP ALLOCATION"]
[]
[null,"The items in this Bill will be allocated to Work Groups as indicated in brackets at the end of headings or descriptions"]
[]
[null,"PREAMBLES"]
[]
[null,"The General Preambles for Trades (2017 edition) as published by the Association of South African Quantity Surveyors shall be deemed to be incorporated in these bills of quantities and no claims arising from brevity of description of items fully described in the said General Preambles will be entertained"]
[]
[null,"The following \"Supplementary Preambles\" are incorporated in this bill to satisfy the requirements of the project and shall take precedence over the provisions of the said General Preambles"]
[]
[null,"SUPPLEMENTARY PREAMBLES"]
[]
[null,"Cost of tests:"]
[]
[null,"Breeze concrete:"]
[]
[null,"Breeze concrete shall consist of twelve parts clean dry furnace ash, free from coal or other foreign matter, to one part cement (1:12); the ash graded up to particles which will pass a 16,5mm ring from a minimum which fails to pass a 4,75mm mesh.  The finer materials from the screening are to be first mixed with the cement into a mortar and the ash added afterwards and thoroughly incorporated"]
[]
[null,"Lightweight concrete:"]
[]
[null,"Lightweight concrete shall have a density of 600kg/m3 for the top 50mm and 400kg/m3 for the remaining thickness.  The minimum thickness at outlets, channels, etc shall be 50mm"]
[]
[null,"Waterproof concrete:"]
[]
[null,"\"Waterproof concrete\" shall have the same properties as normal concrete, but the following shall be modified to make the the concrete more water-tight: 1. a cement/water ratio of minimum 1.9 and maximum 2.1 2. minimum OPC content of 300kg/m3 3. Polypropolene micro fibres added to concrete at rate of 182 million per m3"]
[]
[null,"Formwork:"]
[]
[null,"Descriptions of formwork shall be deemed to include use and waste only (except where described as \"left in\" or \"permanent\"), for fitting together in the required forms, wedging, plumbing and fixing to true angles and surfaces as necessary to ensure easy release during stripping and for reconditioning as necessary before re-use"]
[]
[null,"The vertical strutting shall be carried down to such construction as is sufficiently strong to afford the required support without damage and shall remain in position until the newly constructed work is able to support itself"]
[]
[null,"Formwork to soffits of solid slabs, etc shall be deemed to be to slabs not exceeding 250mm thick unless otherwise described"]
[]
[null,"Formwork to soffits of slabs, beams, etc shall be deemed to be propped up exceeding 1,5m and not exceeding 3,5m high unless otherwise described"]
[]
[null,"REINFORCED CONCRETE CAST AGAINST EXCAVATED SURFACES (WORK GROUP 110)"]
[]
[null,"50MPa/19mm concrete:"]
[]
[null,"200mm Surface beds on waterproofing",null,"m³",{"v":83,"d":"83 "},null,{"$f":"ROUND(E2147*F2147,2)","v":{"v":0,"d":"0.00"}}]
[]
[null,"TEST CUBES (WORK GROUP 110)"]
[]
[{"v":8,"d":"8 "},"Making and testing sets of three 150 x 150 x 150mm concrete strength test cubes (Provisional)",null,"Sets",{"v":14,"d":"14 "},null,{"$f":"ROUND(E2151*F2151,2)","v":{"v":0,"d":"0.00"}}]
[]
[null,"CONCRETE SUNDRIES (WORK GROUP 110)"]
[]
[null,"Finishing top surfaces of concrete smooth with a steel trowel:"]
[]
[{"v":9,"d":"9 "},"Surface beds, slabs, etc.",null,"m²",{"v":414,"d":"414 "},null,{"$f":"ROUND(E2157*F2157,2)","v":{"v":0,"d":"0.00"}}]
[]
[null,"MOVEMENT JOINTS, ETC (WORK GROUP 110)"]
[]
[null,"Saw-cut joints:"]
[]
[{"v":10,"d":"10 "},"3 x 70mm Saw-cut joints in top of concrete",null,"m",{"v":89,"d":"89 "},null,{"$f":"ROUND(E2163*F2163,2)","v":{"v":0,"d":"0.00"}}]
[]
[null,"Fabric reinforcement:"]
[]
[{"v":11,"d":"11 "},"Type 395 fabric reinforcement in concrete surface beds, slabs, etc.",null,"m²",{"v":414,"d":"414 "},null,{"$f":"ROUND(E2167*F2167,2)","v":{"v":0,"d":"0.00"}}]
[]
[null,"TESTING"]
[]
[{"v":12,"d":"12 "},"Testing piles to specified loads as directed by the Project Manager",null,"SUM",{"v":1,"d":"1 "}]
[]
[null,"DAMPPROOFING OF WALLS AND FLOORS"]
[]
[null,"One layer geofabric:"]
[]
[{"v":13,"d":"13 "},"Under surface beds",null,"m²",{"v":451,"d":"451 "},null,{"$f":"ROUND(E2177*F2177,2)","v":{"v":0,"d":"0.00"}}]
[]
[null,"One layer 250 micron green polyethylene waterproof sheeting (SANS 952-1985 type C) sealed at laps with PVC self-adhesive tape:"]
[]
[{"v":14,"d":"14 "},"To sub-base",null,"m",{"v":58,"d":"58 "},null,{"$f":"ROUND(E2181*F2181,2)","v":{"v":0,"d":"0.00"}}]
[]
[null,"JOINT SEALANTS ETC"]
[]
[null,"White silicone sealing compound"]
[]
[{"v":15,"d":"15 "},"10 x 10mm in joints",null,"m",{"v":89,"d":"89 "},null,{"$f":"ROUND(E2187*F2187,2)","v":{"v":0,"d":"0.00"}}]
[]
[{"v":16,"d":"16 "},"12mm Wide in joints",null,"m",{"v":89,"d":"89 "},null,{"$f":"ROUND(E2189*F2189,2)","v":{"v":0,"d":"0.00"}}]
[]
[{"v":17,"d":"17 "},"Silicone keyed joint sealant",null,"m",{"v":99,"d":"99 "},null,{"$f":"ROUND(E2191*F2191,2)","v":{"v":0,"d":"0.00"}}]
[]
[null,"CARRIED TO FINAL SUMMARY / …",{"$nulls":4},{"$f":"SUM(G2022:G2192)","v":{"v":0,"d":"0.00"}}]
[]
[null,"SECTION 4"]
[]
[null,"BILL NO. 1"]
[]
[null,"EXTERNAL WORKS (PROVISIONAL)"]
[]
[null,"(ALL TRADES)"]
[]
[null,"WORK GROUP ALLOCATION"]
[]
[null,"The items in this Bill will be allocated to Work Groups as indicated in brackets at the end of headings or descriptions"]
[]
[null,"PREAMBLES"]
[]
[null,"The Model Preambles for Trades (2008 edition) as published by the Association of South African Quantity Surveyors shall be deemed to be incorporated in these bills of quantities and no claims arising from brevity of description of items fully described in the said General Preambles will be entertained"]
[]
[null,"The following \"Supplementary Preambles\" are incorporated in this bill to satisfy the requirements of the project and shall take precedence over the provisions of the said General Preambles"]
[]
[null,"SUPPLEMENTARY PREAMBLES"]
[]
[null,"Nature of ground:"]
[]
[null,"The nature of the ground is assumed to be loose sandy material, therefore \"earth\", but possibly interspersed with \"soft rock\" or \"hard rock\""]
[]
[null,"The nature of the ground is assumed to be gravel, therefore \"earth\", but possibly interspersed with \"soft rock\" or \"hard rock\""]
[]
[null,"The nature of the ground is assumed to be silty clay with loose river boulders varying in size up to approximately 450mm diameter, all of which will be deemed as \"earth\", but possibly interspersed with \"hard rock\""]
[]
[null,"Trial holes indicate that the nature of the ground is silty clay to a depth of approximately 500mm with fine to medium loose sandy material below, therefore \"earth\""]
[]
[null,"A soils investigation has been carried out on the site by the Engineer and the report is annexed to these bills of quantities.  The soils report indicates that the ground varies between transported soils at surface comprising gravel layers of varying  thickness and interspersed with clay, and weathered shales varying from very soft rock to medium hard rock consistency, all of which will be deemed as \"earth\". All very hard unweathered shale, ironstone, etc the removal of which necessitates the use of explosives or heavy duty hydraulic percussion hammers (peckers), will be classified as \"hard rock\""]
[]
[null,"Should the Contractor encounter any \"soft\" or \"hard\" rock in the excavations, he shall immediately notify the Engineer who shall be the sole arbiter as to what constitutes \"soft\" or \"hard\" rock for final account purposes"]
[]
[null,"Subterranean water:"]
[]
[null,"No subterranean water is expected"]
[]
[null,"Excavation for working space in rock:"]
[]
[null,"Notwithstanding clause 11 of the Standard System of Measuring Building Work, excavation for working space in rock will be measured in cubic metres to the extent executed and given as \"extra over\" bulk excavation or trench and hole excavation as the case may be"]
[]
[null,"Carting away of excavated material:"]
[]
[null,"Descriptions of carting away of excavated material shall be deemed to include loading excavated material onto trucks directly from the excavations or, alternatively, from stock piles situated on the building site"]
[]
[null,"Filling:"]
[]
[null,"Notwithstanding the reference to prescribed multiple handling in Clause 1 of the Standard System of Measuring Building Work, prices for filling and backfilling shall include for all selection and any necessary multiple handling of material"]
[]
[null,"Testing:"]
[]
[null,"Prices for backfilling to trenches and holes only are to include for all necessary density tests in accordance with SANS 1200D"]
[]
[null,"Maintenance period:"]
[]
[null,"The maintenance period to civil works such as roads, parking and related earthworks shall be twelve calender months"]
[]
[null,"DEMOLITIONS, ETC (WORK GROUP 104)"]
[]
[null,"Breaking up and removing:"]
[]
[{"v":1,"d":"1 "},"150mm  Thick mesh reinforced concrete surface beds, paving, etc.",null,"m²",{"v":561,"d":"561 "},null,{"$f":"ROUND(E2257*F2257,2)","v":{"v":0,"d":"0.00"}}]
[]
[null,"Taking down and removing:"]
[]
[{"v":2,"d":"2 "},"Palisade fence 3000mm high",null,"m",{"v":40,"d":"40 "},null,{"$f":"ROUND(E2261*F2261,2)","v":{"v":0,"d":"0.00"}}]
[]
[null,"SITE CLEARANCE, ETC (WORK GROUP 104)"]
[]
[null,"Site clearance:"]
[]
[{"v":3,"d":"3 "},"Stripping average 150mm thick layer of top soil and depositing material in prescribed stock piles on site",null,"m²",{"v":200,"d":"200 "},null,{"$f":"ROUND(E2267*F2267,2)","v":{"v":0,"d":"0.00"}}]
[]
[null,"PAVINGS, ETC"]
[]
[null,"SUPPLEMENTARY PREAMBLES"]
[]
[null,"Testing of material and filling:"]
[]
[null,"Descriptions of earth filling, compaction, etc shall be deemed to include for all necessary testing required in accordance with the SABS 1200 series"]
[]
[null,"EARTHWORKS (WORK GROUP 104)"]
[]
[null,"Excavation in earth not exceeding 2m deep:"]
[]
[{"v":4,"d":"4 "},"Over site between buildings, retaining walls, etc to reduce levels and dispose in prescribed stock piles on site",null,"m³",{"v":135,"d":"135 "},null,{"$f":"ROUND(E2281*F2281,2)","v":{"v":0,"d":"0.00"}}]
[]
[null,"Extra over all excavations for carting away:"]
[]
[{"v":5,"d":"5 "},"Surplus material from excavations and/or stock piles on site to a dumping site to be located by the contractor",null,"m³",{"v":135,"d":"135 "},null,{"$f":"ROUND(E2285*F2285,2)","v":{"v":0,"d":"0.00"}}]
[]
[null,"Compaction of surfaces:"]
[]
[{"v":6,"d":"6 "},"Compaction of ground surface under pavings, etc including scarifying for a depth of 150mm, breaking down oversize material, adding suitable material where necessary and compacting to 98% Mod AASHTO density",null,"m²",{"v":200,"d":"200 "},null,{"$f":"ROUND(E2289*F2289,2)","v":{"v":0,"d":"0.00"}}]
[]
[null,"Earth filling from commercial sources supplied by the Contractor under parking areas, roadways, etc:"]
[]
[{"v":7,"d":"7 "},"Sub-base course of G5 material compacted to 95% Mod AASHTO density",null,"m³",{"v":30,"d":"30 "},null,{"$f":"ROUND(E2293*F2293,2)","v":{"v":0,"d":"0.00"}}]
[]
[{"v":8,"d":"8 "},"Sub-base course of G7 material compacted to 93% Mod AASHTO density",null,"m³",{"v":30,"d":"30 "},null,{"$f":"ROUND(E2295*F2295,2)","v":{"v":0,"d":"0.00"}}]
[]
[null,"Weedkiller (active ingredients metalaclor 102,8 g/l, terbitilasien 248,6 g/l and atrasien 248,6 g/l) mixed in the proportion of 100 ml weedkiller to 100 l water and applied at a rate of 10 l/m2:"]
[]
[{"v":9,"d":"9 "},"Under paving, etc",null,"m²",{"v":200,"d":"200 "},null,{"$f":"ROUND(E2299*F2299,2)","v":{"v":0,"d":"0.00"}}]
[]
[null,"PRECAST CONCRETE (WORK GROUP 112)"]
[]
[null,"Paving of 200 x 100 x 60mm \"Type S-A\" precast concrete paving bricks with butt joints, on 20mm thick river sand bed with sand-and-cement mixture swept into joints and hosed down, including preparation of ground or filling:"]
[]
[{"v":10,"d":"10 "},"Paving in herringbone bond pattern",null,"m²",{"v":100,"d":"100 "},null,{"$f":"ROUND(E2305*F2305,2)","v":{"v":0,"d":"0.00"}}]
[]
[null,"Paving of 200 x 100 x 80mm \"Type S-A\" precast concrete paving bricks with butt joints, on 20mm thick river sand bed with sand-and-cement mixture swept into joints and hosed down, including preparation of ground or filling:"]
[]
[{"v":11,"d":"11 "},"Paving in herringbone bond pattern to falls [ LI ]",null,"m²",{"v":100,"d":"100 "},null,{"$f":"ROUND(E2309*F2309,2)","v":{"v":0,"d":"0.00"}}]
[]
[null,"Precast concrete finished smooth on exposed surfaces, including bedding, jointing and pointing:"]
[]
[{"v":12,"d":"12 "},"150 x 300mm High kerbs (SANS 927 fig 3) with 150 x 150 x 300mm unreinforced concrete haunching at back of each joint, including excavation, backfilling, etc",null,"m",{"v":2,"d":"2 "},null,{"$f":"ROUND(E2313*F2313,2)","v":{"v":0,"d":"0.00"}}]
[]
[{"v":13,"d":"13 "},"150 x 300mm High kerbs (SANS 927 fig 3) with 150 x 150 x 300mm unreinforced concrete haunching at back of each joint, circular-on-plan exceeding 4m radius, formed with straight kerbs, including excavation, backfilling, etc",null,"m",{"v":2,"d":"2 "},null,{"$f":"ROUND(E2315*F2315,2)","v":{"v":0,"d":"0.00"}}]
[]
[{"v":14,"d":"14 "},"150 x 300mm High kerbs (SANS 927 fig 8) with 150 x 150 x 300mm unreinforced concrete haunching at back of each joint, including excavation, backfilling, etc",null,"m",{"v":4,"d":"4 "},null,{"$f":"ROUND(E2317*F2317,2)","v":{"v":0,"d":"0.00"}}]
[]
[{"v":15,"d":"15 "},"150 x 300mm High kerbs (SANS 927 fig 8) with 150 x 150 x 300mm unreinforced concrete haunching at back of each joint, circular-on-plan exceeding 4m radius, formed with straight kerbs, including excavation, backfilling, etc",null,"m",{"v":7,"d":"7 "},null,{"$f":"ROUND(E2319*F2319,2)","v":{"v":0,"d":"0.00"}}]
[]
[{"v":16,"d":"16 "},"100 x 300mm High kerbs (SANS 927 fig 5b) with 150 x 150 x 300mm unreinforced concrete haunching at back of each joint, including excavation, backfilling, etc",null,"m",{"v":2,"d":"2 "},null,{"$f":"ROUND(E2321*F2321,2)","v":{"v":0,"d":"0.00"}}]
[]
[null,"Road signs:"]
[]
[{"v":17,"d":"17 "},"Standard \"STOP\" sign with 50mm diameter galvanised mild steel post bedded in and including unreinforced concrete base, including any necessary excavation, paint finish, etc",null,"No",{"v":1,"d":"1 "},null,{"$f":"ROUND(E2325*F2325,2)","v":{"v":0,"d":"0.00"}}]
[]
[null,"Paintwork:"]
[]
[null,"Prepare and apply one coat white reflective road marking paint on bituminous road surfacing, precast concrete paving blocks, etc:"]
[]
[{"v":18,"d":"18 "},"100mm Wide dotted line",null,"m",{"v":10,"d":"10 "},null,{"$f":"ROUND(E2331*F2331,2)","v":{"v":0,"d":"0.00"}}]
[]
[null,"RAMPS"]
[]
[null,"EARTHWORKS (WORK GROUP 104)"]
[]
[null,"Excavation in earth not exceeding 2m deep:"]
[]
[{"v":19,"d":"19 "},"Reduced levels under floors",null,"m³",{"v":37,"d":"37 "},null,{"$f":"ROUND(E2339*F2339,2)","v":{"v":0,"d":"0.00"}}]
[]
[null,"Extra over all excavations for carting away:"]
[]
[{"v":20,"d":"20 "},"Surplus material from excavations and/or stock piles on site to a dumping site to be located by the contractor",null,"m³",{"v":35,"d":"35 "},null,{"$f":"ROUND(E2343*F2343,2)","v":{"v":0,"d":"0.00"}}]
[]
[null,"G5 filling material supplied by the contractor, compacted to 95% Mod AASHTO density:"]
[]
[{"v":21,"d":"21 "},"Under floors, steps, pavings, etc",null,"m³",{"v":8,"d":"8 "},null,{"$f":"ROUND(E2347*F2347,2)","v":{"v":0,"d":"0.00"}}]
[]
[null,"Compaction of surfaces:"]
[]
[{"v":22,"d":"22 "},"Compaction of ground surface under floors etc including scarifying for a depth of 150mm, breaking down oversize material, adding suitable material where necessary and compacting to 91% Mod AASHTO density",null,"m²",{"v":55,"d":"55 "},null,{"$f":"ROUND(E2351*F2351,2)","v":{"v":0,"d":"0.00"}}]
[]
[null,"Prescribed density tests on filling:"]
[]
[{"v":23,"d":"23 "},"\"Modified AASHTO Density\" test",null,"No",{"v":9,"d":"9 "},null,{"$f":"ROUND(E2355*F2355,2)","v":{"v":0,"d":"0.00"}}]
[]
[null,"Soil insecticide in accordance with SANS 5859:"]
[]
[{"v":24,"d":"24 "},"Soil insecticide (protection against termites) applied as specified to bottoms and sides of trenches, etc including forming and poisoning shallow furrows against foundation walls, etc filling in furrows and ramming",null,"m²",{"v":55,"d":"55 "},null,{"$f":"ROUND(E2359*F2359,2)","v":{"v":0,"d":"0.00"}}]
[]
[null,"CONCRETE WORK (WORK GROUP 110)"]
[]
[null,"25MPa/19mm reinforced concrete:"]
[]
[null,"Ramps",null,"m³",{"v":18,"d":"18 "},null,{"$f":"ROUND(E2365*F2365,2)","v":{"v":0,"d":"0.00"}}]
[]
[null,"Test cubes"]
[]
[{"v":25,"d":"25 "},"Making and testing sets of three 150 x 150 x 150mm concrete strength test cubes (Provisional)",null,"Sets",{"v":5,"d":"5 "},null,{"$f":"ROUND(E2369*F2369,2)","v":{"v":0,"d":"0.00"}}]
[]
[null,"Finishing top surfaces of concrete smooth with a steel trowel:"]
[]
[{"v":26,"d":"26 "},"Surface beds, slabs, etc to falls",null,"m²",{"v":55,"d":"55 "},null,{"$f":"ROUND(E2373*F2373,2)","v":{"v":0,"d":"0.00"}}]
[]
[null,"FORMWORK (WORK GROUP 111)"]
[]
[null,"Smooth formwork to sides:"]
[]
[{"v":27,"d":"27 "},"Sloping outer edges of ramps approximately 450mm high extreme",null,"m",{"v":9,"d":"9 "},null,{"$f":"ROUND(E2379*F2379,2)","v":{"v":0,"d":"0.00"}}]
[]
[null,"REINFORCEMENT (WORK GROUP 114)"]
[]
[null,"Fabric reinforcement:"]
[]
[{"v":28,"d":"28 "},"Type 395 fabric reinforcement in concrete surface beds, slabs, etc",null,"m²",{"v":55,"d":"55 "},null,{"$f":"ROUND(E2385*F2385,2)","v":{"v":0,"d":"0.00"}}]
[]
[null,"FENCING  (WORK GROUP 136)"]
[]
[null,"Clear view or similar and approved galvanised steel security fence with posts at 3382mm centres, erected complete including concrete bases, stays, rails, verticals, galvanised steel bolts, straining eye bolts, single overhang with 3 strands of barbed wire, etc. and finished with epoxy coating and including site clearance, preparation of ground, etc.:"]
[]
[{"v":29,"d":"29 "},"Security fence 3000mm high",null,"m",{"v":40,"d":"40 "},null,{"$f":"ROUND(E2391*F2391,2)","v":{"v":0,"d":"0.00"}}]
[]
[null,"STEEL BOLLARDS  (WORK GROUP 136)"]
[]
[{"v":30,"d":"30 "},"273mm Dia., 2125mm High stainless Grade 4.4, 250MPA (MIN) steel bollards with PL 25 x 2115mm weld to pipe w/(4) 6 x 50mm fillet welds top and bottom, 25 x 2115 x 16mm thick steel plate (Grade 4.4, FY=250MPA-MIN) including 800 x 800 x 1200mm deep excavation, 25MPA mass concrete and backfilled to 95% MOD ASSHTO density (Refer to drawing no. 1002-011-2005)",null,"No",{"v":10,"d":"10 "},null,{"$f":"ROUND(E2395*F2395,2)","v":{"v":0,"d":"0.00"}}]
[]
[null,"Carried to section summary / …",{"$nulls":4},{"$f":"SUM(G2194:G2395)","v":{"v":0,"d":"0.00"}}]
[]
[null,"SECTION 4"]
[]
[null,"BILL NO. 2"]
[]
[null,"SITE SERVICES (PROVISIONAL)"]
[]
[null,"WORK GROUP ALLOCATION"]
[]
[null,"The items in this Bill will be allocated to Work Groups as indicated in brackets at the end of headings or descriptions"]
[]
[null,"PREAMBLES"]
[]
[null,"The Model Preambles for Trades (2008 edition) as published by the Association of South African Quantity Surveyors shall be deemed to be incorporated in these bills of quantities and no claims arising from brevity of description of items fully described in the said General Preambles will be entertained"]
[]
[null,"The following \"Supplementary Preambles\" are incorporated in this bill to satisfy the requirements of the project and shall take precedence over the provisions of the said General Preambles"]
[]
[null,"SUPPLEMENTARY PREAMBLES"]
[]
[null,"Stormwater channels:"]
[]
[null,"Descriptions of channels shall be deemed to include necessary excavation, surface preparation, compaction, etc and disposal of surplus material on site"]
[]
[null,"French drains:"]
[]
[null,"Descriptions of french drains shall be deemed to include excavation, stone filling graded from 300mm diameter at bottom to 75mm diameter at top, approved geofabric filter blanket over stone, 300mm earthfilling over and disposal of surplus material on site"]
[]
[null,"Septic tanks:"]
[]
[null,"Descriptions of proprietary type septic tanks shall be deemed to include excavation, bedding and jointing, concrete base slabs, jointing to drains and backfilling, compaction, etc all in accordance with the manufacturer's instructions and disposal of surplus material on site"]
[]
[null,"uPVC pipes and fittings:"]
[]
[null,"Sewer and drainage pipes and fittings shall be jointed and sealed with butyl rubber rings  Soil, waste and vent pipes and fittings shall be solvent weld jointed or sealed with butyl rubber rings"]
[]
[null,"uPVC pressure pipes and fittings:"]
[]
[null,"Pipes of 50mm diameter and smaller shall be plain ended with solvent welded uPVC loose sockets and fittings  Pipes of 63mm diameter and greater shall have sockets and spigots with push-in type integral rubber ring joints.  Bends shall be uPVC and all other fittings shall be cast iron, all with similar push-in type joints"]
[]
[null,"High density polyethylene (HDPe) pipes and fittings:"]
[]
[null,"Pipes shall be type IV and of the class specified with \"Plasson\" or \"Alprene\" compression fittings"]
[]
[null,"\"Polycop\" polypropylene pipes:"]
[]
[null,"Polypropylene pipes 54mm diameter and smaller shall be seamless copper coloured Class 16 pipes jointed with \"Fast-fuse\" heat welded thermoplastic or where so described \"Polylock\" compression fittings  Pipes shall be firmly fixed to walls, etc with coloured nylon snap-in pipe clips with provision for accommodating thermal movement and jointed and fixed strictly in accordance with the manufacturer's instructions"]
[]
[null,"Copper pipes:"]
[]
[null,"Pipes shall be hard drawn and half-hard \"Maksal\" pipes of the class described.  Class 0 (thin walled hard drawn) pipes shall not be bent.  Class 1 (thin walled half-hard), Class 2 (half-hard) and Class 3 (heavy walled half-hard) pipes shall only be bent with benders with inner and outer formers.  Fittings to copper waste, vent and anti-syphon pipes, capillary solder fittings and compression fittings shall be \"Cobra Watertech\" type.  Capillary solder fittings shall comply with ISO 2016"]
[]
[null,"Copper pipes are to be installed in accordance with the latest revision of the Code of Practice for Copper Plumbing soldering techniques.  Flux, solder, etc to be strictly in accordance with the manufacturer's requirements with special attention to copper flux composition"]
[]
[null,"Reducing fittings:"]
[]
[null,"Where fittings have reducing ends or branches they are described as \"reducing\". In the case of pipes with diameters not exceeding 60mm, only the largest end or branch size is given. Should the Contractor wish to use other fittings and bushes or reducers he may do so on the understanding that no claim in this regard will be entertained. In the case of pipes with diameters exceeding 60mm, all sizes are given and no claim for extra bushes, reducers, etc will be entertained"]
[]
[null,"Disinfection of water pipework:"]
[]
[null,"Water pipework is to be disinfected at completion in accordance with SABS 1200L (provision for disinfection elsewhere)"]
[]
[null,"\"Densyl\" petrolatum anti-corrosion tape as manufactured by Denso SA (Pty) Ltd.:"]
[]
[null,"Pipes to be taped shall be coated with the appropriate primer and the tape shall be applied in the appropriate widths and with suitable overlaps  Couplings and fittings to pipes shall be taped in strict accordance with the manufacturer's instructions including mastic, tape, \"Layflat\" sheeting, securing of same, etc"]
[]
[null,"Prices for wrapping of pipes shall include for all work as described to couplings in the length"]
[]
[null,"Laying, backfilling, bedding, etc of pipes:"]
[]
[null,"Pipes shall be laid and bedded in accordance with manufacturers' instructions and trenches shall be carefully backfilled"]
[]
[null,"Where no manufacturers' instructions exist, pipes shall be laid in accordance with Clauses 5.1 and 5.2 of each of the following: SABS 1200L\t: Medium-pressure pipelines SABS 1200LD\t: Sewers SABS 1200LE\t: Stormwater drainage Pipe trenches, etc shall be backfilled in accordance with Clauses 3, 5.5, 5.6, 5.7 and 7 of SABS 1200DB : Earthworks (Pipe trenches)Pipes shall be bedded in accordance with Clauses 3.1 to 3.4.1, 5.1 to 5.3 and 7 of SABS 1200LB : Bedding (Pipes)Unless otherwise described, bedding of rigid pipes shall be Class B bedding"]
[]
[null,"General:"]
[]
[null,"Descriptions of pipes laid in and including trenches and of inspection chambers, catchpits, etc shall be deemed to include excavation, bedding, backfilling, compaction to a minimum of 98% Mod AASHTO density and disposal of surplus material on site"]
[]
[null,"Descriptions of service pipes and flexible connecting pipes shall be deemed to include connections to taps, cisterns, etc and to steel pipes (adaptors for connections to copper pipes, etc are given separately)"]
[]
[null,"As-built drawings:"]
[]
[null,"Where required, the Contractor shall prepare an updated set of as-built drawings.  At completion of the contract the Contractor shall hand these drawings to the Project Manager for reproducing onto the originals for handing over to the Employer (provision for allowance of as-built drawings elsewhere)"]
[]
[null,"DEMOLITIONS, ETC (WORK GROUP 104)"]
[]
[null,"Demolishing and removing:"]
[]
[{"v":1,"d":"1 "},"Existing rectangular concrete channel, 450 x 450mm deep",null,"m",{"v":134,"d":"134 "},null,{"$f":"ROUND(E2485*F2485,2)","v":{"v":0,"d":"0.00"}}]
[]
[{"v":2,"d":"2 "},"Pipe jacking of 450mm Wide concrete channels",null,"m",{"v":134,"d":"134 "},null,{"$f":"ROUND(E2487*F2487,2)","v":{"v":0,"d":"0.00"}}]
[]
[{"v":3,"d":"3 "},"Existing inspection chambers, size and depth to be confirmed on site",null,"No",{"v":6,"d":"6 "},null,{"$f":"ROUND(E2489*F2489,2)","v":{"v":0,"d":"0.00"}}]
[]
[null,"STORMWATER CHANNELS (WORK GROUP 146)"]
[]
[null,"Precast concrete channels:"]
[]
[{"v":4,"d":"4 "},"400 x 400mm Rectangular precast concrete channel cast in 1800mm lengths, finished smooth to falls, rounded edge to exposed side and 10mm mortar joints channels",null,"m",{"v":134,"d":"134 "},null,{"$f":"ROUND(E2495*F2495,2)","v":{"v":0,"d":"0.00"}}]
[]
[{"v":5,"d":"5 "},"Extra over for angles, intersections, ends, dressing into sides of catchpits, etc",null,"No",{"v":5,"d":"5 "},null,{"$f":"ROUND(E2497*F2497,2)","v":{"v":0,"d":"0.00"}}]
[]
[{"v":6,"d":"6 "},"Excavation in earth not exceeding 1m deep for channels",null,"m³",{"v":60,"d":"60 "},null,{"$f":"ROUND(E2499*F2499,2)","v":{"v":0,"d":"0.00"}}]
[]
[{"v":7,"d":"7 "},"Backfilling to pipe trenches compacted to 95% Mod AASHTO density",null,"m³",{"v":15,"d":"15 "},null,{"$f":"ROUND(E2501*F2501,2)","v":{"v":0,"d":"0.00"}}]
[]
[null,"Extra over all excavations for carting away:"]
[]
[{"v":8,"d":"8 "},"Surplus material from excavations and/or stock piles on site to a dumping site to be located by the contractor",null,"m³",{"v":60,"d":"60 "},null,{"$f":"ROUND(E2505*F2505,2)","v":{"v":0,"d":"0.00"}}]
[]
[null,"STORMWATER DRAINAGE (WORK GROUP 146)"]
[]
[{"v":9,"d":"9 "},"Excavation in earth not exceeding 1m deep for pipe trenches",null,"m³",{"v":29,"d":"29 "},null,{"$f":"ROUND(E2509*F2509,2)","v":{"v":0,"d":"0.00"}}]
[]
[{"v":10,"d":"10 "},"Excavation in earth exceeding 1m and not exceeding 2m deep for pipe trenches",null,"m³",{"v":124,"d":"124 "},null,{"$f":"ROUND(E2511*F2511,2)","v":{"v":0,"d":"0.00"}}]
[]
[{"v":11,"d":"11 "},"Excavation in earth exceeding 2m and not exceeding 4m deep for pipe trenches",null,"m³",{"v":107,"d":"107 "},null,{"$f":"ROUND(E2513*F2513,2)","v":{"v":0,"d":"0.00"}}]
[]
[{"v":12,"d":"12 "},"Backfilling to pipe trenches compacted to 95% Mod AASHTO density",null,"m³",{"v":90,"d":"90 "},null,{"$f":"ROUND(E2515*F2515,2)","v":{"v":0,"d":"0.00"}}]
[]
[{"v":13,"d":"13 "},"Selected granular filling in bedding under and filling around pipes",null,"m³",{"v":42,"d":"42 "},null,{"$f":"ROUND(E2517*F2517,2)","v":{"v":0,"d":"0.00"}}]
[]
[{"v":14,"d":"14 "},"Sand filling in bedding under and filling around pipes",null,"m³",{"v":15,"d":"15 "},null,{"$f":"ROUND(E2519*F2519,2)","v":{"v":0,"d":"0.00"}}]
[]
[{"v":15,"d":"15 "},"19mm Crushed stone bedding under pipes",null,"m³",{"v":15,"d":"15 "},null,{"$f":"ROUND(E2521*F2521,2)","v":{"v":0,"d":"0.00"}}]
[]
[null,"Class 100D concrete pipes with interlocking joints:"]
[]
[{"v":16,"d":"16 "},"450mm Dia. pipe laid in trenches (trenches elsewhere)",null,"m",{"v":83,"d":"83 "},null,{"$f":"ROUND(E2525*F2525,2)","v":{"v":0,"d":"0.00"}}]
[]
[{"v":17,"d":"17 "},"1000mm Dia. pipe laid in trenches (trenches elsewhere)",null,"m",{"v":53,"d":"53 "},null,{"$f":"ROUND(E2527*F2527,2)","v":{"v":0,"d":"0.00"}}]
[]
[null,"Sumps, catchpits, inspection chambers, etc including concrete kerbs or precast concrete cover slabs (gratings and covers elsewhere):"]
[]
[{"v":18,"d":"18 "},"600 x 450mm Brick catchpit not exceeding 1m deep internally",null,"No",{"v":10,"d":"10 "},null,{"$f":"ROUND(E2531*F2531,2)","v":{"v":0,"d":"0.00"}}]
[]
[{"v":19,"d":"19 "},"1250mm Diameter precast concrete circular inspection chamber 1m deep internally",null,"No",{"v":6,"d":"6 "},null,{"$f":"ROUND(E2533*F2533,2)","v":{"v":0,"d":"0.00"}}]
[]
[null,"Cast iron gratings, covers, etc:"]
[]
[{"v":20,"d":"20 "},"700 x 550mm Grey iron square dish grating and frame",null,"No",{"v":10,"d":"10 "},null,{"$f":"ROUND(E2537*F2537,2)","v":{"v":0,"d":"0.00"}}]
[]
[{"v":21,"d":"21 "},"1250mm Diameter manhole cover and frame",null,"No",{"v":6,"d":"6 "},null,{"$f":"ROUND(E2539*F2539,2)","v":{"v":0,"d":"0.00"}}]
[]
[{"v":22,"d":"22 "},"30mm Diameter galvanised steel rod step iron 500mm long, built in across corner of chamber",null,"No",{"v":48,"d":"48 "},null,{"$f":"ROUND(E2541*F2541,2)","v":{"v":0,"d":"0.00"}}]
[]
[{"v":23,"d":"23 "},"Lifting-key for manhole cover (handed to Employer)",null,"No",{"v":6,"d":"6 "},null,{"$f":"ROUND(E2543*F2543,2)","v":{"v":0,"d":"0.00"}}]
[]
[null,"Encasing pipes in concrete:"]
[]
[{"v":24,"d":"24 "},"Unreinforced concrete encasing 150mm thick all round 450mm horizontal pipe",null,"m",{"v":30,"d":"30 "},null,{"$f":"ROUND(E2547*F2547,2)","v":{"v":0,"d":"0.00"}}]
[]
[{"v":25,"d":"25 "},"Unreinforced concrete encasing 150mm thick all round 1000mm horizontal pipe",null,"m",{"v":37,"d":"37 "},null,{"$f":"ROUND(E2549*F2549,2)","v":{"v":0,"d":"0.00"}}]
[]
[null,"Sundries:"]
[]
[{"v":26,"d":"26 "},"Extra over excavation in earth for pipe trenches, chambers, etc for excavation in soft rock",null,"m³",{"v":26,"d":"26 "},null,{"$f":"ROUND(E2553*F2553,2)","v":{"v":0,"d":"0.00"}}]
[]
[{"v":27,"d":"27 "},"Extra over excavation in earth for pipe trenches, chambers, etc for excavation in hard rock",null,"m³",{"v":13,"d":"13 "},null,{"$f":"ROUND(E2555*F2555,2)","v":{"v":0,"d":"0.00"}}]
[]
[null,"Alterations, pipe connections, etc:"]
[]
[{"v":28,"d":"28 "},"Connection to existing 300mm concrete stormwater pipe for and forming junction with new pipe including connection, fittings, couplings, etc.",null,"No",{"v":1,"d":"1 "},null,{"$f":"ROUND(E2559*F2559,2)","v":{"v":0,"d":"0.00"}}]
[]
[null,"TESTING:"]
[]
[{"v":29,"d":"29 "},"Testing stormwater drainage system",null,"SUM",{"v":1,"d":"1 "}]
[]
[null,"SOIL DRAINAGE (WORK GROUP 146)"]
[]
[{"v":30,"d":"30 "},"Excavation in earth not exceeding 1m deep for pipe trenches",null,"m³",{"v":77,"d":"77 "},null,{"$f":"ROUND(E2567*F2567,2)","v":{"v":0,"d":"0.00"}}]
[]
[{"v":31,"d":"31 "},"Backfilling to pipe trenches",null,"m³",{"v":56,"d":"56 "},null,{"$f":"ROUND(E2569*F2569,2)","v":{"v":0,"d":"0.00"}}]
[]
[{"v":32,"d":"32 "},"Selected granular filling in bedding under and filling around pipes",null,"m³",{"v":15,"d":"15 "},null,{"$f":"ROUND(E2571*F2571,2)","v":{"v":0,"d":"0.00"}}]
[]
[null,"Normal duty uPVC sewer channels:"]
[]
[{"v":33,"d":"33 "},"450mm Channels in bottoms of inspection chambers",null,"m",{"v":22,"d":"22 "},null,{"$f":"ROUND(E2575*F2575,2)","v":{"v":0,"d":"0.00"}}]
[]
[null,"Heavy duty (Class 34) uPVC sewer and drain pipes:"]
[]
[{"v":34,"d":"34 "},"110mm Pipes laid in trenches (trenches elsewhere)",null,"m",{"v":72,"d":"72 "},null,{"$f":"ROUND(E2579*F2579,2)","v":{"v":0,"d":"0.00"}}]
[]
[null,"Extra over heavy duty (Class 34) uPVC sewer and drain pipes for fittings:"]
[]
[{"v":35,"d":"35 "},"110mm Bend",null,"No",{"v":14,"d":"14 "},null,{"$f":"ROUND(E2583*F2583,2)","v":{"v":0,"d":"0.00"}}]
[]
[{"v":36,"d":"36 "},"110mm Junction",null,"No",{"v":5,"d":"5 "},null,{"$f":"ROUND(E2585*F2585,2)","v":{"v":0,"d":"0.00"}}]
[]
[{"v":37,"d":"37 "},"110mm Rodding eye",null,"No",{"v":5,"d":"5 "},null,{"$f":"ROUND(E2587*F2587,2)","v":{"v":0,"d":"0.00"}}]
[]
[{"v":38,"d":"38 "},"110mm Reducing junction",null,"No",{"v":4,"d":"4 "},null,{"$f":"ROUND(E2589*F2589,2)","v":{"v":0,"d":"0.00"}}]
[]
[{"v":39,"d":"39 "},"160mm Overflow gulley head",null,"No",{"v":3,"d":"3 "},null,{"$f":"ROUND(E2591*F2591,2)","v":{"v":0,"d":"0.00"}}]
[]
[{"v":40,"d":"40 "},"160mm Access reducing junction",null,"No",{"v":3,"d":"3 "},null,{"$f":"ROUND(E2593*F2593,2)","v":{"v":0,"d":"0.00"}}]
[]
[null,"Alterations:"]
[]
[{"v":41,"d":"41 "},"Excavate for and locate existing 160mm diameter uPVC soil drain pipe approximately 2000mm deep and connect to 160mm diameter uPVC pipe including all necessary fittings, backfilling, etc",null,"No",{"v":1,"d":"1 "},null,{"$f":"ROUND(E2597*F2597,2)","v":{"v":0,"d":"0.00"}}]
[]
[null,"Testing:"]
[]
[{"v":42,"d":"42 "},"Testing soil drainage system",null,"SUM",{"v":1,"d":"1 "}]
[]
[null,"AS-BUILT DRAWINGS"]
[]
[{"v":43,"d":"43 "},"Provision of as-built drawings",null,"SUM",{"v":1,"d":"1 "}]
[]
[null,"Carried to section summary / …",{"$nulls":4},{"$f":"SUM(G2398:G2606)","v":{"v":0,"d":"0.00"}}]
[]
[null,"SECTION SUMMARY "]
[]
[{"v":1,"d":"1 "},"External Works (Provisional)",{"$nulls":4},{"$f":"G2397","v":{"v":0,"d":"0.00"}}]
[]
[{"v":2,"d":"2 "},"Site Services (Provisional)",{"$nulls":4},{"$f":"G2607","v":{"v":0,"d":"0.00"}}]
[]
[null,"CARRIED TO FINAL SUMMARY / ..",{"$nulls":4},{"$f":"SUM(G2608:G2614)","v":{"v":0,"d":"0.00"}}]
[]
[null,"SECTION 5"]
[]
[null,"BILL NO. 1"]
[]
[null,"INSTALLATION OF CRADLES AND ASSOCIATED ITEMS (PROVISIONAL)"]
[]
[null,"Manufacture, works testing, supply and deliver to site, moving into position, installation, connecting up, site testing, witness testing, providing to insurance inspectors, demonstrating to the Employer, commissioning and maintenance of the complete cradles and associated items as shown on the drawings and in any other supplied supplementary documents."]
[]
[null,"PREAMBLES"]
[]
[null,"The Model Preambles for Trades (2008 edition) as published by the Association of South African Quantity Surveyors shall be deemed to be incorporated in these bills of quantities and no claims arising from brevity of description of items fully described in the said Model Preambles will be entertained"]
[]
[null,"The following \"Supplementary Preambles\" are incorporated in this bill to satisfy the requirements of the project and shall take precedence over the provisions of the said Model Preambles"]
[]
[null,"SUPPLEMENTARY PREAMBLES"]
[]
[null,"General:"]
[]
[null,"Subcontract amounts are net.  Subcontract amounts are for material and equipment supplied and installed complete by firms of specialists"]
[]
[null,"Each subcontract amount may comprise more than one element of work.  Therefore, each subcontract amount may include for work to be carried out by more than one subcontractor"]
[]
[null,"Profit:"]
[]
[null,"Where stated, the contractor may allow for profit if required"]
[]
[null,"General attendance on nominated/selected subcontractors:"]
[]
[null,"The item \"General Attendance\" which follows each subcontract amount for nominated/selected subcontractors' work, shall be deemed to cover all the contractor's costs incurred in providing free of charge to the nominated/selected subcontractors, the following:"]
[]
[null,"1.  Access to the site and places where the subcontract work is to be carried out, including the reasonable use of any temporary personnel hoists erected by the contractor"]
[]
[null,"2.  The provision of water and lighting and of single phase electric power to a position within 50 metres of the place where the subcontract work is to be carried out but excluding water, fuel and power for commissioning of any installation"]
[]
[null,"3.  The provision of an area for the subcontractor to establish temporary office accommodation and workshops and for the storage of plant and materials"]
[]
[null,"4.  The use of erected scaffolding belonging to the contractor, in common with others having the like right, while it remains erected on the site"]
[]
[null,"5.  The use, at reasonable times by arrangement of the contractor's erected hoisting equipment"]
[]
[null,"6.  Making good in all trades and cleaning down and removal of rubbish on completion"]
[]
[null,"Special attendance on nominated/selected subcontractors:"]
[]
[null,"Where stated, special attendance as set out in clause 8.1 of section B of the Preliminaries will be described in detail in this bill"]
[]
[null,"Builder's work:"]
[]
[null,"Builder's work in connection with specialist services is given elsewhere in these bills of quantities"]
[]
[null,"Allocation for procurement, fabrication, installation, commissioning and handing over:"]
[]
[null,"NOTE: Procure material, complete fabrication, trial assemble (in the Contractors workshop for Engineers inspection prior to delivery to site) and delivery to site. The Contractor shall be paid for the cost of materials procured. The Contractor shall provide the invoice for the Materials to the Engineer. The Engineer will verify the materials at the Contractors workshop and following this verification will request the Quantity Surveyor to pay for the materials as per the invoice. The Contractor shall be paid the outstanding amounts for fabrication once the fabricated materials have been delivered to the site and verified by the engineer."]
[]
[null,"MAIN CRADLE"]
[]
[null,"Supply and installation of the \"Main Cradle\" complete  as detailed in this BOQ and/or the Part C3 Scope of Works and the detailed construction drawings supplied, inclusive of diving",null,"EI",{"v":0,"d":"0 "}]
[]
[{"v":1,"d":"1 "},"Supply",null,"t",{"v":85,"d":"85.00"},null,{"$f":"ROUND(E2675*F2675,2)","v":{"v":0,"d":"0.00"}}]
[]
[{"v":2,"d":"2 "},"Install",null,"t",{"v":85,"d":"85.00"},null,{"$f":"ROUND(E2677*F2677,2)","v":{"v":0,"d":"0.00"}}]
[]
[{"v":3,"d":"3 "},"Comissioning",null,"t",{"v":85,"d":"85.00"},null,{"$f":"ROUND(E2679*F2679,2)","v":{"v":0,"d":"0.00"}}]
[]
[null,"SIDE SLIP CRADLES"]
[]
[null,"Supply and installation of the two (2) \"Side Slip Cradles\" complete  as detailed in this BOQ and/or the Part C3 Scope of Works and the detailed construction drawings supplied, inclusive of diving",null,"EI",{"v":0,"d":"0 "}]
[]
[{"v":4,"d":"4 "},"Supply",null,"t",{"v":70,"d":"70.00"},null,{"$f":"ROUND(E2685*F2685,2)","v":{"v":0,"d":"0.00"}}]
[]
[{"v":5,"d":"5 "},"Install",null,"t",{"v":70,"d":"70.00"},null,{"$f":"ROUND(E2687*F2687,2)","v":{"v":0,"d":"0.00"}}]
[]
[{"v":6,"d":"6 "},"Comissioning",null,"t",{"v":70,"d":"70.00"},null,{"$f":"ROUND(E2689*F2689,2)","v":{"v":0,"d":"0.00"}}]
[]
[null,"MAIN AND SIDE SLIP CRADLE SETS"]
[]
[null,"Supply and installation of the two (2) \"Main and side slip cradle sets\" complete  as detailed in this BOQ and/or the Part C3 Scope of Works and the detailed construction drawings supplied, inclusive of diving",null,"EI",{"v":0,"d":"0 "}]
[]
[{"v":7,"d":"7 "},"Supply",null,"No",{"v":460,"d":"460 "},null,{"$f":"ROUND(E2695*F2695,2)","v":{"v":0,"d":"0.00"}}]
[]
[{"v":8,"d":"8 "},"Install",null,"No",{"v":460,"d":"460 "},null,{"$f":"ROUND(E2697*F2697,2)","v":{"v":0,"d":"0.00"}}]
[]
[{"v":9,"d":"9 "},"Comissioning",null,"No",{"v":460,"d":"460 "},null,{"$f":"ROUND(E2699*F2699,2)","v":{"v":0,"d":"0.00"}}]
[]
[null,"DOCKING FRAMES AND ACCESS BRIDGES"]
[]
[null,"4no.off frames for the main cradle and 6no.off frames for the side slip cradle. The tonnage stated is inclusive of all the docking frames and associated components. The Contractor shall supply the docking frames complete, with all associated parts assembled. The details and components of a complete main cradle docking frame and a complete side cradle docking frame are shown on the relevant drawings supplied to the Contractor.Contractor to supply and install the docking frames complete, with all associated parts assembled.",null,"EI",{"v":0,"d":"0 "}]
[]
[{"v":10,"d":"10 "},"Supply",null,"No",{"v":75,"d":"75 "},null,{"$f":"ROUND(E2705*F2705,2)","v":{"v":0,"d":"0.00"}}]
[]
[{"v":11,"d":"11 "},"Install",null,"No",{"v":75,"d":"75 "},null,{"$f":"ROUND(E2707*F2707,2)","v":{"v":0,"d":"0.00"}}]
[]
[{"v":12,"d":"12 "},"Comissioning",null,"No",{"v":75,"d":"75 "},null,{"$f":"ROUND(E2709*F2709,2)","v":{"v":0,"d":"0.00"}}]
[]
[null,"UPHAUL AND DOWNHAUL SHEAVE WHEELS AND SUPPORTS"]
[]
[null,"1no.off Uphaul sheave wheel mounted on the main cradle and 2no.off Downhaul sheave wheel mounted at the slipway extremity, underwater. The Down haul sheave wheel assembly  that was installed in 2015 must be removed for disposal. The old down haul sheave wheel assembly must also be removed and the concrete must be made good after removal.  Contractor to supply and install complete, with all associated parts assembled.",null,"EI",{"v":0,"d":"0 "}]
[]
[{"v":13,"d":"13 "},"Procurement",null,"t",{"v":8,"d":"8.00"},null,{"$f":"ROUND(E2715*F2715,2)","v":{"v":0,"d":"0.00"}}]
[]
[{"v":14,"d":"14 "},"Installation",null,"t",{"v":8,"d":"8.00"},null,{"$f":"ROUND(E2717*F2717,2)","v":{"v":0,"d":"0.00"}}]
[]
[{"v":15,"d":"15 "},"Comissioning",null,"t",{"v":8,"d":"8.00"},null,{"$f":"ROUND(E2719*F2719,2)","v":{"v":0,"d":"0.00"}}]
[]
[null,"Gr.316 STAINLESS STEEL BASE PLATES UNDER RAILS"]
[]
[null,"Supply and installation of 20mm thick base plates underneath the main, side and anti-tilt rails as detailed in the BOQ and/or the Part C3 SCope of Works and the detailed construction drawings supplied to the contractor.Contractor to supply and install complete, with all associated parts assembled.",null,"EI",{"v":0,"d":"0 "}]
[]
[{"v":16,"d":"16 "},"Supply",null,"t",{"v":85,"d":"85.00"},null,{"$f":"ROUND(E2725*F2725,2)","v":{"v":0,"d":"0.00"}}]
[]
[{"v":17,"d":"17 "},"Install",null,"t",{"v":85,"d":"85.00"},null,{"$f":"ROUND(E2727*F2727,2)","v":{"v":0,"d":"0.00"}}]
[]
[{"v":18,"d":"18 "},"Comissioning",null,"t",{"v":85,"d":"85.00"},null,{"$f":"ROUND(E2729*F2729,2)","v":{"v":0,"d":"0.00"}}]
[]
[null,"MAIN, SIDE AND ANTI-TILT RAILS"]
[]
[null,"Supply and installation of all required rails, holding downplates, clips, fixing and securing elements as detailed in the BOQ and/or the Part C3 Scope of Works and the detailed construction drawings supplied to the contractor. Contractor to supply and install complete, with all associated parts assembled.",null,"EI",{"v":0,"d":"0 "}]
[]
[{"v":19,"d":"19 "},"Supply",null,"t",{"v":65,"d":"65.00"},null,{"$f":"ROUND(E2735*F2735,2)","v":{"v":0,"d":"0.00"}}]
[]
[{"v":20,"d":"20 "},"Install",null,"t",{"v":65,"d":"65.00"},null,{"$f":"ROUND(E2737*F2737,2)","v":{"v":0,"d":"0.00"}}]
[]
[{"v":21,"d":"21 "},"Comissioning",null,"t",{"v":65,"d":"65.00"},null,{"$f":"ROUND(E2739*F2739,2)","v":{"v":0,"d":"0.00"}}]
[]
[null,"5 TON BRIDGE GIRDER CRANE"]
[]
[{"v":22,"d":"22 "},"Allow an amount of Five Million Rand Only for the supply and installation of a 5 Ton Bridge Girder Crane",null,"Item",{"v":1,"d":"1 "},null,{"$f":"ROUND(E2743*F2743,2)","v":{"v":0,"d":"0.00"}}]
[]
[{"v":23,"d":"23 "},"Profit (..........%)",null,"%IT"]
[]
[{"v":24,"d":"24 "},"General attendance (..........%)",null,"%IT"]
[]
[null,"UPHAUL, DOWNHAUL AND SIDE SLIP WINCHES"]
[]
[{"v":25,"d":"25 "},"Supply and installation of the complete uphaul, downhaul and side slip winches including ropes, hydraulic power units, control panels, base plates and any ancilliaries eg.: hydraulic tubing, hydraulic flexibles, couplings, required to ensure fully operational winch units that can be subjected to performance testing, is provided. The winches supplied shall be in accordance and  conformance to the relevant engineering Codes and Standards. The required winch specifications and performance/duty parameters are included in the Part C3  - Scope of Work. The quoted amount from the Contractor shall include for the careful removal and recovery of the existing winch unit and all ancilliary equipment, to the site laydown area. The existing winch and ancilliaries have a heritage value for the TNPA and as such, the Contractor must ensure that the winch is not in any way damaged during the removal, recovery and transfer activities.",null,"SUM",{"v":1,"d":"1 "}]
[]
[null,"UPHAUL AND DOWNHAUL WINCH STEEL WIRE ROPE SUPPORT BLOCKS"]
[]
[{"v":26,"d":"26 "},"Supply and installation of the complete uphaul, downhaul and side slip winches including ropes, hydraulic power units, control panels, base plates and any ancillaries such hydraulic tubing, hydraulic flexibles, couplings, etc. required to ensure fully operational winch units that can be subjected to performance testing, in accordance and conformance to the relevant engineering codes and standards.  The Contractor conforms to all requirements as detailed in this BOQ and the Part C3 Scope of Works and the detailed construction drawings supplied by the TNPA. Rate includes diving.",null,"SUM",{"v":1,"d":"1 "}]
[]
[null,"ZINC ANODES"]
[]
[{"v":27,"d":"27 "},"Supply and Installation of zinc anodes conforming to TNPA specification",null,"t",{"v":3,"d":"3.00"},null,{"$f":"ROUND(E2759*F2759,2)","v":{"v":0,"d":"0.00"}}]
[]
[null,"GENERAL AND MISCELLANEOUS ITEMS"]
[]
[null,"HYDRAULIC SYSTEM FOR DOCKING SUPPORT ARMS AND ADJUSTABLE PADS AND POWER SYSTEM FOR CONTROL AND OPERATION OF THE DOCKING SUPPORT ARMS"]
[]
[{"v":28,"d":"28 "}," Supply and Installation of complete hydraulic docking arm and support pad system including associated power system  required for powering and operating the docking support arms and pads",null,"SUM",{"v":1,"d":"1 "}]
[]
[null,"MECHANICAL EQUIPMENT - STORM WATER MANAGEMENT AND RECYCLING SYSTEM"]
[]
[{"v":29,"d":"29 "}," Stormwater system to handle run-off from the slipway deck generated during ship maintenance. The mechanical equipment requirements and quantities are described on the relevant drawings supplied to the Contractor.",null,"SUM",{"v":1,"d":"1 "}]
[]
[null,"OPERATIONAL REQUIREMENTS"]
[]
[null,"DEMOLITION OF OLD LEAD-IN JETTIES"]
[]
[{"v":30,"d":"30 "},"The Contractor shall completely remove and carefully recover all old jetty piles, bracing structures, decking and stiffening/bracing steelwork comprising the jetties which are currently located in the water. The old jetty components shall be carefully handled once removed and transported out of the water to the site lay down area. Particular care must be taken by the Contractor to not cause preventable damage to the jetty components as TNPA considers the components to possess heritage value.",null,"SUM",{"v":1,"d":"1 "}]
[]
[null,"DEMOLITION AND DISPOSAL OF EXISTING MATERIALS, EQUIPMENT AND PLANT THROUGHOUT THE SITE"]
[]
[{"v":31,"d":"31 "},"The Contractor shall make adequate allowance for the demolition and disposal of the existing materials and equipment from the site as required.",null,"SUM",{"v":1,"d":"1 "}]
[]
[null,"ON-CRADLE VESSEL STEEL SUPPORTS WITH ASSEMBLED WOOD CHOCK BLOCKS"]
[]
[{"v":32,"d":"32 "},"Supports to provide support to maintain the vessel upright on the cradle, they are collapsible steel structures mounted to the cradle frame and are topped with wood for the interface between the vessel body and the support",null,"SUM",{"v":1,"d":"1 "}]
[]
[null,"SLIPWAY SERVICES (HIGH PRESSURE-LOW FLOW SEA WASH WATER, COMPRESSED AIR AND ALL ASSOCIATED ANCILLARIES)"]
[]
[{"v":33,"d":"33 "},"Allow an amount of Two Million Rand to cater for slipway services i.e: high pressure-low flow sea wash water and compressed air. Sum to cover procurement, supply, installation, commissioning and handover",null,"Item",{"v":1,"d":"1 "},null,{"$f":"ROUND(E2787*F2787,2)","v":{"v":0,"d":"0.00"}}]
[]
[{"v":34,"d":"34 "},"Profit (..........%)",null,"%IT"]
[]
[{"v":35,"d":"35 "},"General attendance (..........%)",null,"%IT"]
[]
[null,"SIDE SLIP STRUCTURE"]
[]
[{"v":36,"d":"36 "},"Demolition of existing and construction of new slipway structure complete (Refer to drawings no. 1002-011-3012, 1002-011-3013) - (Cradle rails, etc. measured elsewhere)",null,"SUM",{"v":1,"d":"1 "}]
[]
[null,"CORROSION PROTECTION OF STEELWORK - Comprising factory priming, transport damage touch up and final site coats"]
[]
[{"v":37,"d":"37 "},"Corrosion protection shall be applied to all steel surfaces including bolt and hole surfaces (wet assemblies) and shall be a 5year supplier guaranteed, AIA and Engineer approved marine grade corrosion protection system and the rate shall include grit/water blasting and high pressure washing and cleaning conforming to TNPA requirements and approved specifications",null,"m²",{"v":15000,"d":"15,000 "},null,{"$f":"ROUND(E2799*F2799,2)","v":{"v":0,"d":"0.00"}}]
[]
[null,"COMMISSIONING, TESTING AND HANDOVER:  The Contractor shall be responsible for documenting, through the use of underwater video surveillance and bathymetric testing the complete installation and repairs of all concrete works and rail installations."]
[]
[{"v":38,"d":"38 "},"Underwater video and photographic surveillance - The video footage obtained shall be high resolution, enabling the engineer to assess the quality of the installations that are being videoed. The video shall be supplied in a readily available video format.",null,"SUM",{"v":1,"d":"1 "}]
[]
[{"v":39,"d":"39 "},"Detailed bathymetric survey - The survey must result in a detailed and accurate model of the submerged structures and rails and provide all levels with contour spacing of no larger than 500mm. Muliti-beam sonar equipment is recommended to be used at a density that can be viewed in a point cloud or processed into a high resolution map. All vehicles, equipment and materials required to undertake the survey shall be allowed for in the pricing",null,"SUM",{"v":1,"d":"1 "}]
[]
[{"v":40,"d":"40 "},"Testing and other specialist studies (Others as defined by the Engineer during construction)",null,"SUM",{"v":1,"d":"1 "}]
[]
[{"v":41,"d":"41 "},"Hot and cold commission and trial operation",null,"SUM",{"v":1,"d":"1 "}]
[]
[{"v":42,"d":"42 "},"Handing over to Employer",null,"SUM",{"v":1,"d":"1 "}]
[]
[null,"CARRIED TO FINAL SUMMARY / ,,,",{"$nulls":4},{"$f":"SUM(G2616:G2812)","v":{"v":0,"d":"0.00"}}]
[]
[null,"SECTION NO. 6"]
[]
[null,"BILL NO. 1"]
[]
[null,"ELECTRICAL INSTALLATION"]
[]
[null,"OPERATIONS BUILDING AND SLIPWAY"]
[]
[null,"LOW VOLTAGE"]
[]
[null,"DISCONNECTION / REMOVAL OF REDUNDANT ELECTRICAL EQUIPMENT"]
[]
[null,"The following equipment shall be isolated, disconnected, removed and handed over to the Employer:"]
[]
[{"v":1,"d":"1 "},"Decommissioning of existing kiosks feeding streetlights, cables, DB's in the existing operations building.",null,"SUM",{"v":1,"d":"1 "}]
[]
[null,"LV SWITCHGEAR"]
[]
[null,"MCCs, DBs and LV Switchgear"]
[]
[null,"Manufacture, deliver to site, install, commission, test kiosks, distribution boards motor control centre and tuning of 400 volt motor starters as per specification and single line diagram, to be housed in  new MCC Enclosure. Rates to include for 3CR12 steelwork and powder coated, busbars and drilling, busbar connections internal wiring etc. Refer to attached single line diagram. Colour shall be Electric Orange and red doors for MCC."]
[]
[{"v":2,"d":"2 "},"MCC 1",null,"No",{"v":1,"d":"1 "},null,{"$f":"ROUND(E2837*F2837,2)","v":{"v":0,"d":"0.00"}}]
[]
[{"v":3,"d":"3 "},"DB/E - 1",null,"No",{"v":1,"d":"1 "},null,{"$f":"ROUND(E2839*F2839,2)","v":{"v":0,"d":"0.00"}}]
[]
[{"v":4,"d":"4 "},"DB/E - 2",null,"No",{"v":1,"d":"1 "},null,{"$f":"ROUND(E2841*F2841,2)","v":{"v":0,"d":"0.00"}}]
[]
[{"v":5,"d":"5 "},"DB/E - A",null,"No",{"v":1,"d":"1 "},null,{"$f":"ROUND(E2843*F2843,2)","v":{"v":0,"d":"0.00"}}]
[]
[{"v":6,"d":"6 "},"KIOSK (SW-K2) - Slipway area",null,"No",{"v":1,"d":"1 "},null,{"$f":"ROUND(E2845*F2845,2)","v":{"v":0,"d":"0.00"}}]
[]
[{"v":7,"d":"7 "},"KIOSK (SW-K3) - Slipway area",null,"No",{"v":1,"d":"1 "},null,{"$f":"ROUND(E2847*F2847,2)","v":{"v":0,"d":"0.00"}}]
[]
[null,"CABLES AND CONDUCTORS"]
[]
[null,"Supply, deliver to site cables and conductors as specified. Install, rack, strap and testing of cables as per specification including clamps, ties and cable numbering system"]
[]
[{"v":8,"d":"8 "},"2,5mm conductors (mixed colours - live, neutral and earth)",null,"m",{"v":5400,"d":"5,400 "},null,{"$f":"ROUND(E2853*F2853,2)","v":{"v":0,"d":"0.00"}}]
[]
[{"v":9,"d":"9 "},"4,0mm conductors (mixed colours - live, neutral and earth)",null,"m",{"v":4200,"d":"4,200 "},null,{"$f":"ROUND(E2855*F2855,2)","v":{"v":0,"d":"0.00"}}]
[]
[{"v":10,"d":"10 "},"2.5 mm\"² 2c 600/1000V PVC/SWA/PVC ECC Cu Cable",null,"m",{"v":100,"d":"100 "},null,{"$f":"ROUND(E2857*F2857,2)","v":{"v":0,"d":"0.00"}}]
[]
[{"v":11,"d":"11 "},"2.5 mm\"² 4c 600/1000V PVC/SWA/PVC ECC Cu Cable",null,"m",{"v":50,"d":"50 "},null,{"$f":"ROUND(E2859*F2859,2)","v":{"v":0,"d":"0.00"}}]
[]
[{"v":12,"d":"12 "},"4,0 mm\"² 4c 600/1000V PVC/SWA/PVC ECC Cu Cable",null,"m",{"v":260,"d":"260 "},null,{"$f":"ROUND(E2861*F2861,2)","v":{"v":0,"d":"0.00"}}]
[]
[{"v":13,"d":"13 "},"6 mm\"² 4c 600/1000V PVC/SWA/PVC ECC Cu Cable",null,"m",{"v":60,"d":"60 "},null,{"$f":"ROUND(E2863*F2863,2)","v":{"v":0,"d":"0.00"}}]
[]
[{"v":14,"d":"14 "},"10mm\"² 4c 600/1000V PVC/SWA/PVC ECC Cu Cable",null,"m",{"v":210,"d":"210 "},null,{"$f":"ROUND(E2865*F2865,2)","v":{"v":0,"d":"0.00"}}]
[]
[{"v":15,"d":"15 "},"16mm\"² 4c 600/1000V PVC/SWA/PVC ECC Cu Cable",null,"m",{"v":260,"d":"260 "},null,{"$f":"ROUND(E2867*F2867,2)","v":{"v":0,"d":"0.00"}}]
[]
[{"v":16,"d":"16 "},"35mm\"² 4c 600/1000V PVC/SWA/PVC ECC Cu Cable",null,"m",{"v":100,"d":"100 "},null,{"$f":"ROUND(E2869*F2869,2)","v":{"v":0,"d":"0.00"}}]
[]
[{"v":17,"d":"17 "},"95mm\"² 4c 600/1000V PVC/SWA/PVC ECC Cu Cable",null,"m",{"v":100,"d":"100 "},null,{"$f":"ROUND(E2871*F2871,2)","v":{"v":0,"d":"0.00"}}]
[]
[{"v":18,"d":"18 "},"6,0mm\"² PVC Green insulated Copper single core",null,"m",{"v":100,"d":"100 "},null,{"$f":"ROUND(E2873*F2873,2)","v":{"v":0,"d":"0.00"}}]
[]
[{"v":19,"d":"19 "},"1.5mm\"² draw wire (not insulated)",null,"m",{"v":300,"d":"300 "},null,{"$f":"ROUND(E2875*F2875,2)","v":{"v":0,"d":"0.00"}}]
[]
[{"v":20,"d":"20 "},"630mm\"² - 1 Core unarmoured XLPE insulated PVC sheathed copper cable (Red colour)",null,"m",{"v":400,"d":"400 "},null,{"$f":"ROUND(E2877*F2877,2)","v":{"v":0,"d":"0.00"}}]
[]
[{"v":21,"d":"21 "},"630mm\"² - 1 Core unarmoured XLPE insulated PVC sheathed copper cable (Yellow/White colour)",null,"m",{"v":400,"d":"400 "},null,{"$f":"ROUND(E2879*F2879,2)","v":{"v":0,"d":"0.00"}}]
[]
[{"v":22,"d":"22 "},"630mm\"² - 1 Core unarmoured XLPE insulated PVC sheathed copper cable (Blue colour)",null,"m",{"v":400,"d":"400 "},null,{"$f":"ROUND(E2881*F2881,2)","v":{"v":0,"d":"0.00"}}]
[]
[{"v":23,"d":"23 "},"630mm\"² - 1 Core unarmoured XLPE insulated PVC sheathed copper cable (White colour)",null,"m",{"v":400,"d":"400 "},null,{"$f":"ROUND(E2883*F2883,2)","v":{"v":0,"d":"0.00"}}]
[]
[{"v":24,"d":"24 "},"6,0mm\"² PVC Green insulated Copper single core",null,"m",{"v":160,"d":"160 "},null,{"$f":"ROUND(E2885*F2885,2)","v":{"v":0,"d":"0.00"}}]
[]
[{"v":25,"d":"25 "},"35mm\"² PVC Green insulated Copper single core",null,"m",{"v":160,"d":"160 "},null,{"$f":"ROUND(E2887*F2887,2)","v":{"v":0,"d":"0.00"}}]
[]
[{"v":26,"d":"26 "},"50mm\"² PVC Green insulated Copper single core",null,"m",{"v":300,"d":"300 "},null,{"$f":"ROUND(E2889*F2889,2)","v":{"v":0,"d":"0.00"}}]
[]
[{"v":27,"d":"27 "},"70mm\"² PVC Green insulated Copper single core",null,"m",{"v":300,"d":"300 "},null,{"$f":"ROUND(E2891*F2891,2)","v":{"v":0,"d":"0.00"}}]
[]
[{"v":28,"d":"28 "},"120mm\"² PVC Green insulated Copper single core",null,"m",{"v":300,"d":"300 "},null,{"$f":"ROUND(E2893*F2893,2)","v":{"v":0,"d":"0.00"}}]
[]
[{"v":29,"d":"29 "},"185mm\"² PVC Green insulated Copper single core",null,"m",{"v":300,"d":"300 "},null,{"$f":"ROUND(E2895*F2895,2)","v":{"v":0,"d":"0.00"}}]
[]
[null,"CABLES TERMINATIONS"]
[]
[null,"Termination of cables shall include supply installation and testing of the IP68 glands with corrossion  guard , making-off the cable, lugs, and fitting the gland to the board gland plate, switchgear or equipment and final connection of cable tails into board or terminals.  Include for Reducing Glands and shrouds where applicable. NB:  IP68 Glands are to be used"]
[]
[{"v":30,"d":"30 "},"2.5 mm\"² 2c 600/1000V PVC/SWA/PVC ECC Cu Cable",null,"No",{"v":16,"d":"16 "},null,{"$f":"ROUND(E2901*F2901,2)","v":{"v":0,"d":"0.00"}}]
[]
[{"v":31,"d":"31 "},"2.5 mm\"² 4c 600/1000V PVC/SWA/PVC ECC Cu Cable",null,"No",{"v":4,"d":"4 "},null,{"$f":"ROUND(E2903*F2903,2)","v":{"v":0,"d":"0.00"}}]
[]
[{"v":32,"d":"32 "},"4mm\"² 4c 600/1000V PVC/SWA/PVC ECC Cu Cable",null,"No",{"v":6,"d":"6 "},null,{"$f":"ROUND(E2905*F2905,2)","v":{"v":0,"d":"0.00"}}]
[]
[{"v":33,"d":"33 "},"6mm\"² 4c 600/1000V PVC/SWA/PVC ECC Cu Cable",null,"No",{"v":16,"d":"16 "},null,{"$f":"ROUND(E2907*F2907,2)","v":{"v":0,"d":"0.00"}}]
[]
[{"v":34,"d":"34 "},"10mm\"² 4c 600/1000V PVC/SWA/PVC ECC Cu Cable",null,"No",{"v":22,"d":"22 "},null,{"$f":"ROUND(E2909*F2909,2)","v":{"v":0,"d":"0.00"}}]
[]
[{"v":35,"d":"35 "},"16mm\"² 4c 600/1000V PVC/SWA/PVC ECC Cu Cable",null,"No",{"v":16,"d":"16 "},null,{"$f":"ROUND(E2911*F2911,2)","v":{"v":0,"d":"0.00"}}]
[]
[{"v":36,"d":"36 "},"35mm\"² 4c 600/1000V PVC/SWA/PVC ECC Cu Cable",null,"No",{"v":16,"d":"16 "},null,{"$f":"ROUND(E2913*F2913,2)","v":{"v":0,"d":"0.00"}}]
[]
[{"v":37,"d":"37 "},"95 mm\"² 4c 600/1000V PVC/SWA/PVC ECC Cu Cable",null,"No",{"v":6,"d":"6 "},null,{"$f":"ROUND(E2915*F2915,2)","v":{"v":0,"d":"0.00"}}]
[]
[{"v":38,"d":"38 "},"6,0mm\"² PVC Green insulated Copper single core",null,"No",{"v":20,"d":"20 "},null,{"$f":"ROUND(E2917*F2917,2)","v":{"v":0,"d":"0.00"}}]
[]
[{"v":39,"d":"39 "},"Earthing and Bonding of all electrically connected Equipment and cable racking and supports as per Spec & regulations.",null,"SUM",{"v":1,"d":"1 "}]
[]
[{"v":40,"d":"40 "},"630mm\"² - 1 Core unarmoured XLPE insulated PVC sheathed copper cable (all 4 colour cables/for all phases plus neutral)",null,"No",{"v":50,"d":"50 "},null,{"$f":"ROUND(E2921*F2921,2)","v":{"v":0,"d":"0.00"}}]
[]
[null,"CABLE TRAY, LADDER, TRUNKING, POWER SKIRTING, CONDUIT AND ACCESSORIES"]
[]
[null,"Supply, deliver to site unpainted hot dipped galvanised steel cable tray, cable ladder, P9000 trunking type as specified heavy duty range, inclusive of all items required to install in accordance with manufacturers specification. Power skirting shall be grey in colour.Supply, deliver and Install hot dip galvanised heavy duty all items such as brackets, rawl bolts,splices, bonding straps etc. required to install in accordance with manufacturers specification. NB: all additional HDG steel supports to be included in the rates."]
[]
[{"v":41,"d":"41 "},"300mm wide tray - Cable ladder",null,"m",{"v":120,"d":"120 "},null,{"$f":"ROUND(E2927*F2927,2)","v":{"v":0,"d":"0.00"}}]
[]
[{"v":42,"d":"42 "},"Cable ladder bends (5), 4-ways (2), tee ways (5) and all required accessories",null,"SUM",{"v":1,"d":"1 "}]
[]
[{"v":43,"d":"43 "},"Supply and install HDG angle iron including mounting clamps for cable droppers as specified.  40mm x 40mm x 5mm.",null,"No",{"v":30,"d":"30 "},null,{"$f":"ROUND(E2931*F2931,2)","v":{"v":0,"d":"0.00"}}]
[]
[{"v":44,"d":"44 "},"300mm wide tray - Cable tray",null,"m",{"v":160,"d":"160 "},null,{"$f":"ROUND(E2933*F2933,2)","v":{"v":0,"d":"0.00"}}]
[]
[{"v":45,"d":"45 "},"Cable tray bends (14), 4-ways (3), tee ways (8) and all required accessories",null,"SUM",{"v":1,"d":"1 "}]
[]
[{"v":46,"d":"46 "},"Supply and install HDG angle iron bends including mounting clamps for cable droppers as specified.  40mm x 40mm x 5mm.",null,"No",{"v":30,"d":"30 "},null,{"$f":"ROUND(E2937*F2937,2)","v":{"v":0,"d":"0.00"}}]
[]
[{"v":47,"d":"47 "},"2 compartment hot dip galvinised steel powerskirting complete with elbow, internal and external bends, covers and all required accessories. To be grey in colour.",null,"m",{"v":40,"d":"40 "},null,{"$f":"ROUND(E2939*F2939,2)","v":{"v":0,"d":"0.00"}}]
[]
[{"v":48,"d":"48 "},"Supply, delivery and installation of P9000 steel trunking complete with covers, brackets and all required accessories for complete installation",null,"m",{"v":320,"d":"320 "},null,{"$f":"ROUND(E2941*F2941,2)","v":{"v":0,"d":"0.00"}}]
[]
[null,"Cable Boxes and Conduits:   Supply, deliver to site, store and install IP65 Cable Boxes  for light fitting cables inclusive of terminals etc as specified.  Rates to include Termination glands & terminations"]
[]
[{"v":49,"d":"49 "},"IP66 Four- way box",null,"No",{"v":10,"d":"10 "},null,{"$f":"ROUND(E2945*F2945,2)","v":{"v":0,"d":"0.00"}}]
[]
[{"v":50,"d":"50 "},"25mm PVC Conduit including all necessary accessories. Rate to include chasing conduit in the wall and close make good.",null,"m",{"v":600,"d":"600 "},null,{"$f":"ROUND(E2947*F2947,2)","v":{"v":0,"d":"0.00"}}]
[]
[{"v":51,"d":"51 "},"32mm PVC Conduit including all necessary accessories. Rate to include chasing conduit in the wall and close make good.",null,"m",{"v":240,"d":"240 "},null,{"$f":"ROUND(E2949*F2949,2)","v":{"v":0,"d":"0.00"}}]
[]
[{"v":52,"d":"52 "},"25mm steel Conduit including all necessary accessories. Rate to include surface mounted on the wall and close make good.",null,"m",{"v":100,"d":"100 "},null,{"$f":"ROUND(E2951*F2951,2)","v":{"v":0,"d":"0.00"}}]
[]
[{"v":53,"d":"53 "},"32mm steel Conduit including all necessary accessories. Rate to include surface mounted on the wall and close make good.",null,"m",{"v":100,"d":"100 "},null,{"$f":"ROUND(E2953*F2953,2)","v":{"v":0,"d":"0.00"}}]
[]
[null,"Sleeves:  Supply and install the following underground flexible conduits in concrete slab, ground, chased through brick walls. All material to be SABS approved as suitable for cable installation. Must be black in colour. Must have 1,5mm draw wire."]
[]
[{"v":54,"d":"54 "},"160mm Flexible sleeves",null,"m",{"v":350,"d":"350 "},null,{"$f":"ROUND(E2957*F2957,2)","v":{"v":0,"d":"0.00"}}]
[]
[{"v":55,"d":"55 "},"110mm Flexible sleeves",null,"m",{"v":350,"d":"350 "},null,{"$f":"ROUND(E2959*F2959,2)","v":{"v":0,"d":"0.00"}}]
[]
[null,"LUMINARIES AND CONTROL DEVICES"]
[]
[null,"Supply, deliver and install the following luminaires, complete with accessories and control gear as per specification. Contractor must refer to the specification document for details"]
[]
[{"v":56,"d":"56 "},"Type A3 - IP65 Rated, LED 43W/  5850 lumen Refer to the specification for details.",null,"No",{"v":3,"d":"3 "},null,{"$f":"ROUND(E2965*F2965,2)","v":{"v":0,"d":"0.00"}}]
[]
[{"v":57,"d":"57 "},"Type A4 - IP65 Rated, LED 43W/  5850 lumen with back up 1 hour battery. Refer to the specification for details.",null,"No",{"v":2,"d":"2 "},null,{"$f":"ROUND(E2967*F2967,2)","v":{"v":0,"d":"0.00"}}]
[]
[{"v":58,"d":"58 "},"Type A5 - IP65 Rated, 30W/ 4440lumen  LED Surface-mounted weather-proof fluorescent luminaire, GRP body and acrylic diffuser. Refer to the specification for details.",null,"No",{"v":16,"d":"16 "},null,{"$f":"ROUND(E2969*F2969,2)","v":{"v":0,"d":"0.00"}}]
[]
[{"v":59,"d":"59 "},"Type A6 - IP65 Rated, LED 30W/  4440lumen  with back up 1 hour battery. Refer to the specification for details.",null,"No",{"v":9,"d":"9 "},null,{"$f":"ROUND(E2971*F2971,2)","v":{"v":0,"d":"0.00"}}]
[]
[{"v":60,"d":"60 "},"Type A7 - Decorative suspended downlighter 65W/  8600 lumen (4000K) luminaire suspended by 3 fold rope suspension luminaire. Refer to the specification for details.",null,"No",{"v":2,"d":"2 "},null,{"$f":"ROUND(E2973*F2973,2)","v":{"v":0,"d":"0.00"}}]
[]
[{"v":61,"d":"61 "},"Type A8 - Decorative suspended downlighter 65W/  8600 lumen (4000K) luminaire suspended by 3 fold rope suspension luminaire. Same as A7, but this has a backup back to operate for 1-hour.",null,"No",{"v":1,"d":"1 "},null,{"$f":"ROUND(E2975*F2975,2)","v":{"v":0,"d":"0.00"}}]
[]
[{"v":62,"d":"62 "},"Type A9 - Lowbay Luminaire LED 144W/  20 000 lumen 4000K. Refer to the specification for details.",null,"No",{"v":3,"d":"3 "},null,{"$f":"ROUND(E2977*F2977,2)","v":{"v":0,"d":"0.00"}}]
[]
[{"v":63,"d":"63 "},"Type A10 - Lowbay Luminaire LED 144W/  20 000 lumen 4000K with back up 1 hour battery. Refer to the specification for details.",null,"No",{"v":3,"d":"3 "},null,{"$f":"ROUND(E2979*F2979,2)","v":{"v":0,"d":"0.00"}}]
[]
[{"v":64,"d":"64 "},"Type B1 - IP65 20W /  2300 lumen 4000K LED bulkhead luminaire with an opal high-impact acrylic diffuser.  Refer to the specification for details.",null,"No",{"v":15,"d":"15 "},null,{"$f":"ROUND(E2981*F2981,2)","v":{"v":0,"d":"0.00"}}]
[]
[{"v":65,"d":"65 "},"Type B2 - IP65 20W/  2300 lumen 4000K LED bulkhead luminaire with an opal high-impact acrylic diffuser with back up 1 hour battery. Refer to the specification for details.",null,"No",{"v":2,"d":"2 "},null,{"$f":"ROUND(E2983*F2983,2)","v":{"v":0,"d":"0.00"}}]
[]
[{"v":66,"d":"66 "},"Type C1  - 80W /  9500 lumen 4000K LED Floodlight, rated IP66. Refer to the specification for details.",null,"No",{"v":5,"d":"5 "},null,{"$f":"ROUND(E2985*F2985,2)","v":{"v":0,"d":"0.00"}}]
[]
[{"v":67,"d":"67 "},"Type D1  - 10W/  1200 lumen 4000K LED downlighters. Refer to the specification for details.",null,"No",{"v":31,"d":"31 "},null,{"$f":"ROUND(E2987*F2987,2)","v":{"v":0,"d":"0.00"}}]
[]
[{"v":68,"d":"68 "},"Type D2  - 10W/  1200 lumen 4000K LED downlighters. Same as type D1 above, but these have backup battery to operate for 1-hour.",null,"No",{"v":8,"d":"8 "},null,{"$f":"ROUND(E2989*F2989,2)","v":{"v":0,"d":"0.00"}}]
[]
[{"v":69,"d":"69 "},"Type D3  - 20W/  2000 lumen 4000K LED downlighters. Same as D1 above, but these have higher lumen of � each.",null,"No",{"v":12,"d":"12 "},null,{"$f":"ROUND(E2991*F2991,2)","v":{"v":0,"d":"0.00"}}]
[]
[{"v":70,"d":"70 "},"Type D4  - 20W/  2000 lumen 4000K LED downlighters. Same as type D3 above, but these have backup battery to operate for 1-hour.",null,"No",{"v":5,"d":"5 "},null,{"$f":"ROUND(E2993*F2993,2)","v":{"v":0,"d":"0.00"}}]
[]
[{"v":71,"d":"71 "},"Type R1 - 1200mm x 600mm - 65W/ 5850 lumen (4000K) recessed mounted LED lighting panel. Refer to the specification for details.",null,"No",{"v":4,"d":"4 "},null,{"$f":"ROUND(E2995*F2995,2)","v":{"v":0,"d":"0.00"}}]
[]
[{"v":72,"d":"72 "},"Type R2 - 1200mm x 600mm  65W/ 5850 lumen (4000K) recessed mounted LED lighting panel with back up 1 hour battery. Refer to the specification for details.",null,"No",{"v":3,"d":"3 "},null,{"$f":"ROUND(E2997*F2997,2)","v":{"v":0,"d":"0.00"}}]
[]
[{"v":73,"d":"73 "},"Type R3 - 600mm x 600mm, 39W/ 3900 lumen (4000K) recessed mounted LED lighting panel on suspended ceiling. Same as R1 above, but these have a lumen of 3900 each.",null,"No",{"v":3,"d":"3 "},null,{"$f":"ROUND(E2999*F2999,2)","v":{"v":0,"d":"0.00"}}]
[]
[{"v":74,"d":"74 "},"Type R3 - 600mm x 600mm, 39W/ 3900 lumen (4000K) recessed mounted LED lighting panel  on suspended ceiling. Same as type R3 above, but these have backup battery to operate for 1-hour.",null,"No",{"v":3,"d":"3 "},null,{"$f":"ROUND(E3001*F3001,2)","v":{"v":0,"d":"0.00"}}]
[]
[{"v":75,"d":"75 "},"Type EXIT - wall mount LED Emergency Exit sign with back up 1 hour battery.",null,"No",{"v":4,"d":"4 "},null,{"$f":"ROUND(E3003*F3003,2)","v":{"v":0,"d":"0.00"}}]
[]
[{"v":76,"d":"76 "},"Type A1 - 1200mm x 600mm - 65W/ 5850 lumen (4000K) surfaced mounted LED lighting panel. Refer to the specification for details.",null,"No",{"v":1,"d":"1 "},null,{"$f":"ROUND(E3005*F3005,2)","v":{"v":0,"d":"0.00"}}]
[]
[{"v":77,"d":"77 "},"Type F - Floodlight luminaire LED 412W/  54000 lumen 4000K. Refer to specification for details.",null,"No",{"v":4,"d":"4 "},null,{"$f":"ROUND(E3007*F3007,2)","v":{"v":0,"d":"0.00"}}]
[]
[null,"LIGHT SWITCHES, SOCKET OUTLET, WELDING ISOLATORS AND ACCESSORIES"]
[]
[null,"Supply, deliver and installation of the following  accessories as per specification. Rate must allow for the termination and connecting of the PVC conductor to the accessory, fixing to the conduit box and the fitting of the cover plate. (PVC covers)"]
[]
[{"v":78,"d":"78 "},"Supply and installation of 15Amp, 1 lever, 1-way, white cover plate, red toggle, light circuit switch complete with cover and all accessories",null,"No",{"v":14,"d":"14 "},null,{"$f":"ROUND(E3013*F3013,2)","v":{"v":0,"d":"0.00"}}]
[]
[{"v":79,"d":"79 "},"Supply and installation of 15Amp, 1 lever, 2-way, white cover plate, red toggle, light circuit switch complete with cover and all accessories",null,"No",{"v":8,"d":"8 "},null,{"$f":"ROUND(E3015*F3015,2)","v":{"v":0,"d":"0.00"}}]
[]
[{"v":80,"d":"80 "},"Supply and installation of 15Amp, 2 lever, 1-way, white cover plate, red toggle, light circuit switch complete with cover and all accessories",null,"No",{"v":2,"d":"2 "},null,{"$f":"ROUND(E3017*F3017,2)","v":{"v":0,"d":"0.00"}}]
[]
[{"v":81,"d":"81 "},"Supply and installation of 15Amp, 3 lever, 1-way, white cover plate, red toggle, light circuit switch complete with cover and all accessories",null,"No",{"v":4,"d":"4 "},null,{"$f":"ROUND(E3019*F3019,2)","v":{"v":0,"d":"0.00"}}]
[]
[{"v":82,"d":"82 "},"Supply and install 16A, 3pin, 2-pin/ Euro-pin, 230V  Switched Socket Outlets, white cover plate, red toggle mounted on the wall",null,"No",{"v":9,"d":"9 "},null,{"$f":"ROUND(E3021*F3021,2)","v":{"v":0,"d":"0.00"}}]
[]
[{"v":83,"d":"83 "},"Supply and install 16A, 3pin, 230V Double Switched Socket Outlets, white cover plate, red toggle mounted on the wall",null,"No",{"v":10,"d":"10 "},null,{"$f":"ROUND(E3023*F3023,2)","v":{"v":0,"d":"0.00"}}]
[]
[{"v":84,"d":"84 "},"Supply and install 16A, 3pin and 2pin / Euro pin, 230V Switched Socket Outlets, white cover plate, blue toggle mounted on the wall",null,"No",{"v":5,"d":"5 "},null,{"$f":"ROUND(E3025*F3025,2)","v":{"v":0,"d":"0.00"}}]
[]
[{"v":85,"d":"85 "},"Supply and install 16A, 3pin, 230V Switched Socket Outlets, white cover plate, red toggle installed in a power skirting",null,"No",{"v":34,"d":"34 "},null,{"$f":"ROUND(E3027*F3027,2)","v":{"v":0,"d":"0.00"}}]
[]
[{"v":86,"d":"86 "},"Supply and install 16A, 2pin, 230V Switched Socket Outlets, white coloured plate, red toggle installed in a power skirting",null,"No",{"v":18,"d":"18 "},null,{"$f":"ROUND(E3029*F3029,2)","v":{"v":0,"d":"0.00"}}]
[]
[{"v":87,"d":"87 "},"Supply and install 16A, 3pin, 230V Switched Socket Outlets, white cover plate, red toggle with chamfered earth installed in a power skirting",null,"No",{"v":14,"d":"14 "},null,{"$f":"ROUND(E3031*F3031,2)","v":{"v":0,"d":"0.00"}}]
[]
[{"v":88,"d":"88 "},"Supply and installation of 32Amp 2-Pole surface mounted isolator, white cover plate with red toggle or red cover plate complete with all necessary accessories",null,"No",{"v":20,"d":"20 "},null,{"$f":"ROUND(E3033*F3033,2)","v":{"v":0,"d":"0.00"}}]
[]
[{"v":89,"d":"89 "},"Supply and installation of 60Amp 3-Pole surface mounted isolator, white cover plate with red toggle or red cover plate complete with all necessary accessories",null,"No",{"v":9,"d":"9 "},null,{"$f":"ROUND(E3035*F3035,2)","v":{"v":0,"d":"0.00"}}]
[]
[{"v":90,"d":"90 "},"Supply, deliver and installation of 400V, 32A, 4-pole  IP65 rated Isolator, white cover plate with red toggle or red cover plate, complete with all necessary accessories",null,"No",{"v":6,"d":"6 "},null,{"$f":"ROUND(E3037*F3037,2)","v":{"v":0,"d":"0.00"}}]
[]
[{"v":91,"d":"91 "},"Supply and installation of 63Amp, 5 Pin, 400V Industrial IP65 Welding Socket Outlet, powder coated to electric orange coloured, complete with all necessary accessories",null,"No",{"v":8,"d":"8 "},null,{"$f":"ROUND(E3039*F3039,2)","v":{"v":0,"d":"0.00"}}]
[]
[{"v":92,"d":"92 "},"100mmX100mm hot dip galvanised draw box recessed mounted on wall",null,"No",{"v":12,"d":"12 "},null,{"$f":"ROUND(E3041*F3041,2)","v":{"v":0,"d":"0.00"}}]
[]
[{"v":93,"d":"93 "},"100mmX50mm hot dip galvanised draw box recessed mounted on wall",null,"No",{"v":24,"d":"24 "},null,{"$f":"ROUND(E3043*F3043,2)","v":{"v":0,"d":"0.00"}}]
[]
[{"v":94,"d":"94 "},"Blank PVC cover plates 100mmx100mm complete with all necessary accessories",null,"No",{"v":6,"d":"6 "},null,{"$f":"ROUND(E3045*F3045,2)","v":{"v":0,"d":"0.00"}}]
[]
[{"v":95,"d":"95 "},"Data point RJ45 mounted on wall, cabling by others / Specialists",null,"No",{"v":8,"d":"8 "},null,{"$f":"ROUND(E3047*F3047,2)","v":{"v":0,"d":"0.00"}}]
[]
[{"v":96,"d":"96 "},"Data point RJ45 on power skirting, cabling by others  / Specialists",null,"No",{"v":8,"d":"8 "},null,{"$f":"ROUND(E3049*F3049,2)","v":{"v":0,"d":"0.00"}}]
[]
[{"v":97,"d":"97 "},"65 mm round PVC box, complete with cover and all necessary accessories.",null,"No",{"v":300,"d":"300 "},null,{"$f":"ROUND(E3051*F3051,2)","v":{"v":0,"d":"0.00"}}]
[]
[{"v":98,"d":"98 "},"Supply, deliver and installation of occupancy sensor as per specification",null,"No",{"v":20,"d":"20 "},null,{"$f":"ROUND(E3053*F3053,2)","v":{"v":0,"d":"0.00"}}]
[]
[{"v":99,"d":"99 "},"Supply and installation of 60Amp Double Pole surface mounted isolator, white cover plate with red toggle or red cover plate complete with all necessary accessories",null,"No",{"v":2,"d":"2 "},null,{"$f":"ROUND(E3055*F3055,2)","v":{"v":0,"d":"0.00"}}]
[]
[{"v":100,"d":"100 "},"Supply, deliver and installation of 20Amp, 3-pole isolator floodlight switch white cover plate, red toggle, light circuit switch complete with cover and all accessories, mounted at the winch room room",null,"No",{"v":1,"d":"1 "},null,{"$f":"ROUND(E3057*F3057,2)","v":{"v":0,"d":"0.00"}}]
[]
[{"v":101,"d":"101 "},"Supply, deliver and installation of 5amp, unswitched socket outlet, mountd on P9000 with all necessary accessories for complete operation",null,"No",{"v":108,"d":"108 "},null,{"$f":"ROUND(E3059*F3059,2)","v":{"v":0,"d":"0.00"}}]
[]
[{"v":102,"d":"102 "},"Supply, deliver and installation of brushed s/steel walkway outlet box kits and pop-up pedestal complete with all necessary accessories. Rate to allow or include chasing on  the floor and make good.",null,"No",{"v":2,"d":"2 "},null,{"$f":"ROUND(E3061*F3061,2)","v":{"v":0,"d":"0.00"}}]
[]
[{"v":103,"d":"103 "},"Photo electric cell as per specification",null,"No",{"v":3,"d":"3 "},null,{"$f":"ROUND(E3063*F3063,2)","v":{"v":0,"d":"0.00"}}]
[]
[null,"SUNDRIES"]
[]
[{"v":104,"d":"104 "},"LV reticulation - Preparation of 'As-Built' drawings and manuals as per this specification.",null,"No",{"v":1,"d":"1 "},null,{"$f":"ROUND(E3067*F3067,2)","v":{"v":0,"d":"0.00"}}]
[]
[{"v":105,"d":"105 "},"Supply of hard bound spiral folders containing commissioning/COC certificates, test results & operating & maintenance manuals for the LV equipment, cabling, light fittings, etc.",null,"No",{"v":3,"d":"3 "},null,{"$f":"ROUND(E3069*F3069,2)","v":{"v":0,"d":"0.00"}}]
[]
[{"v":106,"d":"106 "},"Danger tape",null,"m",{"v":120,"d":"120 "},null,{"$f":"ROUND(E3071*F3071,2)","v":{"v":0,"d":"0.00"}}]
[]
[{"v":107,"d":"107 "},"Labelling of light switches, sockets, isolators outlets and all control devices as per drawing pop riveted to cover plate.",null,"SUM",{"v":1,"d":"1 "}]
[]
[{"v":108,"d":"108 "},"Signs, Labels & Equipment Tags:  Supply and install all power, lighting, motors  and earthing signs, labels and equipment tags as specified and in accordance with all Statutory requirements.",null,"SUM",{"v":1,"d":"1 "}]
[]
[{"v":109,"d":"109 "},"EARTH BAR - A 500 mm x 20mm x4mm copper earth bar with 10no. 6 mm diameter holes pre-drilled, surface fixed on insulators",null,"No",{"v":7,"d":"7 "},null,{"$f":"ROUND(E3077*F3077,2)","v":{"v":0,"d":"0.00"}}]
[]
[{"v":110,"d":"110 "},"Supply, deliver and installation of copper earth /rod spike 1200mm complete with all required accessories",null,"No",{"v":22,"d":"22 "},null,{"$f":"ROUND(E3079*F3079,2)","v":{"v":0,"d":"0.00"}}]
[]
[{"v":111,"d":"111 "},"Supply and installation of 125Amp, 5 Pin, 400VAC Industrial IP66/67 industrial Isolator/socket/connector, powder coated to electric orange coloured, complete with all necessary accessories to mounted on the kiosk or as indicated on the drawing or work information.",null,"No",{"v":2,"d":"2 "},null,{"$f":"ROUND(E3081*F3081,2)","v":{"v":0,"d":"0.00"}}]
[]
[{"v":112,"d":"112 "},"Supply and installation of 63Amp, 5 Pin, 400VAC Industrial IP66/67 industrial Isolator/socket/connector, powder coated to electric orange coloured, complete with all necessary accessories to mounted on the kiosk or as indicated on the drawing or work information.",null,"No",{"v":2,"d":"2 "},null,{"$f":"ROUND(E3083*F3083,2)","v":{"v":0,"d":"0.00"}}]
[]
[{"v":113,"d":"113 "},"Supply and installation of 63Amp, 3 Pin, 230VAC Industrial IP66/67 industrial Isolator/socket/connector, powder coated to electric orange coloured, complete with all necessary accessories to mounted on the kiosk or as indicated on the drawing or work information.",null,"No",{"v":2,"d":"2 "},null,{"$f":"ROUND(E3085*F3085,2)","v":{"v":0,"d":"0.00"}}]
[]
[null,"EXCAVATIONS"]
[]
[null,"The Contractor conforms to all requirements as detailed in this BOQ and the Part C3 Scope of Works and the detailed construction drawings supplied by the TNPA.  For LV streetlight cables, feeding cables from Slipway Substation to respective distribution boards, MCC and kiosk as per the drawing. Trenching shall be calculated using the formula below: (0.7m deep * 0.45m wide *  length)"]
[]
[{"v":114,"d":"114 "},"Excavate in soft rock, backfilling and compaction to 93% MOD AASHTO",null,"m³",{"v":4,"d":"4 "},null,{"$f":"ROUND(E3091*F3091,2)","v":{"v":0,"d":"0.00"}}]
[]
[{"v":115,"d":"115 "},"Excavate in concrete/road brick and hard soil, backfilling and compaction to 93% MOD AASHTO",null,"m³",{"v":42,"d":"42 "},null,{"$f":"ROUND(E3093*F3093,2)","v":{"v":0,"d":"0.00"}}]
[]
[{"v":116,"d":"116 "},"Excavate in tar and hard soil, backfilling and compaction to 93% MOD AASHTO",null,"m³",{"v":42,"d":"42 "},null,{"$f":"ROUND(E3095*F3095,2)","v":{"v":0,"d":"0.00"}}]
[]
[{"v":117,"d":"117 "},"Re-instate excavated tar, road brick and/or concrete to match existing. Rates to allow for all required materials and labour.",null,"m³",{"v":378,"d":"378 "},null,{"$f":"ROUND(E3097*F3097,2)","v":{"v":0,"d":"0.00"}}]
[]
[{"v":118,"d":"118 "},"Excavate for street light poles in soft rock,  concrete and hard soil, backfilling and compaction to 93% MOD AASHTO",null,"m³",{"v":4,"d":"4 "},null,{"$f":"ROUND(E3099*F3099,2)","v":{"v":0,"d":"0.00"}}]
[]
[{"v":119,"d":"119 "},"Handling of material",null,"m³",{"v":42,"d":"42 "},null,{"$f":"ROUND(E3101*F3101,2)","v":{"v":0,"d":"0.00"}}]
[]
[{"v":120,"d":"120 "},"Construction of manholes and complete with cover as per drawing no.100-011-3035 details - LV Manhole",null,"No",{"v":4,"d":"4 "},null,{"$f":"ROUND(E3103*F3103,2)","v":{"v":0,"d":"0.00"}}]
[]
[{"v":121,"d":"121 "},"Provide fully dimensioned and marked up As-Built drawings of all new street lighting, area lighting, high mast and showing cable and route and cable sizes and type.",null,"No",{"v":1,"d":"1 "},null,{"$f":"ROUND(E3105*F3105,2)","v":{"v":0,"d":"0.00"}}]
[]
[null,"UNINTERRUPTED POWER SUPPLY (UPS)"]
[]
[{"v":122,"d":"122 "},"Supply, deliver and Install 5kVA, 230VAC, UPS to operate for 15 minutes on full load for the server, complete with all necessary required accessories. Refer to specifications for details.",null,"SUM",{"v":1,"d":"1 "}]
[]
[{"v":123,"d":"123 "},"Supply and installation of 32Amp, 3 Pin, 230VAC Industrial Socket Outlet for Server and or UPS, powder coated to blue coloured, complete with all necessary accessories.",null,"No",{"v":4,"d":"4 "},null,{"$f":"ROUND(E3111*F3111,2)","v":{"v":0,"d":"0.00"}}]
[]
[null,"ELECTRONICS INSTALLATIONS"]
[]
[null,"8 CORE OPTIC CABLE"]
[]
[null,"Supply, delivery and installation of 8 core fibre optic cable  and  all the necessary items required for the installation."]
[]
[{"v":124,"d":"124 "},"Single mode 9/125 micrometre 8 core fibre optic cable",null,"No",{"v":150,"d":"150 "},null,{"$f":"ROUND(E3119*F3119,2)","v":{"v":0,"d":"0.00"}}]
[]
[{"v":125,"d":"125 "},"12 way Patch Panel Complete with splice trays and LC/APC connectors",null,"No",{"v":1,"d":"1 "},null,{"$f":"ROUND(E3121*F3121,2)","v":{"v":0,"d":"0.00"}}]
[]
[{"v":126,"d":"126 "},"Pigtails 1m LC/APC connectors",null,"No",{"v":5,"d":"5 "},null,{"$f":"ROUND(E3123*F3123,2)","v":{"v":0,"d":"0.00"}}]
[]
[{"v":127,"d":"127 "},"Dome joint: High impact polymer dome joint, complete with organiser tray and cable seals, 2 way.",null,"No",{"v":2,"d":"2 "},null,{"$f":"ROUND(E3125*F3125,2)","v":{"v":0,"d":"0.00"}}]
[]
[{"v":128,"d":"128 "},"Splicing at both ends 24/24",null,"No",{"v":10,"d":"10 "},null,{"$f":"ROUND(E3127*F3127,2)","v":{"v":0,"d":"0.00"}}]
[]
[{"v":129,"d":"129 "},"Bi directional Testing (OTDR)",null,"No",{"v":10,"d":"10 "},null,{"$f":"ROUND(E3129*F3129,2)","v":{"v":0,"d":"0.00"}}]
[]
[{"v":130,"d":"130 "},"Power meter testing",null,"No",{"v":10,"d":"10 "},null,{"$f":"ROUND(E3131*F3131,2)","v":{"v":0,"d":"0.00"}}]
[]
[{"v":131,"d":"131 "},"Sum - For all the consumables and any necessary items required to fulfil the above scope of work. Fittings and Accessories.",null,"SUM",{"v":1,"d":"1 "}]
[]
[{"v":132,"d":"132 "},"Training",null,"SUM",{"v":1,"d":"1 "}]
[]
[{"v":133,"d":"133 "},"Testing and commissioning the complete fibre installation including issuing relevant and required",null,"SUM",{"v":1,"d":"1 "}]
[]
[{"v":134,"d":"134 "},"Labour",null,"SUM",{"v":1,"d":"1 "}]
[]
[null,"SECURITY SYSTEM"]
[]
[null,"Supply, deliver and installation of the following  electronics units for security system in the building and to include all required accessories as per specification. Rate must allow for the termination and connecting fixing testing and commissioning as indicated below. Refer to specification document for details."]
[]
[null,"HIGH SPEED PTZ CAMERA, EXTERNAL"]
[]
[{"v":135,"d":"135 "},"Type 1 - IP67 PTZ 2MP, 200m IR range, High resolution imaging, 360views, x36 zoom, Self-learning analytics, robust design, suitable for harshest coastal environment, body - Aluminum and technopolymer, Housing - Pendant and pedestal mount",null,"No",{"v":4,"d":"4 "},null,{"$f":"ROUND(E3147*F3147,2)","v":{"v":0,"d":"0.00"}}]
[]
[{"v":136,"d":"136 "},"AVUEI9AA IR Illuminator 940nm",null,"No",{"v":4,"d":"4 "},null,{"$f":"ROUND(E3149*F3149,2)","v":{"v":0,"d":"0.00"}}]
[]
[{"v":137,"d":"137 "},"AVUEBWAA Wall bracket & AVUEAC Corner adaptor",null,"No",{"v":4,"d":"4 "},null,{"$f":"ROUND(E3151*F3151,2)","v":{"v":0,"d":"0.00"}}]
[]
[{"v":138,"d":"138 "},"POE-INJ-BT-90W-NA PoE injector 802.3bt 90W Single Port, cabling and all required accessories for completion operation.",null,"No",{"v":4,"d":"4 "},null,{"$f":"ROUND(E3153*F3153,2)","v":{"v":0,"d":"0.00"}}]
[]
[null,"BULLET CAMERA"]
[]
[{"v":139,"d":"139 "},"Type 2 - 4.0C-H5A-BO1-IR 4.0 MP WDR, LightCatcher, 3.3-9mm f/1.3 P-iris lens, Integrated IR, Next-Generation Analytics",null,"No",{"v":9,"d":"9 "},null,{"$f":"ROUND(E3157*F3157,2)","v":{"v":0,"d":"0.00"}}]
[]
[{"v":140,"d":"140 "},"H4-BO-JBOX1 Junction box for the H5A Bullet, H4A HD Bullet, H4SL HD Bullet, or H4 Thermal cameras, cabling and all required accessories for completion operation.",null,"No",{"v":9,"d":"9 "},null,{"$f":"ROUND(E3159*F3159,2)","v":{"v":0,"d":"0.00"}}]
[]
[null,"FISHEYE CAMERA WITH AUDIO"]
[]
[{"v":141,"d":"141 "},"Type 3 - 8.0C-H5A-FE-DO1-IR 8.0 MP, H5A Fisheye Dome Camera, LightCatcher, Day/Night, WDR, 1.41mm f/2.0, Next-Generation Analytics, Integrated IR with Audio, cabling and all required accessories for completion operation.",null,"No",{"v":9,"d":"9 "},null,{"$f":"ROUND(E3163*F3163,2)","v":{"v":0,"d":"0.00"}}]
[]
[null,"DOME CAMERA"]
[]
[{"v":142,"d":"142 "},"Type 4 - 4.0C-H5A-DO1-IR 4.0 MP WDR, LightCatcher, Day/Night, Outdoor Dome, 3.3-9mm f/1.3 P-iris lens, Integrated IR, Next-Generation Analytics",null,"No",{"v":6,"d":"6 "},null,{"$f":"ROUND(E3167*F3167,2)","v":{"v":0,"d":"0.00"}}]
[]
[{"v":143,"d":"143 "},"Housing, brackets, cabling and all other required accessories for complete installation and operation",null,"No",{"v":6,"d":"6 "},null,{"$f":"ROUND(E3169*F3169,2)","v":{"v":0,"d":"0.00"}}]
[]
[{"v":144,"d":"144 "},"2 x RM6-WKS-2MN-EU Remote Monitoring Workstation, 2 Monitors, EU with mouse and keyboard",null,"No",{"v":2,"d":"2 "},null,{"$f":"ROUND(E3171*F3171,2)","v":{"v":0,"d":"0.00"}}]
[]
[{"v":145,"d":"145 "},"Wall mounted 65\" LED 4000K Full HD monitors smart TV with HDMI ports",null,"No",{"v":3,"d":"3 "},null,{"$f":"ROUND(E3173*F3173,2)","v":{"v":0,"d":"0.00"}}]
[]
[{"v":146,"d":"146 "},"TV Mounting bracket for above mentioned televisions with all required accessories",null,"No",{"v":3,"d":"3 "},null,{"$f":"ROUND(E3175*F3175,2)","v":{"v":0,"d":"0.00"}}]
[]
[{"v":147,"d":"147 "},"MHD24-G2-EU Monitor, 24\" LCD HD, WUXGA",null,"No",{"v":4,"d":"4 "},null,{"$f":"ROUND(E3177*F3177,2)","v":{"v":0,"d":"0.00"}}]
[]
[null,"NETWORK AND VIDEO RECORDER"]
[]
[{"v":148,"d":"148 "},"NVR with NVR support per channel, NVR support per audio input, NVR support per audio output, NVR4 Value 12TB, 1U Rack Mount, Windows 10, NVR4-VAL-12TB-EU",null,"No",{"v":1,"d":"1 "},null,{"$f":"ROUND(E3181*F3181,2)","v":{"v":0,"d":"0.00"}}]
[]
[{"v":149,"d":"149 "},"Storage Manager Licence per Camera",null,"No",{"v":10,"d":"10 "},null,{"$f":"ROUND(E3183*F3183,2)","v":{"v":0,"d":"0.00"}}]
[]
[{"v":150,"d":"150 "},"12 Port Gigabit Switch - Smart PoE",null,"No",{"v":6,"d":"6 "},null,{"$f":"ROUND(E3185*F3185,2)","v":{"v":0,"d":"0.00"}}]
[]
[{"v":151,"d":"151 "},"Network Cabinet 12U Swing Glass Door Wall Mounted 600mm X 600mm X 450mm (HWD)",null,"No",{"v":6,"d":"6 "},null,{"$f":"ROUND(E3187*F3187,2)","v":{"v":0,"d":"0.00"}}]
[]
[null,"ACCESS CONTROL"]
[]
[{"v":152,"d":"152 "},"Face, Palm, Card and Fingerprint recognition Terminal with Mask Detection including applicable software and software integration",null,"No",{"v":8,"d":"8 "},null,{"$f":"ROUND(E3191*F3191,2)","v":{"v":0,"d":"0.00"}}]
[]
[{"v":153,"d":"153 "},"AC-VT-READ-BIO-USB-FOH02 - VIRDI Fingerprint and card enrollment USB reader, live fingeprint detection embedded, Fingerprint Platen Area: 16 x 19.6mm / Image Size: 15 x 17mm, (VIRDI Part Number: FOH02)",null,"No",{"v":1,"d":"1 "},null,{"$f":"ROUND(E3193*F3193,2)","v":{"v":0,"d":"0.00"}}]
[]
[{"v":154,"d":"154 "},"Access Control Manager Enterprise 6 \"€“ Web-Based PACS Enterprise, Appliance for 20 Readers - includes:   physical appliance embedded 64 bit LinuxOS & Open LDAP for configuration database Access Control Manager Security Management Software  ACC Video Integration  Identities CSV export, recurring, one-time, long & short format  Total reader capacity can be expanded from 128 to 400 readers, in increments of 16, with the purchase of the desired quantity of AC-SW-LIC-16RCU-6-P, 16 Reader Count Software Licenses  Supports up to 512 controllers  250K identities and 150M stored events and twenty (20) simultaneous operators (via browser)  Three (3) year appliance hardware warranty begins at date of shipment ",null,"No",{"v":1,"d":"1 "},null,{"$f":"ROUND(E3195*F3195,2)","v":{"v":0,"d":"0.00"}}]
[]
[{"v":155,"d":"155 "},"Manager Integration Software Licenses Access Control Manager 6 Professional, Enterprise, Enterprise Plus & Virtual",null,"No",{"v":1,"d":"1 "},null,{"$f":"ROUND(E3197*F3197,2)","v":{"v":0,"d":"0.00"}}]
[]
[{"v":156,"d":"156 "},"Single door intelligent controller AC-MER-CONT-LP1501 Intelligent Controller, Linux Based with 1 door, 2 inputs and 2 outputs, PoE Support, expandable up to 17 doors. (Mercury Part #: LP1501)",null,"No",{"v":4,"d":"4 "},null,{"$f":"ROUND(E3199*F3199,2)","v":{"v":0,"d":"0.00"}}]
[]
[{"v":157,"d":"157 "},"12VDV power supply for card readers / door strikers. Integrated uninterruptable power supply (7 Ah UPS) Two Door Mercury Single Voltage Integrated Power System supporting two AC-MER-CONT-1DR or one AC-MER-CONT-2DR (Mercury hardware sold separately). Includes painted steel enclosure, removable pre drilled back plate, controller standoffs and mounting screws and a 75 watt 12V/6A or 24V/3A power supply-battery charger. The  power supply is pre-wired to eight Class 2, Power Limited (CL2PL) outputs (D8P Board) delivering a regulated independent power connection to Mercury boards and auxiliary equipment. The power supply features dual outputs, form \"€˜C\"€™ fault relay contacts, a fire alarm input and network interface (interface module sold separately) to enable monitoring, reporting and control of the power system from Access Control Manager (ACM) link. Battery space for two 12V, 8Ah batteries must be made available in cabinet (unless using two AC-MER-CONT-1DR). Cabinet size: 12\"€\u009d x 14\" x 4.5\" with door lock, tamper switch and two (2) keys. Weight 14 lb.(LifeSafety Power Part Number: FPO75-D8PE1M)",null,"No",{"v":4,"d":"4 "},null,{"$f":"ROUND(E3201*F3201,2)","v":{"v":0,"d":"0.00"}}]
[]
[{"v":158,"d":"158 "},"Magnetic Door Lock 1200pounds, Break glass and door closer complete with accessories",null,"No",{"v":4,"d":"4 "},null,{"$f":"ROUND(E3203*F3203,2)","v":{"v":0,"d":"0.00"}}]
[]
[{"v":159,"d":"159 "},"Labour for complete door setup",null,"No",{"v":4,"d":"4 "},null,{"$f":"ROUND(E3205*F3205,2)","v":{"v":0,"d":"0.00"}}]
[]
[null,"SOFTWARE"]
[]
[{"v":160,"d":"160 "},"Application Software interface",null,"SUM",{"v":1,"d":"1 "}]
[]
[{"v":161,"d":"161 "},"Plug in for VMS integration",null,"No",{"v":1,"d":"1 "},null,{"$f":"ROUND(E3211*F3211,2)","v":{"v":0,"d":"0.00"}}]
[]
[{"v":162,"d":"162 "},"Babylon Integration License",null,"m",{"v":1,"d":"1 "},null,{"$f":"ROUND(E3213*F3213,2)","v":{"v":0,"d":"0.00"}}]
[]
[null,"CABLING AND CONDUIT"]
[]
[{"v":163,"d":"163 "},"Cat 6 UTP link, including average of 50m run, shuttered RJ45 outlet in plate at terminal end, and patch panel mountd modular jack in rack at switch end",null,"No",{"v":7,"d":"7 "},null,{"$f":"ROUND(E3217*F3217,2)","v":{"v":0,"d":"0.00"}}]
[]
[{"v":164,"d":"164 "},"1.5m Cat 6 UTP fly leads with factory assembled connectors at both ends",null,"m",{"v":7,"d":"7 "},null,{"$f":"ROUND(E3219*F3219,2)","v":{"v":0,"d":"0.00"}}]
[]
[{"v":165,"d":"165 "},"150mm wide dg wire mesh basket mounted vertically in risers on unistrot supports, complete with connectors, bends, offsets, splices, etc",null,"m",{"v":100,"d":"100 "},null,{"$f":"ROUND(E3221*F3221,2)","v":{"v":0,"d":"0.00"}}]
[]
[{"v":166,"d":"166 "},"25mm PVC conduit on surface and chased on wall and make good including all fixings",null,"m",{"v":200,"d":"200 "},null,{"$f":"ROUND(E3223*F3223,2)","v":{"v":0,"d":"0.00"}}]
[]
[{"v":167,"d":"167 "},"Labelling Cat 6 cable",null,"No",{"v":30,"d":"30 "},null,{"$f":"ROUND(E3225*F3225,2)","v":{"v":0,"d":"0.00"}}]
[]
[{"v":168,"d":"168 "},"CAT6 UTP Twisted pair",null,"m",{"v":100,"d":"100 "},null,{"$f":"ROUND(E3227*F3227,2)","v":{"v":0,"d":"0.00"}}]
[]
[{"v":169,"d":"169 "},"Server Cabinets Standing Glass Front & Back Door 42U 600mm X 600mm X 450mm (HWD). Unit must have 4-way fan unit and 10-way PDU",null,"No",{"v":1,"d":"1 "},null,{"$f":"ROUND(E3229*F3229,2)","v":{"v":0,"d":"0.00"}}]
[]
[{"v":170,"d":"170 "},"Fibre Outdoor Drop Cable 150M LC - LC/APC 1Core",null,"No",{"v":10,"d":"10 "},null,{"$f":"ROUND(E3231*F3231,2)","v":{"v":0,"d":"0.00"}}]
[]
[null,"COMMUNICATIONS SYSTEMS"]
[]
[null,"Voice Evacuation/Public Address System (to be linked with Fire panel) and Broadcasting, Audio Visual System"]
[]
[{"v":171,"d":"171 "},"Allow the sum of One Million Rand for Communications Systems. Amount to be paid at the discretion of Project Manager/Engineer and the Employer upon receiving and approving a quotation from Transnet accredited installer.",null,"Item",{"v":1,"d":"1 "},null,{"$f":"ROUND(E3237*F3237,2)","v":{"v":0,"d":"0.00"}}]
[]
[{"v":172,"d":"172 "},"Profit (..........%)",null,"%IT"]
[]
[{"v":173,"d":"173 "},"General attendance (..........%)",null,"%IT"]
[]
[null,"EARTHING AND BONDING AND LIGHTNING PROTECTION"]
[]
[null,"Soil Resistivity Test Allow for the execution of a soil resistivity survey. (This installation must be undertaken by a specialist Sub-contractor).  A Final Earth Resisitance of less than 10 Ohm is required."]
[]
[null,"Electrical Earthing Conductors Supply, deliver to site 1000/600 volt PVC insulated (green/yellow) cables with stranded copper conductors. Install, rack, strap and testing of cables as per specification including clamps, ties and cable numbering system as specified. Note: Cable supports measured elsewhere)"]
[]
[null,"Supply, install, test and commissioning of the Lightning protection of the entire building on all corners of the building and centre of the building as a minimum, complete with all necessary required material, accessories for a complete installation. Contractor to use copper earth spike, aluminium or copper conductors as per specification, and have testing points.  Rates to include all necessary required accessories for a complete installation and issue test results certificate per building. The installation must comply with SANS 10313. Contractor to include rate for scaffolding where required. Further details on specification document. Refer to drawings and specifications documents for details."]
[]
[{"v":174,"d":"174 "},"Operations Building has a steel roof - 52m length X 15m width X 7m height",null,"SUM",{"v":1,"d":"1 "}]
[]
[{"v":175,"d":"175 "},"Substation building has concrete roof - 18m length X 8m width X 3,3m height",null,"SUM",{"v":1,"d":"1 "}]
[]
[{"v":176,"d":"176 "},"Water pump station has a steel structure and steeel roof  - steel structure. Refer to drawing for details.",null,"SUM",{"v":1,"d":"1 "}]
[]
[null,"TESTING AND COMMISSIONING"]
[]
[null,"Test and commission  the complete electrical installation including completion of quality checksheets, Compliance Certificates & test results and submitting them to the Employer's Reprsentative."]
[]
[{"v":177,"d":"177 "},"Cold & Hot Commissioning",null,"No",{"v":1,"d":"1 "},null,{"$f":"ROUND(E3261*F3261,2)","v":{"v":0,"d":"0.00"}}]
[]
[{"v":178,"d":"178 "},"Test and commission  the complete electrical installation including Certificates of Compliance & test results to the Engineer.",null,"SUM",{"v":1,"d":"1 "}]
[]
[{"v":179,"d":"179 "},"Nett price for compliance with the conditions of contract including guarantees, insurance and other overheads",null,"SUM",{"v":1,"d":"1 "}]
[]
[{"v":180,"d":"180 "},"Net amount for site establishment, transport, storage, supervision, quality control, etc. to comply with the conditions as specified",null,"SUM",{"v":1,"d":"1 "}]
[]
[{"v":181,"d":"181 "},"Compliance with the requirements of SANS 10142 and the OHS Act.",null,"SUM",{"v":1,"d":"1 "}]
[]
[null,"GENERATOR SET"]
[]
[null,"Manufacture, deliver to site, install, test and commission of a generator set 400 volts at 50Hz as per specification and single line diagram. The generator shall be open type and installed in the generator room.  Rates to include for steelwork and powder coated, busbars and drilling, busbar connections internal wiring, earthing for the generator set, etc. Refer to attached single line diagram."]
[]
[{"v":182,"d":"182 "},"650kVA (prime), 400V Diesel Engine Alternator Set - open set frame. Refer to specification document for details and submit returnable schedule with this pricing.",null,"SUM",{"v":1,"d":"1 "}]
[]
[{"v":183,"d":"183 "},"Water Trap/Fuel Filter cartridge",null,"SUM",{"v":1,"d":"1 "}]
[]
[{"v":184,"d":"184 "},"New AMF panel as per single line diagram drawing",null,"SUM",{"v":1,"d":"1 "}]
[]
[{"v":185,"d":"185 "},"New Fuel Tank to supply generator with valves and instruments elivated stand",null,"SUM",{"v":1,"d":"1 "}]
[]
[null,"Electrical reticulation"]
[]
[{"v":186,"d":"186 "},"Interconnecting control & power cabling between genset and alternator and AMF panel",null,"SUM",{"v":1,"d":"1 "}]
[]
[{"v":187,"d":"187 "},"Support & protection of exposed cabling between genset & AMF panel",null,"SUM",{"v":1,"d":"1 "}]
[]
[{"v":188,"d":"188 "},"Electronic hooter & red flashing general alarm light mounted on the AMF panel.",null,"SUM",{"v":1,"d":"1 "}]
[]
[{"v":189,"d":"189 "},"Remote alarm indicator panel complete the red indicator lamp and label - GENERATOR FAULT",null,"SUM",{"v":1,"d":"1 "}]
[]
[{"v":190,"d":"190 "},"External emergency stop push button and cabling",null,"SUM",{"v":1,"d":"1 "}]
[]
[{"v":191,"d":"191 "},"Earthing of the generator set",null,"SUM",{"v":1,"d":"1 "}]
[]
[null,"Test and Commissioning"]
[]
[{"v":192,"d":"192 "},"Test & commission on site with load",null,"SUM",{"v":1,"d":"1 "}]
[]
[{"v":193,"d":"193 "},"Resistance testing of earth system",null,"SUM",{"v":1,"d":"1 "}]
[]
[{"v":194,"d":"194 "},"Balancing of the essential loads",null,"SUM",{"v":1,"d":"1 "}]
[]
[{"v":195,"d":"195 "},"Electrical Certification of Compliance",null,"SUM",{"v":1,"d":"1 "}]
[]
[null,"Signage"]
[]
[{"v":196,"d":"196 "},"As per OHS Act - fire & resussitation etc.",null,"SUM",{"v":1,"d":"1 "}]
[]
[{"v":197,"d":"197 "},"Generator \"Manual Start/Test Procedure\"",null,"SUM",{"v":1,"d":"1 "}]
[]
[{"v":198,"d":"198 "},"Caution - This generator will start automatically. Isolate power before working on plant",null,"No",{"v":1,"d":"1 "},null,{"$f":"ROUND(E3313*F3313,2)","v":{"v":0,"d":"0.00"}}]
[]
[{"v":199,"d":"199 "},"Electricity logo on door to AMF panel",null,"No",{"v":1,"d":"1 "},null,{"$f":"ROUND(E3315*F3315,2)","v":{"v":0,"d":"0.00"}}]
[]
[{"v":200,"d":"200 "},"TNPAs ID label of genset & control panel",null,"No",{"v":2,"d":"2 "},null,{"$f":"ROUND(E3317*F3317,2)","v":{"v":0,"d":"0.00"}}]
[]
[{"v":201,"d":"201 "},"Contractors / TNPA details - laminated plastic",null,"No",{"v":1,"d":"1 "},null,{"$f":"ROUND(E3319*F3319,2)","v":{"v":0,"d":"0.00"}}]
[]
[null,"General"]
[]
[{"v":202,"d":"202 "},"Diesel fuel for full tank",null,"SUM",{"v":1,"d":"1 "}]
[]
[{"v":203,"d":"203 "},"Automated pump from the diesel tank to the generator to fill up generator tank when required. Rate to included all necessary accessories required for a full operational pump.",null,"SUM",{"v":1,"d":"1 "}]
[]
[{"v":204,"d":"204 "},"Laminated plastic framed schematic wiring diagram fixed to the inside of the enclosure adjacent the AMF panel",null,"No",{"v":1,"d":"1 "},null,{"$f":"ROUND(E3327*F3327,2)","v":{"v":0,"d":"0.00"}}]
[]
[{"v":205,"d":"205 "},"A4 size log book on chain in metal envelope in door",null,"No",{"v":1,"d":"1 "},null,{"$f":"ROUND(E3329*F3329,2)","v":{"v":0,"d":"0.00"}}]
[]
[{"v":206,"d":"206 "},"Operational training of Employer's staff",null,"SUM",{"v":1,"d":"1 "}]
[]
[{"v":207,"d":"207 "},"Manuals - 3 sets",null,"SUM",{"v":1,"d":"1 "}]
[]
[{"v":208,"d":"208 "},"Drawings",null,"SUM",{"v":1,"d":"1 "}]
[]
[{"v":209,"d":"209 "},"Allow for crane, rigging and installation of the generator.",null,"SUM",{"v":1,"d":"1 "}]
[]
[null,"Service"]
[]
[{"v":210,"d":"210 "},"Inspection every quarter  new fuel filters for 1st year",null,"No",{"v":4,"d":"4 "},null,{"$f":"ROUND(E3341*F3341,2)","v":{"v":0,"d":"0.00"}}]
[]
[{"v":211,"d":"211 "},"Full annual service  new battery for 1st year",null,"No",{"v":1,"d":"1 "},null,{"$f":"ROUND(E3343*F3343,2)","v":{"v":0,"d":"0.00"}}]
[]
[{"v":212,"d":"212 "},"Disconnecting cables on existing generator and re-routing and re-connecting curcuits as per single line diagram and for the administration building. Rates to include re-testing of the generator set, provide diesel for testing.",null,"SUM",{"v":1,"d":"1 "}]
[]
[null,"CARRIED TO FINAL SUMMARY / ,,,",{"$nulls":4},{"$f":"SUM(G2815:G3346)","v":{"v":0,"d":"0.00"}}]
[]
[null,"SECTION 7"]
[]
[null,"BILL NO. 1"]
[]
[null,"HEATING, VENTILATION AND AIR CONDITIONING INSTALLATION"]
[]
[null,"WORK GROUP ALLOCATION"]
[]
[null,"Unless otherwise stated, all items in this Bill will be allocated to the appropriate Work Groups as follows: - Mechanical Services .........................Work Group 170 - Ductwork Installations ........................Work Group 171 - Refrigeration Installations ...................Work Group 172 - Steel Water Pipe Installations .............Work Group 173 - Other general items will be allocated to Work Groups as   indicated in brackets at the ends of headings or   descriptions"]
[]
[null,"PREAMBLES"]
[]
[null,"The clauses under \"Section A: GENERAL\" (clauses A.1 to A.10) on page 2 of the Model Preambles for Trades (2008 edition) as published by the Association of South African Quantity Surveyors shall be deemed to be incorporated in these bills of quantities and no claims arising from brevity of description of items fully described in the said Model Preambles will be entertained"]
[]
[null,"The descriptions of and quantities for the items measured in this trade have been based on the drawing(s?) and specification(s?) as prepared by ?name of Engineer? for this project, and the tenderers are referred to these documents, as separately listed hereunder, and the following \"Supplementary Preambles\", for the full descriptions of these items which are to be read and priced in conjunction with the said documents for the various installations"]
[]
[null,"SUPPLEMENTARY PREAMBLES"]
[]
[null,"Prices:"]
[]
[null,"Unless otherwise stated, the description of each item shall be deemed to include manufacturing, conveying and delivering, unloading, storing, unpacking, hoisting, setting, fitting and fixing in position, cutting, waste, patterns, templets, plant, temporary works, return of packings, establishment charges, profit and other obligations arising out of the conditions of contract  Prices for fans, coil units, major equipment, pumps, etc shall furthermore, allow for any and all electrical connections to the relevant isolators, etc as designed for this purpose"]
[]
[null,"Ductwork:"]
[]
[null,"Descriptions of ducts shall be deemed to include stiffeners, jointing materials, sealants, couplers in the running length and access/inspection panels in accordance with the specification  Descriptions of spigot pipes shall be deemed to include the connection of the spigot pipe to the duct  Where transformation or reducers occur, the larger size ductwork has been measured through the fitting"]
[]
[null,"Dampers:"]
[]
[null,"Descriptions of smoke and fire dampers shall be deemed to include fusible links, sleeves, frames, supports and access openings in ducts"]
[]
[null,"Air diffusion:"]
[]
[null,"Descriptions of air terminals, grilles, louvres and the like shall be deemed to include necks, frames, supports and flexible connections"]
[]
[null,"Fans:"]
[]
[null,"Descriptions of fan assemblies shall be deemed to include supports from the structure, flexible or other connections to ductwork, vibration isolation mountings and airtight inspection doors and the electrical installation up and the connection to the isolator (isolator installed by others)"]
[]
[null,"Sound attenuators:"]
[]
[null,"Descriptions of sound attenuators shall be deemed to include flanged or flexible connections to ducts and supports from the structure"]
[]
[null,"Fan coil units, fan air terminals and fan heaters:"]
[]
[null,"Descriptions of fan coil units, fan air terminals and fan heaters shall be deemed to include connection points for water, air and electrical supply, for air grilles, dust trays, condensate trays and vibration isolation mountings.  Flexible ducts, flexible hose and connecting cables for connecting these units to each other or to water pipes and electrical supply are separately measured"]
[]
[null,"Major equipment:"]
[]
[null,"Descriptions of major equipment such as chillers, air handling units and the like shall be deemed to include connections to water, air and electrical supply and/or discharge points, supports, bearers, vibration insulation mountings, filters, insulation, inspection ladders and gangways, access doors and panels and painting, etc as specified"]
[]
[null,"Piping:"]
[]
[null,"Pipe diameters are nominal internal unless otherwise stated  Where fittings have reducing ends or branches they are described as \"reducing\". In the case of pipes with diameters not exceeding 60mm only the largest end or branch diameter is given.  Should the Contractor wish to use other fittings and bushes or reducers he may do so on the understanding that no claim in this regard will be entertained.  In the case of pipes with diameters exceeding 60mm all diameters are given and no claim for extra bushes, reducers, etc will be entertained"]
[]
[null,"Fixing of pipes:"]
[]
[null,"Unless otherwise stated, descriptions of pipes shall be deemed to include fixing to walls, etc casting in, building in or suspending not exceeding 1m below suspension level"]
[]
[null,"Pump sets:"]
[]
[null,"Descriptions of pumps shall be deemed to include connections to water and electrical supply and/or discharge points, vibration insulation mountings, insulation, drip trays with outlets, pressure gauges, etc"]
[]
[null,"Valves:"]
[]
[null,"Descriptions of valves shall be deemed to include flanged or screwed connections to pipes, reducers, supports, etc"]
[]
[null,"Insulation:"]
[]
[null,"Descriptions of insulation shall be deemed to include priming the pipes with zinc chromate primer before the insulation is applied, painting the insulation when completed and applying vapour barrier where specified"]
[]
[null,"HEATING, VENTILATION AND AIR CONDITIONING INSTALLATION"]
[]
[null,"Supply, install and commission the following HVAC Systems as per specification:"]
[]
[{"v":1,"d":"1 "},"Multiple System Type Mini-Cassette 3.6 kW Cooling (Ceiling Mounted Unit With Panel cover)",null,"No",{"v":1,"d":"1 "},null,{"$f":"ROUND(E3423*F3423,2)","v":{"v":0,"d":"0.00"}}]
[]
[{"v":2,"d":"2 "},"Multiple System Type Mini-Cassette 4.5 kW Cooling (Ceiling Mounted Unit With Panel cover)",null,"No",{"v":2,"d":"2 "},null,{"$f":"ROUND(E3425*F3425,2)","v":{"v":0,"d":"0.00"}}]
[]
[{"v":3,"d":"3 "},"Multiple System Type Mini-Cassette 5.6 kW Cooling (Ceiling Mounted Unit With Panel cover)",null,"No",{"v":1,"d":"1 "},null,{"$f":"ROUND(E3427*F3427,2)","v":{"v":0,"d":"0.00"}}]
[]
[{"v":4,"d":"4 "},"Multiple System Type Mini-Cassette 6.0 kW Cooling (Ceiling Mounted Unit With Panel cover)",null,"No",{"v":1,"d":"1 "},null,{"$f":"ROUND(E3429*F3429,2)","v":{"v":0,"d":"0.00"}}]
[]
[{"v":5,"d":"5 "},"Multiple System Type Outdoor Air Processing Unit - 14 kW Cooling",null,"No",{"v":1,"d":"1 "},null,{"$f":"ROUND(E3431*F3431,2)","v":{"v":0,"d":"0.00"}}]
[]
[{"v":6,"d":"6 "},"Multiple System Type Hide-away Unit - 18 kW Cooling",null,"No",{"v":1,"d":"1 "},null,{"$f":"ROUND(E3433*F3433,2)","v":{"v":0,"d":"0.00"}}]
[]
[{"v":7,"d":"7 "},"Premium wired remote controller",null,"No",{"v":5,"d":"5 "},null,{"$f":"ROUND(E3435*F3435,2)","v":{"v":0,"d":"0.00"}}]
[]
[{"v":8,"d":"8 "},"Gas and Liquid Refrigerant copper piping, refnets joints, insulation and galvanized cable wire baskets with consumables, nitrogen, welding with consumables, refrigerant gas and general consumables.",null,"m",{"v":180,"d":"180 "},null,{"$f":"ROUND(E3437*F3437,2)","v":{"v":0,"d":"0.00"}}]
[]
[{"v":9,"d":"9 "},"22-50mm Dia. PVC condensate drain piping with all associated fittings",null,"m",{"v":50,"d":"50 "},null,{"$f":"ROUND(E3439*F3439,2)","v":{"v":0,"d":"0.00"}}]
[]
[{"v":10,"d":"10 "},"Multiple System, energy efficient condensing module with inverter motor-61.60 & 69.3 kW (Cooling & Heating)",null,"No",{"v":1,"d":"1 "},null,{"$f":"ROUND(E3441*F3441,2)","v":{"v":0,"d":"0.00"}}]
[]
[{"v":11,"d":"11 "},"BACnet gateway module",null,"No",{"v":1,"d":"1 "},null,{"$f":"ROUND(E3443*F3443,2)","v":{"v":0,"d":"0.00"}}]
[]
[null,"Fabricate, Deliver, and Install the following Air-Conditioning Ducting with all Necessary Fittings, and Balance the Air Terminals And Commission as Per Specification:"]
[]
[{"v":12,"d":"12 "},"600 x 300mm Internally lined galvanized steel duct",null,"m",{"v":2,"d":"2 "},null,{"$f":"ROUND(E3447*F3447,2)","v":{"v":0,"d":"0.00"}}]
[]
[{"v":13,"d":"13 "},"400 x 300mm Internally lined galvanized steel duct",null,"m",{"v":3,"d":"3 "},null,{"$f":"ROUND(E3449*F3449,2)","v":{"v":0,"d":"0.00"}}]
[]
[{"v":14,"d":"14 "},"300 x 300mm Internally lined galvanized steel duct",null,"m",{"v":6,"d":"6 "},null,{"$f":"ROUND(E3451*F3451,2)","v":{"v":0,"d":"0.00"}}]
[]
[{"v":15,"d":"15 "},"300 x 300mm Insulated duct end plate",null,"No",{"v":1,"d":"1 "},null,{"$f":"ROUND(E3453*F3453,2)","v":{"v":0,"d":"0.00"}}]
[]
[{"v":16,"d":"16 "},"300mm dia. internally lined galvanized steel duct",null,"m",{"v":4,"d":"4 "},null,{"$f":"ROUND(E3455*F3455,2)","v":{"v":0,"d":"0.00"}}]
[]
[{"v":17,"d":"17 "},"250mm dia. Internally lined galvanized steel duct",null,"m",{"v":15,"d":"15 "},null,{"$f":"ROUND(E3457*F3457,2)","v":{"v":0,"d":"0.00"}}]
[]
[{"v":18,"d":"18 "},"200mm dia. Internally lined galvanized steel duct",null,"m",{"v":6,"d":"6 "},null,{"$f":"ROUND(E3459*F3459,2)","v":{"v":0,"d":"0.00"}}]
[]
[{"v":19,"d":"19 "},"300mm ×˜ Internally lined galvanized steel 90 Deg Bend",null,"No",{"v":1,"d":"1 "},null,{"$f":"ROUND(E3461*F3461,2)","v":{"v":0,"d":"0.00"}}]
[]
[{"v":20,"d":"20 "},"300mm ×˜ Internally lined galvanized steel 45 Deg Bend",null,"No",{"v":2,"d":"2 "},null,{"$f":"ROUND(E3463*F3463,2)","v":{"v":0,"d":"0.00"}}]
[]
[{"v":21,"d":"21 "},"250mm ×˜ Internally lined galvanized steel 90 Deg Bend",null,"No",{"v":4,"d":"4 "},null,{"$f":"ROUND(E3465*F3465,2)","v":{"v":0,"d":"0.00"}}]
[]
[{"v":22,"d":"22 "},"200mm ×˜ Internally lined galvanized steel 90 Deg Bend",null,"No",{"v":1,"d":"1 "},null,{"$f":"ROUND(E3467*F3467,2)","v":{"v":0,"d":"0.00"}}]
[]
[{"v":23,"d":"23 "},"600 x 300mm - Hide-away Unit - internally lined galvanized steel reducer",null,"No",{"v":1,"d":"1 "},null,{"$f":"ROUND(E3469*F3469,2)","v":{"v":0,"d":"0.00"}}]
[]
[{"v":24,"d":"24 "},"300mm Dia - Hide-away Unit - internally lined galvanized steel reducer",null,"No",{"v":1,"d":"1 "},null,{"$f":"ROUND(E3471*F3471,2)","v":{"v":0,"d":"0.00"}}]
[]
[{"v":25,"d":"25 "},"600 x 300mm - 400 x 300mm Internally lined galvanized steel reducer",null,"No",{"v":1,"d":"1 "},null,{"$f":"ROUND(E3473*F3473,2)","v":{"v":0,"d":"0.00"}}]
[]
[{"v":26,"d":"26 "},"400 x 300mm - 300 x 300mm Internally Lined Galvanized Steel Reducer",null,"No",{"v":1,"d":"1 "},null,{"$f":"ROUND(E3475*F3475,2)","v":{"v":0,"d":"0.00"}}]
[]
[{"v":27,"d":"27 "},"300mm dia  - 250mm ×˜ Internally Lined Galvanized Steel Reducer",null,"No",{"v":1,"d":"1 "},null,{"$f":"ROUND(E3477*F3477,2)","v":{"v":0,"d":"0.00"}}]
[]
[{"v":28,"d":"28 "},"250mm dia  - 200mm dia Internally Lined Galvanized Steel Reducer",null,"No",{"v":1,"d":"1 "},null,{"$f":"ROUND(E3479*F3479,2)","v":{"v":0,"d":"0.00"}}]
[]
[{"v":29,"d":"29 "},"300x300 - 250mm dia Internally Lined Galvanized Steel Transformation Piece",null,"No",{"v":2,"d":"2 "},null,{"$f":"ROUND(E3481*F3481,2)","v":{"v":0,"d":"0.00"}}]
[]
[{"v":30,"d":"30 "},"600x300 -250mm dia Internally Lined Galvanized Steel Cross Junction",null,"No",{"v":1,"d":"1 "},null,{"$f":"ROUND(E3483*F3483,2)","v":{"v":0,"d":"0.00"}}]
[]
[{"v":31,"d":"31 "},"400x300 -250mm ×˜ Internally Lined Galvanized Steel Cross Junction",null,"No",{"v":1,"d":"1 "},null,{"$f":"ROUND(E3485*F3485,2)","v":{"v":0,"d":"0.00"}}]
[]
[{"v":32,"d":"32 "},"300x300 - 300x300 - 250mm dia. Internally lined galvanized steel cross junction",null,"No",{"v":1,"d":"1 "},null,{"$f":"ROUND(E3487*F3487,2)","v":{"v":0,"d":"0.00"}}]
[]
[{"v":33,"d":"33 "},"600x300 - 600x300 - 400x300 Internally lined galvanized steel tee junction",null,"No",{"v":1,"d":"1 "},null,{"$f":"ROUND(E3489*F3489,2)","v":{"v":0,"d":"0.00"}}]
[]
[{"v":34,"d":"34 "},"300x300 - 300x300 - 400x300 Internally lined galvanized steel tee junction",null,"No",{"v":1,"d":"1 "},null,{"$f":"ROUND(E3491*F3491,2)","v":{"v":0,"d":"0.00"}}]
[]
[{"v":35,"d":"35 "},"300x300 - 250mm dia. Internally lined galvanized steel tee junction",null,"No",{"v":2,"d":"2 "},null,{"$f":"ROUND(E3493*F3493,2)","v":{"v":0,"d":"0.00"}}]
[]
[{"v":36,"d":"36 "},"300mm ×˜ - 200mm dia. Internally lined galvanized steel tee junction",null,"No",{"v":2,"d":"2 "},null,{"$f":"ROUND(E3495*F3495,2)","v":{"v":0,"d":"0.00"}}]
[]
[{"v":37,"d":"37 "},"250mm dia - 200mm dia Internally lined galvanized steel tee junction",null,"No",{"v":1,"d":"1 "},null,{"$f":"ROUND(E3497*F3497,2)","v":{"v":0,"d":"0.00"}}]
[]
[{"v":38,"d":"38 "},"600x600 Supply Air Diffuser - 250mm dia. neck",null,"No",{"v":6,"d":"6 "},null,{"$f":"ROUND(E3499*F3499,2)","v":{"v":0,"d":"0.00"}}]
[]
[{"v":39,"d":"39 "},"600mm ×˜ Supply Air Diffuser - 250mm dia. neck",null,"No",{"v":4,"d":"4 "},null,{"$f":"ROUND(E3501*F3501,2)","v":{"v":0,"d":"0.00"}}]
[]
[{"v":40,"d":"40 "},"600mm ×˜ Supply Air Diffuser - 200mm dia. neck",null,"No",{"v":4,"d":"4 "},null,{"$f":"ROUND(E3503*F3503,2)","v":{"v":0,"d":"0.00"}}]
[]
[{"v":41,"d":"41 "},"1200 x 600mm Return air grille with filter - 600 x 300 Neck with a 900 x 210 x 600mm return air plenum - to match the hide away unit return air opening",null,"No",{"v":1,"d":"1 "},null,{"$f":"ROUND(E3505*F3505,2)","v":{"v":0,"d":"0.00"}}]
[]
[{"v":42,"d":"42 "},"1000 x 210mm Fresh air aluminium weather louvre with filter - 1000 x 210 x 600mm return air plenum - to match the outdoor air processing unit fresh air opening",null,"No",{"v":1,"d":"1 "},null,{"$f":"ROUND(E3507*F3507,2)","v":{"v":0,"d":"0.00"}}]
[]
[{"v":43,"d":"43 "},"600 x 600mm Fresh air grille with filter - 250mm dia. neck",null,"No",{"v":1,"d":"1 "},null,{"$f":"ROUND(E3509*F3509,2)","v":{"v":0,"d":"0.00"}}]
[]
[{"v":44,"d":"44 "},"250mm dia. Flexible duct",null,"m",{"v":11,"d":"11 "},null,{"$f":"ROUND(E3511*F3511,2)","v":{"v":0,"d":"0.00"}}]
[]
[{"v":45,"d":"45 "},"200mm dia. Flexible duct",null,"m",{"v":4,"d":"4 "},null,{"$f":"ROUND(E3513*F3513,2)","v":{"v":0,"d":"0.00"}}]
[]
[{"v":46,"d":"46 "},"150mm dia. Flexible duct",null,"m",{"v":7,"d":"7 "},null,{"$f":"ROUND(E3515*F3515,2)","v":{"v":0,"d":"0.00"}}]
[]
[{"v":47,"d":"47 "},"150mm dia. Galvanized steel duct",null,"m",{"v":17,"d":"17 "},null,{"$f":"ROUND(E3517*F3517,2)","v":{"v":0,"d":"0.00"}}]
[]
[{"v":48,"d":"48 "},"200mm dia. Galvanized steel duct",null,"m",{"v":11,"d":"11 "},null,{"$f":"ROUND(E3519*F3519,2)","v":{"v":0,"d":"0.00"}}]
[]
[{"v":49,"d":"49 "},"250mm dia. Galvanized steel duct",null,"m",{"v":4,"d":"4 "},null,{"$f":"ROUND(E3521*F3521,2)","v":{"v":0,"d":"0.00"}}]
[]
[{"v":50,"d":"50 "},"300mm dia. Galvanized steel duct",null,"m",{"v":6,"d":"6 "},null,{"$f":"ROUND(E3523*F3523,2)","v":{"v":0,"d":"0.00"}}]
[]
[{"v":51,"d":"51 "},"150mm dia. 90 Deg Bend",null,"No",{"v":3,"d":"3 "},null,{"$f":"ROUND(E3525*F3525,2)","v":{"v":0,"d":"0.00"}}]
[]
[{"v":52,"d":"52 "},"200mm dia. 90 Deg Bend",null,"No",{"v":8,"d":"8 "},null,{"$f":"ROUND(E3527*F3527,2)","v":{"v":0,"d":"0.00"}}]
[]
[{"v":53,"d":"53 "},"300mm dia. 90 Deg Bend",null,"No",{"v":1,"d":"1 "},null,{"$f":"ROUND(E3529*F3529,2)","v":{"v":0,"d":"0.00"}}]
[]
[{"v":54,"d":"54 "},"150mm dia. Equal Tee",null,"No",{"v":2,"d":"2 "},null,{"$f":"ROUND(E3531*F3531,2)","v":{"v":0,"d":"0.00"}}]
[]
[{"v":55,"d":"55 "},"200mm dia. Equal Tee",null,"No",{"v":1,"d":"1 "},null,{"$f":"ROUND(E3533*F3533,2)","v":{"v":0,"d":"0.00"}}]
[]
[{"v":56,"d":"56 "},"200 - 150mm Dia. Reducing Tee",null,"No",{"v":4,"d":"4 "},null,{"$f":"ROUND(E3535*F3535,2)","v":{"v":0,"d":"0.00"}}]
[]
[{"v":57,"d":"57 "},"250mm dia. Equal Tee",null,"No",{"v":1,"d":"1 "},null,{"$f":"ROUND(E3537*F3537,2)","v":{"v":0,"d":"0.00"}}]
[]
[{"v":58,"d":"58 "},"300 -150mm dia. Reducing Tee",null,"No",{"v":2,"d":"2 "},null,{"$f":"ROUND(E3539*F3539,2)","v":{"v":0,"d":"0.00"}}]
[]
[{"v":59,"d":"59 "},"300 -200mm dia. Reducing Tee",null,"No",{"v":2,"d":"2 "},null,{"$f":"ROUND(E3541*F3541,2)","v":{"v":0,"d":"0.00"}}]
[]
[{"v":60,"d":"60 "},"300 -200mm dia. Reducing Cross Junction",null,"No",{"v":2,"d":"2 "},null,{"$f":"ROUND(E3543*F3543,2)","v":{"v":0,"d":"0.00"}}]
[]
[{"v":61,"d":"61 "},"200 - 150mm dia. Reducer",null,"No",{"v":3,"d":"3 "},null,{"$f":"ROUND(E3545*F3545,2)","v":{"v":0,"d":"0.00"}}]
[]
[{"v":62,"d":"62 "},"250 - 200mm dia. Reducer",null,"No",{"v":2,"d":"2 "},null,{"$f":"ROUND(E3547*F3547,2)","v":{"v":0,"d":"0.00"}}]
[]
[{"v":63,"d":"63 "},"300-200mm dia. Reducer",null,"No",{"v":2,"d":"2 "},null,{"$f":"ROUND(E3549*F3549,2)","v":{"v":0,"d":"0.00"}}]
[]
[{"v":64,"d":"64 "},"250mm dia. Flow Balancing Damper",null,"No",{"v":9,"d":"9 "},null,{"$f":"ROUND(E3551*F3551,2)","v":{"v":0,"d":"0.00"}}]
[]
[{"v":65,"d":"65 "},"500 x 500mm Exhaust air weather louvre in A 500 x 500 - 300mm dia. transformation piece",null,"No",{"v":2,"d":"2 "},null,{"$f":"ROUND(E3553*F3553,2)","v":{"v":0,"d":"0.00"}}]
[]
[{"v":66,"d":"66 "},"Fan attenuator",null,"No",{"v":4,"d":"4 "},null,{"$f":"ROUND(E3555*F3555,2)","v":{"v":0,"d":"0.00"}}]
[]
[{"v":67,"d":"67 "},"Axial flow fan @ 335 l/s & 150 Pa",null,"No",{"v":2,"d":"2 "},null,{"$f":"ROUND(E3557*F3557,2)","v":{"v":0,"d":"0.00"}}]
[]
[{"v":68,"d":"68 "},"300 x 300mm Exhaust air weather louvre in A 300 x 300 - 200mm dia. transformation piece",null,"No",{"v":1,"d":"1 "},null,{"$f":"ROUND(E3559*F3559,2)","v":{"v":0,"d":"0.00"}}]
[]
[{"v":69,"d":"69 "},"Fan attenuator",null,"No",{"v":2,"d":"2 "},null,{"$f":"ROUND(E3561*F3561,2)","v":{"v":0,"d":"0.00"}}]
[]
[{"v":70,"d":"70 "},"Axial flow fan @ 86 l/s & 50 Pa",null,"No",{"v":1,"d":"1 "},null,{"$f":"ROUND(E3563*F3563,2)","v":{"v":0,"d":"0.00"}}]
[]
[{"v":71,"d":"71 "},"300 x 300mm Supply air weather louvre in a 300 x 300 - 200mm dia. transformation piece",null,"No",{"v":1,"d":"1 "},null,{"$f":"ROUND(E3565*F3565,2)","v":{"v":0,"d":"0.00"}}]
[]
[{"v":72,"d":"72 "},"Fan attenuator",null,"No",{"v":2,"d":"2 "},null,{"$f":"ROUND(E3567*F3567,2)","v":{"v":0,"d":"0.00"}}]
[]
[{"v":73,"d":"73 "},"Axial flow fan @ 150 l/s & 100 Pa",null,"No",{"v":1,"d":"1 "},null,{"$f":"ROUND(E3569*F3569,2)","v":{"v":0,"d":"0.00"}}]
[]
[{"v":74,"d":"74 "},"600 x 600mm Extract air grille - 200mm ×˜ neck",null,"No",{"v":6,"d":"6 "},null,{"$f":"ROUND(E3571*F3571,2)","v":{"v":0,"d":"0.00"}}]
[]
[{"v":75,"d":"75 "},"350mm dia. Air valve with 150mm dia. neck",null,"No",{"v":11,"d":"11 "},null,{"$f":"ROUND(E3573*F3573,2)","v":{"v":0,"d":"0.00"}}]
[]
[{"v":76,"d":"76 "},"350 x 250mm Door grille",null,"No",{"v":3,"d":"3 "},null,{"$f":"ROUND(E3575*F3575,2)","v":{"v":0,"d":"0.00"}}]
[]
[{"v":77,"d":"77 "},"350mm Aluminium turbine ventilator with extraction rate of 517 l/s @ 15 km/h wind speed",null,"No",{"v":2,"d":"2 "},null,{"$f":"ROUND(E3577*F3577,2)","v":{"v":0,"d":"0.00"}}]
[]
[{"v":78,"d":"78 "},"610mm Aluminium turbine ventilator with extraction rate of 1890 l/s @ 15 km/h wind speed",null,"No",{"v":6,"d":"6 "},null,{"$f":"ROUND(E3579*F3579,2)","v":{"v":0,"d":"0.00"}}]
[]
[null,"BUDGETARY ALLOWANCES"]
[]
[{"v":79,"d":"79 "},"Allow an amount of Two Hundred Thousand for a function room to be added on top of the proposed office space",null,"Item",{"v":1,"d":"1 "},null,{"$f":"ROUND(E3583*F3583,2)","v":{"v":0,"d":"0.00"}}]
[]
[null,"Carried to section summary / …",{"$nulls":4},{"$f":"SUM(G3348:G3584)","v":{"v":0,"d":"0.00"}}]
[]
[null,"SECTION 7"]
[]
[null,"BILL NO. 2"]
[]
[null,"WET SERVICES"]
[]
[null,"WORK GROUP ALLOCATION"]
[]
[null,"Unless otherwise stated, all items in this Bill will be allocated to the appropriate Work Groups as follows: - Mechanical Services .........................Work Group 170 - Ductwork Installations ........................Work Group 171 - Refrigeration Installations ...................Work Group 172 - Steel Water Pipe Installations .............Work Group 173 - Other general items will be allocated to Work Groups as   indicated in brackets at the ends of headings or   descriptions"]
[]
[null,"PREAMBLES"]
[]
[null,"The clauses under \"Section A: GENERAL\" (clauses A.1 to A.10) on page 2 of the Model Preambles for Trades (2008 edition) as published by the Association of South African Quantity Surveyors shall be deemed to be incorporated in these bills of quantities and no claims arising from brevity of description of items fully described in the said Model Preambles will be entertained"]
[]
[null,"The descriptions of and quantities for the items measured in this trade have been based on the drawing(s?) and specification(s?) as prepared by ?name of Engineer? for this project, and the tenderers are referred to these documents, as separately listed hereunder, and the following \"Supplementary Preambles\", for the full descriptions of these items which are to be read and priced in conjunction with the said documents for the various installations"]
[]
[null,"SUPPLEMENTARY PREAMBLES"]
[]
[null,"Prices:"]
[]
[null,"Unless otherwise stated, the description of each item shall be deemed to include manufacturing, conveying and delivering, unloading, storing, unpacking, hoisting, setting, fitting and fixing in position, cutting, waste, patterns, templets, plant, temporary works, return of packings, establishment charges, profit and other obligations arising out of the conditions of contract  Prices for fans, coil units, major equipment, pumps, etc shall furthermore, allow for any and all electrical connections to the relevant isolators, etc as designed for this purpose"]
[]
[null,"Ductwork:"]
[]
[null,"Descriptions of ducts shall be deemed to include stiffeners, jointing materials, sealants, couplers in the running length and access/inspection panels in accordance with the specification  Descriptions of spigot pipes shall be deemed to include the connection of the spigot pipe to the duct  Where transformation or reducers occur, the larger size ductwork has been measured through the fitting"]
[]
[null,"Dampers:"]
[]
[null,"Descriptions of smoke and fire dampers shall be deemed to include fusible links, sleeves, frames, supports and access openings in ducts"]
[]
[null,"Air diffusion:"]
[]
[null,"Descriptions of air terminals, grilles, louvres and the like shall be deemed to include necks, frames, supports and flexible connections"]
[]
[null,"Fans:"]
[]
[null,"Descriptions of fan assemblies shall be deemed to include supports from the structure, flexible or other connections to ductwork, vibration isolation mountings and airtight inspection doors and the electrical installation up and the connection to the isolator (isolator installed by others)"]
[]
[null,"Sound attenuators:"]
[]
[null,"Descriptions of sound attenuators shall be deemed to include flanged or flexible connections to ducts and supports from the structure"]
[]
[null,"Fan coil units, fan air terminals and fan heaters:"]
[]
[null,"Descriptions of fan coil units, fan air terminals and fan heaters shall be deemed to include connection points for water, air and electrical supply, for air grilles, dust trays, condensate trays and vibration isolation mountings.  Flexible ducts, flexible hose and connecting cables for connecting these units to each other or to water pipes and electrical supply are separately measured"]
[]
[null,"Major equipment:"]
[]
[null,"Descriptions of major equipment such as chillers, air handling units and the like shall be deemed to include connections to water, air and electrical supply and/or discharge points, supports, bearers, vibration insulation mountings, filters, insulation, inspection ladders and gangways, access doors and panels and painting, etc as specified"]
[]
[null,"Piping:"]
[]
[null,"Pipe diameters are nominal internal unless otherwise stated  Where fittings have reducing ends or branches they are described as \"reducing\". In the case of pipes with diameters not exceeding 60mm only the largest end or branch diameter is given.  Should the Contractor wish to use other fittings and bushes or reducers he may do so on the understanding that no claim in this regard will be entertained.  In the case of pipes with diameters exceeding 60mm all diameters are given and no claim for extra bushes, reducers, etc will be entertained"]
[]
[null,"Fixing of pipes:"]
[]
[null,"Unless otherwise stated, descriptions of pipes shall be deemed to include fixing to walls, etc casting in, building in or suspending not exceeding 1m below suspension level"]
[]
[null,"Pump sets:"]
[]
[null,"Descriptions of pumps shall be deemed to include connections to water and electrical supply and/or discharge points, vibration insulation mountings, insulation, drip trays with outlets, pressure gauges, etc"]
[]
[null,"Valves:"]
[]
[null,"Descriptions of valves shall be deemed to include flanged or screwed connections to pipes, reducers, supports, etc"]
[]
[null,"Insulation:"]
[]
[null,"Descriptions of insulation shall be deemed to include priming the pipes with zinc chromate primer before the insulation is applied, painting the insulation when completed and applying vapour barrier where specified"]
[]
[null,"WET SERVICES"]
[]
[null,"Class 12 HDPE Piping Laid and Buried Trenches Not Exceeding 800m Deep."]
[]
[{"v":1,"d":"1 "},"40mm dia. HDPE Cl 12 underground water pipe",null,"m",{"v":65,"d":"65 "},null,{"$f":"ROUND(E3661*F3661,2)","v":{"v":0,"d":"0.00"}}]
[]
[null,"Fittings for HDPE Class 12 Piping"]
[]
[{"v":2,"d":"2 "},"40mm dia. 90 Degree Elbow",null,"No",{"v":4,"d":"4 "},null,{"$f":"ROUND(E3665*F3665,2)","v":{"v":0,"d":"0.00"}}]
[]
[{"v":3,"d":"3 "},"40mm dia. 45 Degree Elbow",null,"No",{"v":5,"d":"5 "},null,{"$f":"ROUND(E3667*F3667,2)","v":{"v":0,"d":"0.00"}}]
[]
[{"v":4,"d":"4 "},"110mm - 100mm Adaptor Flange",null,"No",{"v":2,"d":"2 "},null,{"$f":"ROUND(E3669*F3669,2)","v":{"v":0,"d":"0.00"}}]
[]
[{"v":5,"d":"5 "},"40mm ×˜ Isolating valve inside a 400 x 400mm valve chamber",null,"No",{"v":1,"d":"1 "},null,{"$f":"ROUND(E3671*F3671,2)","v":{"v":0,"d":"0.00"}}]
[]
[null,"BLACK MILD STEEL FITTINGS"]
[]
[{"v":6,"d":"6 "},"100mm, 90 Degree threaded elbow flanged connections",null,"No",{"v":2,"d":"2 "},null,{"$f":"ROUND(E3675*F3675,2)","v":{"v":0,"d":"0.00"}}]
[]
[{"v":7,"d":"7 "},"100 NB Isolating valve with flanged connections",null,"No",{"v":2,"d":"2 "},null,{"$f":"ROUND(E3677*F3677,2)","v":{"v":0,"d":"0.00"}}]
[]
[{"v":8,"d":"8 "},"Locally approved 100 NB Municipal Water Meter with flanged connections",null,"No",{"v":1,"d":"1 "},null,{"$f":"ROUND(E3679*F3679,2)","v":{"v":0,"d":"0.00"}}]
[]
[{"v":9,"d":"9 "},"100NB Strainer Flanged Connections With Flanged Connections",null,"No",{"v":1,"d":"1 "},null,{"$f":"ROUND(E3681*F3681,2)","v":{"v":0,"d":"0.00"}}]
[]
[null,"BLACK MILD STEEL PIPING"]
[]
[{"v":10,"d":"10 "},"100mm Pipes With Flanged Connections",null,"m",{"v":2,"d":"2 "},null,{"$f":"ROUND(E3685*F3685,2)","v":{"v":0,"d":"0.00"}}]
[]
[null,"CLASS 1 MEDIUM COPPER PIPES"]
[]
[{"v":11,"d":"11 "},"15mm dia Pipe",null,"m",{"v":72,"d":"72 "},null,{"$f":"ROUND(E3689*F3689,2)","v":{"v":0,"d":"0.00"}}]
[]
[{"v":12,"d":"12 "},"22mm dia Pipe",null,"m",{"v":31,"d":"31 "},null,{"$f":"ROUND(E3691*F3691,2)","v":{"v":0,"d":"0.00"}}]
[]
[{"v":13,"d":"13 "},"28mm dia Pipe",null,"m",{"v":10,"d":"10 "},null,{"$f":"ROUND(E3693*F3693,2)","v":{"v":0,"d":"0.00"}}]
[]
[{"v":14,"d":"14 "},"35mm dia Pipe",null,"m",{"v":20,"d":"20 "},null,{"$f":"ROUND(E3695*F3695,2)","v":{"v":0,"d":"0.00"}}]
[]
[{"v":15,"d":"15 "},"42mm dia Pipe",null,"m",{"v":40,"d":"40 "},null,{"$f":"ROUND(E3697*F3697,2)","v":{"v":0,"d":"0.00"}}]
[]
[null,"Capillary Tube Fittings With Soldered Joints"]
[]
[{"v":16,"d":"16 "},"15mm dia Elbow",null,"No",{"v":22,"d":"22 "},null,{"$f":"ROUND(E3701*F3701,2)","v":{"v":0,"d":"0.00"}}]
[]
[{"v":17,"d":"17 "},"22mm dia Elbow",null,"No",{"v":6,"d":"6 "},null,{"$f":"ROUND(E3703*F3703,2)","v":{"v":0,"d":"0.00"}}]
[]
[{"v":18,"d":"18 "},"28mm dia Elbow",null,"No",{"v":4,"d":"4 "},null,{"$f":"ROUND(E3705*F3705,2)","v":{"v":0,"d":"0.00"}}]
[]
[{"v":19,"d":"19 "},"35mm dia Elbow",null,"No",{"v":2,"d":"2 "},null,{"$f":"ROUND(E3707*F3707,2)","v":{"v":0,"d":"0.00"}}]
[]
[{"v":20,"d":"20 "},"42mm dia Elbow",null,"No",{"v":6,"d":"6 "},null,{"$f":"ROUND(E3709*F3709,2)","v":{"v":0,"d":"0.00"}}]
[]
[{"v":21,"d":"21 "},"22mm dia Equal Tee",null,"No",{"v":13,"d":"13 "},null,{"$f":"ROUND(E3711*F3711,2)","v":{"v":0,"d":"0.00"}}]
[]
[{"v":22,"d":"22 "},"28mm dia Equal Tee",null,"No",{"v":4,"d":"4 "},null,{"$f":"ROUND(E3713*F3713,2)","v":{"v":0,"d":"0.00"}}]
[]
[{"v":23,"d":"23 "},"35mm dia Equal Tee",null,"No",{"v":12,"d":"12 "},null,{"$f":"ROUND(E3715*F3715,2)","v":{"v":0,"d":"0.00"}}]
[]
[{"v":24,"d":"24 "},"42mm dia Equal Tee",null,"No",{"v":7,"d":"7 "},null,{"$f":"ROUND(E3717*F3717,2)","v":{"v":0,"d":"0.00"}}]
[]
[{"v":25,"d":"25 "},"22-15  mm dia Reducer",null,"No",{"v":10,"d":"10 "},null,{"$f":"ROUND(E3719*F3719,2)","v":{"v":0,"d":"0.00"}}]
[]
[{"v":26,"d":"26 "},"28-15  mm dia Reducer",null,"No",{"v":3,"d":"3 "},null,{"$f":"ROUND(E3721*F3721,2)","v":{"v":0,"d":"0.00"}}]
[]
[{"v":27,"d":"27 "},"28-22  mm dia Reducer",null,"No",{"v":3,"d":"3 "},null,{"$f":"ROUND(E3723*F3723,2)","v":{"v":0,"d":"0.00"}}]
[]
[{"v":28,"d":"28 "},"35-15  mm dia Reducer",null,"No",{"v":6,"d":"6 "},null,{"$f":"ROUND(E3725*F3725,2)","v":{"v":0,"d":"0.00"}}]
[]
[{"v":29,"d":"29 "},"35-22  mm dia Reducer",null,"No",{"v":3,"d":"3 "},null,{"$f":"ROUND(E3727*F3727,2)","v":{"v":0,"d":"0.00"}}]
[]
[{"v":30,"d":"30 "},"35-28  mm dia Reducer",null,"No",{"v":2,"d":"2 "},null,{"$f":"ROUND(E3729*F3729,2)","v":{"v":0,"d":"0.00"}}]
[]
[{"v":31,"d":"31 "},"42-15  mm dia Reducer",null,"No",{"v":2,"d":"2 "},null,{"$f":"ROUND(E3731*F3731,2)","v":{"v":0,"d":"0.00"}}]
[]
[{"v":32,"d":"32 "},"42-22  mm dia Reducer",null,"No",{"v":2,"d":"2 "},null,{"$f":"ROUND(E3733*F3733,2)","v":{"v":0,"d":"0.00"}}]
[]
[{"v":33,"d":"33 "},"42-35  mm dia Reducer",null,"No",{"v":2,"d":"2 "},null,{"$f":"ROUND(E3735*F3735,2)","v":{"v":0,"d":"0.00"}}]
[]
[null,"Brass Compression Fittings And Valves"]
[]
[{"v":34,"d":"34 "},"15mm dia Elbow",null,"No",{"v":31,"d":"31 "},null,{"$f":"ROUND(E3739*F3739,2)","v":{"v":0,"d":"0.00"}}]
[]
[{"v":35,"d":"35 "},"22mm dia Isolation Valve",null,"No",{"v":5,"d":"5 "},null,{"$f":"ROUND(E3741*F3741,2)","v":{"v":0,"d":"0.00"}}]
[]
[{"v":36,"d":"36 "},"28mm dia Isolation Valve",null,"No",{"v":2,"d":"2 "},null,{"$f":"ROUND(E3743*F3743,2)","v":{"v":0,"d":"0.00"}}]
[]
[{"v":37,"d":"37 "},"35mm dia Isolation Valve",null,"No",{"v":3,"d":"3 "},null,{"$f":"ROUND(E3745*F3745,2)","v":{"v":0,"d":"0.00"}}]
[]
[{"v":38,"d":"38 "},"35mm dia Strainer",null,"No",{"v":2,"d":"2 "},null,{"$f":"ROUND(E3747*F3747,2)","v":{"v":0,"d":"0.00"}}]
[]
[null,"Heavy brown paper loosely wrapped around pipe as sheath for expansion."]
[]
[{"v":39,"d":"39 "},"15mm dia",null,"m",{"v":60,"d":"60 "},null,{"$f":"ROUND(E3751*F3751,2)","v":{"v":0,"d":"0.00"}}]
[]
[null,"Pipe Hangers - Anchor, Treaded Rod & Hanger"]
[]
[{"v":40,"d":"40 "},"15mm dia",null,"No",{"v":15,"d":"15 "},null,{"$f":"ROUND(E3755*F3755,2)","v":{"v":0,"d":"0.00"}}]
[]
[{"v":41,"d":"41 "},"22mm dia",null,"No",{"v":15,"d":"15 "},null,{"$f":"ROUND(E3757*F3757,2)","v":{"v":0,"d":"0.00"}}]
[]
[{"v":42,"d":"42 "},"28mm dia",null,"No",{"v":5,"d":"5 "},null,{"$f":"ROUND(E3759*F3759,2)","v":{"v":0,"d":"0.00"}}]
[]
[{"v":43,"d":"43 "},"35mm dia",null,"No",{"v":10,"d":"10 "},null,{"$f":"ROUND(E3761*F3761,2)","v":{"v":0,"d":"0.00"}}]
[]
[{"v":44,"d":"44 "},"42mm dia",null,"No",{"v":20,"d":"20 "},null,{"$f":"ROUND(E3763*F3763,2)","v":{"v":0,"d":"0.00"}}]
[]
[null,"HOT WATER INSTALLATION"]
[]
[null,"Supply, Install, and Commission The Following Hot Water System Complete with all Auxiliary Fittings As Per Specification"]
[]
[{"v":45,"d":"45 "},"5.5 kW Heat Pump With all field wiring and fittings",null,"No",{"v":1,"d":"1 "},null,{"$f":"ROUND(E3769*F3769,2)","v":{"v":0,"d":"0.00"}}]
[]
[{"v":46,"d":"46 "},"250 Liter Electric Geyser Supplied and Installed with all Valves and required Piping as per Manufacture's Specifications.",null,"No",{"v":1,"d":"1 "},null,{"$f":"ROUND(E3771*F3771,2)","v":{"v":0,"d":"0.00"}}]
[]
[{"v":47,"d":"47 "},"Hot water circulation system with all relevant pumps, piping and valves.",null,"No",{"v":1,"d":"1 "},null,{"$f":"ROUND(E3773*F3773,2)","v":{"v":0,"d":"0.00"}}]
[]
[null,"CLASS 1 MEDIUM COPPER PIPES"]
[]
[{"v":48,"d":"48 "},"15mm dia Pipe",null,"m",{"v":36,"d":"36 "},null,{"$f":"ROUND(E3777*F3777,2)","v":{"v":0,"d":"0.00"}}]
[]
[{"v":49,"d":"49 "},"22mm dia Pipe",null,"m",{"v":31,"d":"31 "},null,{"$f":"ROUND(E3779*F3779,2)","v":{"v":0,"d":"0.00"}}]
[]
[{"v":50,"d":"50 "},"28mm dia Pipe",null,"m",{"v":21,"d":"21 "},null,{"$f":"ROUND(E3781*F3781,2)","v":{"v":0,"d":"0.00"}}]
[]
[{"v":51,"d":"51 "},"35mm dia Pipe",null,"m",{"v":67,"d":"67 "},null,{"$f":"ROUND(E3783*F3783,2)","v":{"v":0,"d":"0.00"}}]
[]
[null,"Capillary Tube Fittings With Soldered Joints"]
[]
[{"v":52,"d":"52 "},"15mm dia Elbow",null,"No",{"v":12,"d":"12 "},null,{"$f":"ROUND(E3787*F3787,2)","v":{"v":0,"d":"0.00"}}]
[]
[{"v":53,"d":"53 "},"22mm dia Elbow",null,"No",{"v":6,"d":"6 "},null,{"$f":"ROUND(E3789*F3789,2)","v":{"v":0,"d":"0.00"}}]
[]
[{"v":54,"d":"54 "},"28mm dia Elbow",null,"No",{"v":15,"d":"15 "},null,{"$f":"ROUND(E3791*F3791,2)","v":{"v":0,"d":"0.00"}}]
[]
[{"v":55,"d":"55 "},"35mm dia Elbow",null,"No",{"v":5,"d":"5 "},null,{"$f":"ROUND(E3793*F3793,2)","v":{"v":0,"d":"0.00"}}]
[]
[{"v":56,"d":"56 "},"22mm dia Equal Tee",null,"No",{"v":6,"d":"6 "},null,{"$f":"ROUND(E3795*F3795,2)","v":{"v":0,"d":"0.00"}}]
[]
[{"v":57,"d":"57 "},"28mm dia Equal Tee",null,"No",{"v":6,"d":"6 "},null,{"$f":"ROUND(E3797*F3797,2)","v":{"v":0,"d":"0.00"}}]
[]
[{"v":58,"d":"58 "},"35mm dia Equal Tee",null,"No",{"v":4,"d":"4 "},null,{"$f":"ROUND(E3799*F3799,2)","v":{"v":0,"d":"0.00"}}]
[]
[{"v":59,"d":"59 "},"22-15  mm dia Reducer",null,"No",{"v":6,"d":"6 "},null,{"$f":"ROUND(E3801*F3801,2)","v":{"v":0,"d":"0.00"}}]
[]
[{"v":60,"d":"60 "},"28-15  mm dia Reducer",null,"No",{"v":5,"d":"5 "},null,{"$f":"ROUND(E3803*F3803,2)","v":{"v":0,"d":"0.00"}}]
[]
[{"v":61,"d":"61 "},"28-22  mm dia Reducer",null,"No",{"v":1,"d":"1 "},null,{"$f":"ROUND(E3805*F3805,2)","v":{"v":0,"d":"0.00"}}]
[]
[{"v":62,"d":"62 "},"35-15  mm dia Reducer",null,"No",{"v":4,"d":"4 "},null,{"$f":"ROUND(E3807*F3807,2)","v":{"v":0,"d":"0.00"}}]
[]
[{"v":63,"d":"63 "},"35-22  mm dia Reducer",null,"No",{"v":1,"d":"1 "},null,{"$f":"ROUND(E3809*F3809,2)","v":{"v":0,"d":"0.00"}}]
[]
[{"v":64,"d":"64 "},"35-28  mm dia Reducer",null,"No",{"v":1,"d":"1 "},null,{"$f":"ROUND(E3811*F3811,2)","v":{"v":0,"d":"0.00"}}]
[]
[null,"Brass Compression Fittings And Valves"]
[]
[{"v":65,"d":"65 "},"22mm dia Isolation Valve",null,"No",{"v":1,"d":"1 "},null,{"$f":"ROUND(E3815*F3815,2)","v":{"v":0,"d":"0.00"}}]
[]
[{"v":66,"d":"66 "},"35mm dia Isolation Valve",null,"No",{"v":1,"d":"1 "},null,{"$f":"ROUND(E3817*F3817,2)","v":{"v":0,"d":"0.00"}}]
[]
[null,"Heavy brown paper loosely wrapped around pipe as sheath for expansion."]
[]
[{"v":67,"d":"67 "},"15mm dia",null,"m",{"v":30,"d":"30 "},null,{"$f":"ROUND(E3821*F3821,2)","v":{"v":0,"d":"0.00"}}]
[]
[null,"Pipe Hangers - Anchor, Treaded Rod & Hanger"]
[]
[{"v":68,"d":"68 "},"15mm dia",null,"No",{"v":6,"d":"6 "},null,{"$f":"ROUND(E3825*F3825,2)","v":{"v":0,"d":"0.00"}}]
[]
[{"v":69,"d":"69 "},"22mm dia",null,"No",{"v":15,"d":"15 "},null,{"$f":"ROUND(E3827*F3827,2)","v":{"v":0,"d":"0.00"}}]
[]
[{"v":70,"d":"70 "},"28mm dia",null,"No",{"v":10,"d":"10 "},null,{"$f":"ROUND(E3829*F3829,2)","v":{"v":0,"d":"0.00"}}]
[]
[{"v":71,"d":"71 "},"35mm dia",null,"No",{"v":30,"d":"30 "},null,{"$f":"ROUND(E3831*F3831,2)","v":{"v":0,"d":"0.00"}}]
[]
[null,"Lagging Wrapped Around Pipe"]
[]
[{"v":72,"d":"72 "},"15mm dia",null,"m",{"v":10,"d":"10 "},null,{"$f":"ROUND(E3835*F3835,2)","v":{"v":0,"d":"0.00"}}]
[]
[{"v":73,"d":"73 "},"22mm dia",null,"m",{"v":31,"d":"31 "},null,{"$f":"ROUND(E3837*F3837,2)","v":{"v":0,"d":"0.00"}}]
[]
[{"v":74,"d":"74 "},"35mm dia",null,"m",{"v":67,"d":"67 "},null,{"$f":"ROUND(E3839*F3839,2)","v":{"v":0,"d":"0.00"}}]
[]
[null,"WASTE WATER DRAINAGE"]
[]
[null,"Class 34 uPVC PIPES"]
[]
[null,"Sewer and drainage pipes and fittings shall be through Solid wall Class 34 uPVC socketed soil piping in according to SABS 791, jointed and sealed with butyl rubber rings Soil, waste and vent pipes and fittings shall be according to SABS 967 and solvent jointed  Cold water supply pressure pipes and fittings shall be according to SABS 966 and jointed by means of the \"Lying\" type jointing system  Pipes shall be fixed and jointed according to SABS 0112"]
[]
[{"v":75,"d":"75 "},"50mm dia Pipe",null,"m",{"v":40,"d":"40 "},null,{"$f":"ROUND(E3847*F3847,2)","v":{"v":0,"d":"0.00"}}]
[]
[{"v":76,"d":"76 "},"110mm dia Pipe",null,"m",{"v":30,"d":"30 "},null,{"$f":"ROUND(E3849*F3849,2)","v":{"v":0,"d":"0.00"}}]
[]
[{"v":77,"d":"77 "},"160mm dia Pipe",null,"m",{"v":40,"d":"40 "},null,{"$f":"ROUND(E3851*F3851,2)","v":{"v":0,"d":"0.00"}}]
[]
[null,"Class 34 uPVC FITTINGS"]
[]
[{"v":78,"d":"78 "},"50mm dia 90 Deg Bend",null,"No",{"v":21,"d":"21 "},null,{"$f":"ROUND(E3855*F3855,2)","v":{"v":0,"d":"0.00"}}]
[]
[{"v":79,"d":"79 "},"110mm dia 90 Deg Bend",null,"No",{"v":8,"d":"8 "},null,{"$f":"ROUND(E3857*F3857,2)","v":{"v":0,"d":"0.00"}}]
[]
[{"v":80,"d":"80 "},"110mm dia 90 Deg Access Bend",null,"No",{"v":6,"d":"6 "},null,{"$f":"ROUND(E3859*F3859,2)","v":{"v":0,"d":"0.00"}}]
[]
[{"v":81,"d":"81 "},"160mm dia 90 Access Deg Bend",null,"No",{"v":5,"d":"5 "},null,{"$f":"ROUND(E3861*F3861,2)","v":{"v":0,"d":"0.00"}}]
[]
[{"v":82,"d":"82 "},"50mm dia 45 90 Deg Bend",null,"No",{"v":13,"d":"13 "},null,{"$f":"ROUND(E3863*F3863,2)","v":{"v":0,"d":"0.00"}}]
[]
[{"v":83,"d":"83 "},"110mm dia 45 Deg Bend",null,"No",{"v":4,"d":"4 "},null,{"$f":"ROUND(E3865*F3865,2)","v":{"v":0,"d":"0.00"}}]
[]
[{"v":84,"d":"84 "},"160mm dia 45 Deg Bend",null,"No",{"v":4,"d":"4 "},null,{"$f":"ROUND(E3867*F3867,2)","v":{"v":0,"d":"0.00"}}]
[]
[{"v":85,"d":"85 "},"110mm dia Pan connector",null,"No",{"v":6,"d":"6 "},null,{"$f":"ROUND(E3869*F3869,2)","v":{"v":0,"d":"0.00"}}]
[]
[{"v":86,"d":"86 "},"50mm dia Equal 1cess junction",null,"No",{"v":15,"d":"15 "},null,{"$f":"ROUND(E3871*F3871,2)","v":{"v":0,"d":"0.00"}}]
[]
[{"v":87,"d":"87 "},"110mm dia - 50mm ×˜ junction",null,"No",{"v":7,"d":"7 "},null,{"$f":"ROUND(E3873*F3873,2)","v":{"v":0,"d":"0.00"}}]
[]
[{"v":88,"d":"88 "},"110mm dia Equal Access junction",null,"No",{"v":2,"d":"2 "},null,{"$f":"ROUND(E3875*F3875,2)","v":{"v":0,"d":"0.00"}}]
[]
[{"v":89,"d":"89 "},"160mm dia - 50mm ×˜ junction",null,"No",{"v":10,"d":"10 "},null,{"$f":"ROUND(E3877*F3877,2)","v":{"v":0,"d":"0.00"}}]
[]
[{"v":90,"d":"90 "},"160mm dia - 110mm ×˜ junction",null,"No",{"v":9,"d":"9 "},null,{"$f":"ROUND(E3879*F3879,2)","v":{"v":0,"d":"0.00"}}]
[]
[{"v":91,"d":"91 "},"160mm dia Equal Access junction",null,"No",{"v":2,"d":"2 "},null,{"$f":"ROUND(E3881*F3881,2)","v":{"v":0,"d":"0.00"}}]
[]
[null,"Pipe Hangers - Anchor, Treaded Rod & Hilti Hanger"]
[]
[{"v":92,"d":"92 "},"50mm dia",null,"No",{"v":14,"d":"14 "},null,{"$f":"ROUND(E3885*F3885,2)","v":{"v":0,"d":"0.00"}}]
[]
[{"v":93,"d":"93 "},"110mm dia",null,"No",{"v":2,"d":"2 "},null,{"$f":"ROUND(E3887*F3887,2)","v":{"v":0,"d":"0.00"}}]
[]
[{"v":94,"d":"94 "},"160mm dia",null,"No",{"v":1,"d":"1 "},null,{"$f":"ROUND(E3889*F3889,2)","v":{"v":0,"d":"0.00"}}]
[]
[null,"Carried to section summary / …",{"$nulls":4},{"$f":"SUM(G3586:G3890)","v":{"v":0,"d":"0.00"}}]
[]
[null,"SECTION 7"]
[]
[null,"BILL NO. 3"]
[]
[null,"FIRE PROTECTION"]
[]
[null,"WORK GROUP ALLOCATION"]
[]
[null,"Unless otherwise stated, all items in this Bill will be allocated to the appropriate Work Groups as follows: - Mechanical Services .........................Work Group 170 - Ductwork Installations ........................Work Group 171 - Refrigeration Installations ...................Work Group 172 - Steel Water Pipe Installations .............Work Group 173 - Other general items will be allocated to Work Groups as   indicated in brackets at the ends of headings or   descriptions"]
[]
[null,"PREAMBLES"]
[]
[null,"The clauses under \"Section A: GENERAL\" (clauses A.1 to A.10) on page 2 of the Model Preambles for Trades (2008 edition) as published by the Association of South African Quantity Surveyors shall be deemed to be incorporated in these bills of quantities and no claims arising from brevity of description of items fully described in the said Model Preambles will be entertained"]
[]
[null,"The descriptions of and quantities for the items measured in this trade have been based on the drawing(s?) and specification(s?) as prepared by ?name of Engineer? for this project, and the tenderers are referred to these documents, as separately listed hereunder, and the following \"Supplementary Preambles\", for the full descriptions of these items which are to be read and priced in conjunction with the said documents for the various installations"]
[]
[null,"SUPPLEMENTARY PREAMBLES"]
[]
[null,"Prices:"]
[]
[null,"Unless otherwise stated, the description of each item shall be deemed to include manufacturing, conveying and delivering, unloading, storing, unpacking, hoisting, setting, fitting and fixing in position, cutting, waste, patterns, templets, plant, temporary works, return of packings, establishment charges, profit and other obligations arising out of the conditions of contract  Prices for fans, coil units, major equipment, pumps, etc shall furthermore, allow for any and all electrical connections to the relevant isolators, etc as designed for this purpose"]
[]
[null,"Ductwork:"]
[]
[null,"Descriptions of ducts shall be deemed to include stiffeners, jointing materials, sealants, couplers in the running length and access/inspection panels in accordance with the specification  Descriptions of spigot pipes shall be deemed to include the connection of the spigot pipe to the duct  Where transformation or reducers occur, the larger size ductwork has been measured through the fitting"]
[]
[null,"Dampers:"]
[]
[null,"Descriptions of smoke and fire dampers shall be deemed to include fusible links, sleeves, frames, supports and access openings in ducts"]
[]
[null,"Air diffusion:"]
[]
[null,"Descriptions of air terminals, grilles, louvres and the like shall be deemed to include necks, frames, supports and flexible connections"]
[]
[null,"Fans:"]
[]
[null,"Descriptions of fan assemblies shall be deemed to include supports from the structure, flexible or other connections to ductwork, vibration isolation mountings and airtight inspection doors and the electrical installation up and the connection to the isolator (isolator installed by others)"]
[]
[null,"Sound attenuators:"]
[]
[null,"Descriptions of sound attenuators shall be deemed to include flanged or flexible connections to ducts and supports from the structure"]
[]
[null,"Fan coil units, fan air terminals and fan heaters:"]
[]
[null,"Descriptions of fan coil units, fan air terminals and fan heaters shall be deemed to include connection points for water, air and electrical supply, for air grilles, dust trays, condensate trays and vibration isolation mountings.  Flexible ducts, flexible hose and connecting cables for connecting these units to each other or to water pipes and electrical supply are separately measured"]
[]
[null,"Major equipment:"]
[]
[null,"Descriptions of major equipment such as chillers, air handling units and the like shall be deemed to include connections to water, air and electrical supply and/or discharge points, supports, bearers, vibration insulation mountings, filters, insulation, inspection ladders and gangways, access doors and panels and painting, etc as specified"]
[]
[null,"Piping:"]
[]
[null,"Pipe diameters are nominal internal unless otherwise stated  Where fittings have reducing ends or branches they are described as \"reducing\". In the case of pipes with diameters not exceeding 60mm only the largest end or branch diameter is given.  Should the Contractor wish to use other fittings and bushes or reducers he may do so on the understanding that no claim in this regard will be entertained.  In the case of pipes with diameters exceeding 60mm all diameters are given and no claim for extra bushes, reducers, etc will be entertained"]
[]
[null,"Fixing of pipes:"]
[]
[null,"Unless otherwise stated, descriptions of pipes shall be deemed to include fixing to walls, etc casting in, building in or suspending not exceeding 1m below suspension level"]
[]
[null,"Pump sets:"]
[]
[null,"Descriptions of pumps shall be deemed to include connections to water and electrical supply and/or discharge points, vibration insulation mountings, insulation, drip trays with outlets, pressure gauges, etc"]
[]
[null,"Valves:"]
[]
[null,"Descriptions of valves shall be deemed to include flanged or screwed connections to pipes, reducers, supports, etc"]
[]
[null,"Insulation:"]
[]
[null,"Descriptions of insulation shall be deemed to include priming the pipes with zinc chromate primer before the insulation is applied, painting the insulation when completed and applying vapour barrier where specified"]
[]
[null,"FIRE PROTECTION"]
[]
[null,"Supply, Install, and Commission the Following Fire Protection Systems Complete With all Auxiliary fittings as per Specification:"]
[]
[null,"CLASS 16 HDPE PIPING & FITTINGS"]
[]
[{"v":1,"d":"1 "},"75mm Pipe laid and including trenches not exceeding 800m deep.",null,"m",{"v":2,"d":"2 "},null,{"$f":"ROUND(E3969*F3969,2)","v":{"v":0,"d":"0.00"}}]
[]
[{"v":2,"d":"2 "},"110mm Pipe laid and including trenches not exceeding 800m deep.",null,"m",{"v":99,"d":"99 "},null,{"$f":"ROUND(E3971*F3971,2)","v":{"v":0,"d":"0.00"}}]
[]
[{"v":3,"d":"3 "},"110mm - 100mm Adaptor Flange",null,"No",{"v":4,"d":"4 "},null,{"$f":"ROUND(E3973*F3973,2)","v":{"v":0,"d":"0.00"}}]
[]
[{"v":4,"d":"4 "},"75mm - 80mm Adaptor Flange",null,"No",{"v":2,"d":"2 "},null,{"$f":"ROUND(E3975*F3975,2)","v":{"v":0,"d":"0.00"}}]
[]
[{"v":5,"d":"5 "},"110 - 40mm Tee Joint",null,"No",{"v":1,"d":"1 "},null,{"$f":"ROUND(E3977*F3977,2)","v":{"v":0,"d":"0.00"}}]
[]
[{"v":6,"d":"6 "},"110 - 75mm Tee Joint",null,"No",{"v":2,"d":"2 "},null,{"$f":"ROUND(E3979*F3979,2)","v":{"v":0,"d":"0.00"}}]
[]
[{"v":7,"d":"7 "},"110mm Tee Joint",null,"No",{"v":1,"d":"1 "},null,{"$f":"ROUND(E3981*F3981,2)","v":{"v":0,"d":"0.00"}}]
[]
[{"v":8,"d":"8 "},"110mm 90 Deg Bend",null,"No",{"v":4,"d":"4 "},null,{"$f":"ROUND(E3983*F3983,2)","v":{"v":0,"d":"0.00"}}]
[]
[{"v":9,"d":"9 "},"110mm 45 Deg Bend",null,"No",{"v":8,"d":"8 "},null,{"$f":"ROUND(E3985*F3985,2)","v":{"v":0,"d":"0.00"}}]
[]
[{"v":10,"d":"10 "},"110mm Isolating valve inside a 400 x 400mm valve chamber",null,"No",{"v":2,"d":"2 "},null,{"$f":"ROUND(E3987*F3987,2)","v":{"v":0,"d":"0.00"}}]
[]
[{"v":11,"d":"11 "},"110mm None return valve",null,"No",{"v":1,"d":"1 "},null,{"$f":"ROUND(E3989*F3989,2)","v":{"v":0,"d":"0.00"}}]
[]
[null,"BLACK MILD STEEL FITTINGS"]
[]
[{"v":12,"d":"12 "},"100mm, 90 Degree Threaded Elbow",null,"No",{"v":18,"d":"18 "},null,{"$f":"ROUND(E3993*F3993,2)","v":{"v":0,"d":"0.00"}}]
[]
[{"v":13,"d":"13 "},"100mm, 45 Degree Threaded Elbow",null,"No",{"v":3,"d":"3 "},null,{"$f":"ROUND(E3995*F3995,2)","v":{"v":0,"d":"0.00"}}]
[]
[{"v":14,"d":"14 "},"80mm, 90 Degree Threaded Elbow",null,"No",{"v":6,"d":"6 "},null,{"$f":"ROUND(E3997*F3997,2)","v":{"v":0,"d":"0.00"}}]
[]
[{"v":15,"d":"15 "},"25mm, 90 Degree Threaded Elbow",null,"No",{"v":9,"d":"9 "},null,{"$f":"ROUND(E3999*F3999,2)","v":{"v":0,"d":"0.00"}}]
[]
[{"v":16,"d":"16 "},"100 - 25mm, Threaded Reducing Tee",null,"No",{"v":3,"d":"3 "},null,{"$f":"ROUND(E4001*F4001,2)","v":{"v":0,"d":"0.00"}}]
[]
[{"v":17,"d":"17 "},"100 - 80mm, Threaded Reducing Tee",null,"No",{"v":1,"d":"1 "},null,{"$f":"ROUND(E4003*F4003,2)","v":{"v":0,"d":"0.00"}}]
[]
[{"v":18,"d":"18 "},"80mm Threaded Equal Tee",null,"No",{"v":1,"d":"1 "},null,{"$f":"ROUND(E4005*F4005,2)","v":{"v":0,"d":"0.00"}}]
[]
[{"v":19,"d":"19 "},"80 - 25mm, Threaded Reducing Tee",null,"No",{"v":1,"d":"1 "},null,{"$f":"ROUND(E4007*F4007,2)","v":{"v":0,"d":"0.00"}}]
[]
[null,"BLACK MILD STEEL PIPING"]
[]
[{"v":20,"d":"20 "},"100mm Pipes",null,"m",{"v":100,"d":"100 "},null,{"$f":"ROUND(E4011*F4011,2)","v":{"v":0,"d":"0.00"}}]
[]
[{"v":21,"d":"21 "},"80mm Pipes",null,"m",{"v":20,"d":"20 "},null,{"$f":"ROUND(E4013*F4013,2)","v":{"v":0,"d":"0.00"}}]
[]
[{"v":22,"d":"22 "},"25mm Pipes",null,"m",{"v":18,"d":"18 "},null,{"$f":"ROUND(E4015*F4015,2)","v":{"v":0,"d":"0.00"}}]
[]
[null,"FIRE APPLIANCES"]
[]
[{"v":23,"d":"23 "},"Fire hose reel complete with 30m rubber hose, chromium plated stopcock, shut off nozzle and wall bracket, bolted to wall",null,"No",{"v":4,"d":"4 "},null,{"$f":"ROUND(E4019*F4019,2)","v":{"v":0,"d":"0.00"}}]
[]
[{"v":24,"d":"24 "},"4.5kg DCP fire extinguisher mounted on a wooden block",null,"No",{"v":4,"d":"4 "},null,{"$f":"ROUND(E4021*F4021,2)","v":{"v":0,"d":"0.00"}}]
[]
[{"v":25,"d":"25 "},"9kg DCP fire extinguisher mounted on wooden block",null,"No",{"v":5,"d":"5 "},null,{"$f":"ROUND(E4023*F4023,2)","v":{"v":0,"d":"0.00"}}]
[]
[{"v":26,"d":"26 "},"10kg Carbon Dioxide fire extinguisher mounted on a wooden block",null,"No",{"v":5,"d":"5 "},null,{"$f":"ROUND(E4025*F4025,2)","v":{"v":0,"d":"0.00"}}]
[]
[{"v":27,"d":"27 "},"Twin booster connection",null,"No",{"v":1,"d":"1 "},null,{"$f":"ROUND(E4027*F4027,2)","v":{"v":0,"d":"0.00"}}]
[]
[{"v":28,"d":"28 "},"Fire hydrant",null,"No",{"v":2,"d":"2 "},null,{"$f":"ROUND(E4029*F4029,2)","v":{"v":0,"d":"0.00"}}]
[]
[{"v":29,"d":"29 "},"Allowance for a 120-minute rated  (Class B)  double fire doors with self closing mechanims",null,"No",{"v":2,"d":"2 "},null,{"$f":"ROUND(E4031*F4031,2)","v":{"v":0,"d":"0.00"}}]
[]
[null,"FIRE DETECTION"]
[]
[null,"Complete design, supply and installation of a smoke detection system. Smoke detection system to comply with SANS 10139. Smoke detection system to be an Conventional Extinguishing Panel Linked to the existing addressable system in the main Building"]
[]
[{"v":30,"d":"30 "},"Addressable fire control panel",null,"No",{"v":1,"d":"1 "},null,{"$f":"ROUND(E4037*F4037,2)","v":{"v":0,"d":"0.00"}}]
[]
[{"v":31,"d":"31 "},"Combined fire alarm sounder and xenon flashing beacon",null,"No",{"v":8,"d":"8 "},null,{"$f":"ROUND(E4039*F4039,2)","v":{"v":0,"d":"0.00"}}]
[]
[{"v":32,"d":"32 "},"Optical smoke detectors with bases conventional",null,"No",{"v":31,"d":"31 "},null,{"$f":"ROUND(E4041*F4041,2)","v":{"v":0,"d":"0.00"}}]
[]
[{"v":33,"d":"33 "},"Base sounder/visual with detector",null,"No",{"v":6,"d":"6 "},null,{"$f":"ROUND(E4043*F4043,2)","v":{"v":0,"d":"0.00"}}]
[]
[{"v":34,"d":"34 "},"Heat Detector 60 Deg Fixed With Bases Conventional",null,"No",{"v":2,"d":"2 "},null,{"$f":"ROUND(E4045*F4045,2)","v":{"v":0,"d":"0.00"}}]
[]
[{"v":35,"d":"35 "},"Break glass manual call point",null,"No",{"v":7,"d":"7 "},null,{"$f":"ROUND(E4047*F4047,2)","v":{"v":0,"d":"0.00"}}]
[]
[{"v":36,"d":"36 "},"Break glass manual-magnetic lock override",null,"No",{"v":2,"d":"2 "},null,{"$f":"ROUND(E4049*F4049,2)","v":{"v":0,"d":"0.00"}}]
[]
[{"v":37,"d":"37 "},"PH30 Fire resistant cable",null,"m",{"v":250,"d":"250 "},null,{"$f":"ROUND(E4051*F4051,2)","v":{"v":0,"d":"0.00"}}]
[]
[{"v":38,"d":"38 "},"25mm Bosal conduit with all associated fittings",null,"m",{"v":250,"d":"250 "},null,{"$f":"ROUND(E4053*F4053,2)","v":{"v":0,"d":"0.00"}}]
[]
[null,"SIGNAGE"]
[]
[{"v":39,"d":"39 "},"LED directional signage (With Back-up Power)",null,"SUM",{"v":1,"d":"1 "}]
[]
[{"v":40,"d":"40 "},"Photo luminated directional signage",null,"SUM",{"v":1,"d":"1 "}]
[]
[{"v":41,"d":"41 "},"Photo luminated fire signage",null,"SUM",{"v":1,"d":"1 "}]
[]
[null,"FIRE STOP"]
[]
[{"v":42,"d":"42 "},"Allowance for fire stop to all penetrations to through fire zones",null,"m³",{"v":10,"d":"10 "},null,{"$f":"ROUND(E4065*F4065,2)","v":{"v":0,"d":"0.00"}}]
[]
[null,"PROVISIONAL SUMS"]
[]
[{"v":43,"d":"43 "},"Allow an amount of One Million One Hundred and Fifty Thousand for a Fire Sprinkler System to be incorporated should the ceiling void space exceed 800mm.",null,"Item",{"v":1,"d":"1 "},null,{"$f":"ROUND(E4069*F4069,2)","v":{"v":0,"d":"0.00"}}]
[]
[{"v":44,"d":"44 "},"Profit (..........%)",null,"%IT"]
[]
[{"v":45,"d":"45 "},"General attendance (..........%)",null,"%IT"]
[]
[null,"Carried to section summary / …",{"$nulls":4},{"$f":"SUM(G3892:G4074)","v":{"v":0,"d":"0.00"}}]
[]
[null,"SECTION SUMMARY"]
[]
[{"v":1,"d":"1 "},"HVAC Installations",{"$nulls":4},{"$f":"G3585","v":{"v":0,"d":"0.00"}}]
[]
[{"v":2,"d":"2 "},"Wet Services",{"$nulls":4},{"$f":"G3891","v":{"v":0,"d":"0.00"}}]
[]
[{"v":3,"d":"3 "},"Fire Protection",{"$nulls":4},{"$f":"G4075","v":{"v":0,"d":"0.00"}}]
[]
[null,"CARRIED TO FINAL SUMMARY / …",{"$nulls":4},{"$f":"SUM(G4076:G4084)","v":{"v":0,"d":"0.00"}}]
[]
[null,"SECTION NO. 8"]
[]
[null,"BILL NO. 1"]
[]
[null,"PROVISIONAL AMOUNTS"]
[]
[null,"PREAMBLES"]
[]
[null,"The Model Preambles for Trades (2008 edition) as published by the Association of South African Quantity Surveyors shall be deemed to be incorporated in these bills of quantities and no claims arising from brevity of description of items fully described in the said Model Preambles will be entertained"]
[]
[null,"The following \"Supplementary Preambles\" are incorporated in this bill to satisfy the requirements of the project and shall take precedence over the provisions of the said Model Preambles"]
[]
[null,"SUPPLEMENTARY PREAMBLES"]
[]
[null,"General:"]
[]
[null,"Subcontract amounts are net.  Subcontract amounts are for material and equipment supplied and installed complete by firms of specialists"]
[]
[null,"Each subcontract amount may comprise more than one element of work.  Therefore, each subcontract amount may include for work to be carried out by more than one subcontractor"]
[]
[null,"Profit:"]
[]
[null,"Where stated, the contractor may allow for profit if required"]
[]
[null,"General attendance on nominated/selected subcontractors:"]
[]
[null,"The item \"General Attendance\" which follows each subcontract amount for nominated/selected subcontractors' work, shall be deemed to cover all the contractor's costs incurred in providing free of charge to the nominated/selected subcontractors, the following:"]
[]
[null,"1.  Access to the site and places where the subcontract work is to be carried out, including the reasonable use of any temporary personnel hoists erected by the contractor"]
[]
[null,"2.  The provision of water and lighting and of single phase electric power to a position within 50 metres of the place where the subcontract work is to be carried out but excluding water, fuel and power for commissioning of any installation"]
[]
[null,"3.  The provision of an area for the subcontractor to establish temporary office accommodation and workshops and for the storage of plant and materials"]
[]
[null,"4.  The use of erected scaffolding belonging to the contractor, in common with others having the like right, while it remains erected on the site"]
[]
[null,"5.  The use, at reasonable times by arrangement of the contractor's erected hoisting equipment"]
[]
[null,"6.  Making good in all trades and cleaning down and removal of rubbish on completion"]
[]
[null,"Special attendance on nominated/selected subcontractors:"]
[]
[null,"Where stated, special attendance as set out in clause 8.1 of section B of the Preliminaries will be described in detail in this bill"]
[]
[null,"Builder's work:"]
[]
[null,"Builder's work in connection with specialist services is given elsewhere in these bills of quantities"]
[]
[null,"SHIPPING CONTAINER"]
[]
[{"v":1,"d":"1 "},"Sub-contract amount of One Hundred and Fifty Thousand Rand for the provision of a shipping container made to fit.",null,"Item",{"v":1,"d":"1 "},null,{"$f":"ROUND(E4137*F4137,2)","v":{"v":0,"d":"0.00"}}]
[]
[{"v":2,"d":"2 "},"Profit (..........%)",null,"%IT"]
[]
[{"v":3,"d":"3 "},"General attendance (..........%)",null,"%IT"]
[]
[null,"KITCHEN EQUIPMENT"]
[]
[{"v":4,"d":"4 "},"Subcontract amount of Fifty Thousand Rand for kitchen equipment, etc. complete",null,"Item",{"v":1,"d":"1 "},null,{"$f":"ROUND(E4145*F4145,2)","v":{"v":0,"d":"0.00"}}]
[]
[{"v":5,"d":"5 "},"Profit (..........%)",null,"%IT"]
[]
[{"v":6,"d":"6 "},"General attendance (..........%)",null,"%IT"]
[]
[null,"MOCK-UPS AND SAMPLES"]
[]
[{"v":7,"d":"7 "},"Budgetary Allowance of Fifty Thousand Rand for mock-ups and samples",null,"Item",{"v":1,"d":"1 "},null,{"$f":"ROUND(E4153*F4153,2)","v":{"v":0,"d":"0.00"}}]
[]
[{"v":8,"d":"8 "},"Profit (..........%)",null,"%IT"]
[]
[{"v":9,"d":"9 "},"General attendance (..........%)",null,"%IT"]
[]
[null,"COMMUNITY LIAISON OFFICER"]
[]
[{"v":10,"d":"10 "},"Subcontract amount of one One Hundred and Eighty Thousand Rand for Community Liaison Officer for a period of twelve (12) months",null,"Item",{"v":1,"d":"1 "},null,{"$f":"ROUND(E4161*F4161,2)","v":{"v":0,"d":"0.00"}}]
[]
[{"v":11,"d":"11 "},"Profit (..........%)",null,"%IT"]
[]
[{"v":12,"d":"12 "},"General attendance (..........%)",null,"%IT"]
[]
[null,"APPROVED INSPECTION AUTHORITIES"]
[]
[{"v":13,"d":"13 "},"Subcontract amount of one Two Hundred and Fifty Thousand Rand for AIA requirements.",null,"Item",{"v":1,"d":"1 "},null,{"$f":"ROUND(E4169*F4169,2)","v":{"v":0,"d":"0.00"}}]
[]
[{"v":14,"d":"14 "},"Profit (..........%)",null,"%IT"]
[]
[{"v":15,"d":"15 "},"General attendance (..........%)",null,"%IT"]
[]
[null,"Carried to section summary / …",{"$nulls":4},{"$f":"SUM(G3992:G4174)","v":{"v":0,"d":"0.00"}}]
[]
[null,"SECTION 8"]
[]
[null,"BILL NO. 1"]
[]
[null,"BUDGETARY ALLOWANCES"]
[]
[null,"PREAMBLES"]
[]
[null,"General:"]
[]
[null,"A Budgetary Allowance is a sum of money included in the contract sum for work intended for execution by the Contractor, the extent of which is identified but not detailed"]
[]
[null,"Work for which budgetary allowances are provided will be measured and valued in accordance with clause 32 of the Principal Building Agreement and deducted in whole or in part if not required without any compensation for loss or profit on the said allowances"]
[]
[null,"Each Budgetary Allowance may comprise more than one element of work"]
[]
[null,"DREDGING, ETC."]
[]
[{"v":1,"d":"1 "},"Budgetary Allowance of Five Million Rand for Dredging, etc.",null,"Item",{"v":1,"d":"1 "},null,{"$f":"ROUND(E4195*F4195,2)","v":{"v":0,"d":"0.00"}}]
[]
[null,"SIGNAGE, ETC."]
[]
[{"v":2,"d":"2 "},"Budgetary Allowance of One Hundred and Fifty Thousand Rand for additional ironmongery, signage, etc.",null,"Item",{"v":1,"d":"1 "},null,{"$f":"ROUND(E4199*F4199,2)","v":{"v":0,"d":"0.00"}}]
[]
[null,"PROVISION OF LOCKERS"]
[]
[{"v":3,"d":"3 "},"Budgetary Allowance of Seventy Five Thousand Rand for the provision of lockers",null,"Item",{"v":1,"d":"1 "},null,{"$f":"ROUND(E4203*F4203,2)","v":{"v":0,"d":"0.00"}}]
[]
[null,"LOOSE FURNITURE AND BUILT-IN CUPBOARDS"]
[]
[{"v":4,"d":"4 "},"Budgetary Allowance of Two Hundred and Fifty Thousand for the provision of loose furniture and built-in cupboards",null,"Item",{"v":1,"d":"1 "},null,{"$f":"ROUND(E4207*F4207,2)","v":{"v":0,"d":"0.00"}}]
[]
[null,"BUILDER'S WORK IN CONNECTION WITH SPECIALIST INSTALLATIONS"]
[]
[{"v":5,"d":"5 "},"Budgetary Allowance of Three Hundred and Fifty Thousand Rand for builder's work in connection with specialist installations",null,"Item",{"v":1,"d":"1 "},null,{"$f":"ROUND(E4211*F4211,2)","v":{"v":0,"d":"0.00"}}]
[]
[null,"Carried to section summary / …",{"$nulls":4},{"$f":"SUM(G4029:G4211)","v":{"v":0,"d":"0.00"}}]
[]
[null,"SECTION SUMMARY"]
[]
[{"v":1,"d":"1 "},"Provisional Sums, ETC",{"$nulls":4},{"$f":"G4175","v":{"v":0,"d":"0.00"}}]
[]
[{"v":2,"d":"2 "},"Budgetary Allowances",{"$nulls":4},{"$f":"G4213","v":{"v":0,"d":"0.00"}}]
[]
[null,"CARRIED TO FINAL SUMMARY / …",{"$nulls":4},{"$f":"SUM(G4179:G4213)","v":{"v":0,"d":"0.00"}}]
[null,"FINAL SUMMARY"]
[]
[{"v":1,"d":"1 "},"Preliminaries and General",{"$nulls":4},{"$f":"G153","v":{"v":0,"d":"0.00"}}]
[]
[{"v":2,"d":"2 "},"Building Works",{"$nulls":4},{"$f":"G2021","v":{"v":0,"d":"0.00"}}]
[]
[{"v":3,"d":"3 "},"Slipway Deck",{"$nulls":4},{"$f":"G2193","v":{"v":0,"d":"0.00"}}]
[]
[{"v":4,"d":"4 "},"External Works",{"$nulls":4},{"$f":"G2615","v":{"v":0,"d":"0.00"}}]
[]
[{"v":5,"d":"5 "},"Cradles and Associated Items",{"$nulls":4},{"$f":"G2813","v":{"v":0,"d":"0.00"}}]
[]
[{"v":6,"d":"6 "},"Electrical Installations",{"$nulls":4},{"$f":"G3347","v":{"v":0,"d":"0.00"}}]
[]
[{"v":7,"d":"7 "},"Mechanical Installations",{"$nulls":4},{"$f":"G4085","v":{"v":0,"d":"0.00"}}]
[]
[{"v":8,"d":"8 "},"Provisional Sums",{"$nulls":4},{"$f":"G4221","v":{"v":0,"d":"0.00"}}]
[]
[null,"TOTAL (EXCLUDING CONTINGENCIES AND CPAP)",null,"T",null,null,{"$f":"SUM(G4224:G4239)","v":{"v":0,"d":"0.00"}}]
[null,"VALUE ADDED TAX",{"$nulls":4},{"$f":"G4242-G4240","v":{"v":0,"d":"0.00"}}]
[null,"TOTAL (INCLUDING VAT)",null,"T",null,null,{"$f":"G4240*1.15","v":{"v":0,"d":"0.00"}}]